Workbook

Sheet Activ-Protein processed Fig4
A1: Compound identifier | B1: Trivial name | D1: Final ABS IC50 (nM) | E1: Final iGc IC50 (nM) | F1: Final LGc IC50 (nM) | G1: Final mGc IC50 (nM) | I1: FC iGC-ABS | J1: FC LGc-ABS | K1: FC mGc-ABS | M1: Target (implied/confirmed) | N1: References | T1: GeneID | V1: transcript expression (microarray) (Bozdech 2003, van Biljon 2019) | AA1: Proteome expression (Silvestrini 2010) | AE1: FC proteom (ABS/iGc) | AF1: FC proteom (ABS/mGc) | AH1: Ratio: activity (iGc/ABS)/protein (ABS/iGc) | AI1: Ratio: activity (mGc/ABS)/protein (ABS/mGc) | AK1: ABS/iGc cluster (based on ratio) | AL1: ABS/mGc cluster (based on ratio)
V2: ABS | W2: iGc | X2: mGc | AA2: T | AB2: iGc | AC2: mGc | AD2: classification
A3: MMV1580857 | B3: Mupirocin | D3: 100.49 | E3: 5000 | G3: 5000 | I3: 49.75619465 | K3: 49.75619465 | M3: isoleucine--tRNA ligase (cyto-IRS) | N3: Validation of isoleucine utilization targets in Plasmodium falciparum. ES Istvan. 2011 | O3: Dual targeting of aminoacyl-tRNA synthetases to the apicoplast and cytosol in Plasmodium falciparum. KE Jackson. 2012 | T3: PF3D7_1332900 | V3: 0.67 | W3: -0.18 | X3: -0.65 | AA3: 1.384535081 | AB3: 2.257955129 | AC3: 3.598864379 | AD3: shared 3 stages | AE3: 0.6131809542 | AF3: 0.3847144363 | AH3: 81.14439025 | AI3: 129.3327985 | AK3: 1 | AL3: 1
A4: MMV027634 | D4: 37.74 | E4: 5000 | G4: 5000 | I4: 132.4854266 | K4: 132.4854266 | M4: DHFR-TS | N4: Mapping the malaria parasite druggable genome by using in vitro evolution and chemogenomics. Cowell. 2018 | O4: Using in Vitro Evolution and Whole Genome Analysis To Discover Next Generation Targets for Antimalarial Drug Discovery. MR Luth. 2018 | P4: Exploration of the Plasmodium falciparum Resistome and Druggable Genome Reveals New Mechanisms of Drug Resistance and Antimalarial Targets. A Cowell. 2018 | T4: PF3D7_0417200 | V4: 0.11 | W4: 0.52 | X4: 0.13 | AA4: 1.15443469 | AB4: 0.6407679531 | AC4: 10.93776642 | AD4: gct V enriched | AE4: 1.801642364 | AF4: 0.1055457436 | AH4: 73.53591879 | AI4: 1000 | AK4: 1 | AL4: 2
A5: MMV688533 | B5: MMV533 | D5: 1.9 | E5: 247.1 | G5: 5000 | I5: 130.0526316 | K5: 2631.578947 | M5: EH domain-containing protein (EHD) | N5: The antimalarial MMV688533 provides potential for single-dose cures with a high barrier to Plasmodium falciparum parasite resistance James M Murithi 2021 | T5: PF3D7_0304200 | V5: 0.52 | W5: -0.17 | X5: -0.37 | AA5: 0.8697210651 | AB5: 0.5334064718 | AC5: 1.976351442 | AD5: shared 3 stages | AE5: 1.630503399 | AF5: 0.4400639718 | AH5: 79.76225728 | AI5: 1000 | AK5: 1 | AL5: 2
A6: MMV1557821 | B6: SC83288 | D6: 6.68 | E6: 3903 | G6: 5000 | I6: 584.2814371 | K6: 748.502994 | M6: mini-chromosome maintenance complex-binding protein | N6: SC83288 is a clinical development candidate for the treatment of severe malaria S Pegoraro 2017 | O6: Target identification studies for SC83288: a novel drug for the treatment of severe malaria RV Celada 2022 | T6: PF3D7_1412100 | V6: 1.16 | W6: 0.17 | X6: 0.19 | AA6: 0.2203059526 | AB6: 0.06444401261 | AC6: 0.08733567272 | AD6: enriched troph | AE6: 3.418563551 | AF6: 2.522519673 | AH6: 170.9143119 | AI6: 296.7283078 | AK6: 1 | AL6: 3
A7: MMV019555 | D7: 20 | E7: 1428 | F7: 1547.9 | G7: 470 | I7: 71.4 | J7: 77.395 | K7: 23.5 | M7: esterase | N7: Combining stage specificity and metabolomic profiling to advance antimalarial drug discovery JM Murithi | O7: Antiapicoplast and gametocytocidal screening to identify the mechanisms of action of compounds within the malaria box JD Bowman | P7: Evaluation of short-tether bis-THA AChE inhibitors. A further test of the dual binding site hypothesis PR Carlier | V7: 1.016666667 | W7: -0.6 | X7: -0.7533333333 | Y7: Average | AA7: 0 | AB7: 0 | AC7: 23.62092401 | AD7: gct V enriched | AE7: 1 | AF7: 0.05 | AH7: 71.4 | AI7: 470 | AK7: 1 | AL7: 4
A8: MMV892604 | D8: 151.9 | E8: 5000 | G8: 5000 | I8: 32.91639236 | K8: 32.91639236 | M8: serine hydroxymethyltransferase (SHMT) | N8: Provided from MMV | T8: PF3D7_1235600 | V8: 0.21 | W8: 0.33 | X8: 0.63 | AA8: 3.357010369 | AB8: 12.41539812 | AC8: 47.93900918 | AD8: gct V enriched | AE8: 0.2703908758 | AF8: 0.07002669489 | AH8: 121.7363281 | AI8: 470.0549186 | AK8: 1 | AL8: 4
A9: MMV892604 | D9: 151.9 | E9: 5000 | G9: 5000 | I9: 32.91639236 | K9: 32.91639236 | M9: serine hydroxymethyltransferase (SHMT) | N9: Provided from MMV | T9: PF3D7_1456100 | V9: 0.35 | W9: 0.22 | X9: -0.21 | AA9: 3.357010369 | AB9: 12.41539812 | AC9: 47.93900918 | AD9: gct V enriched | AE9: 0.2703908758 | AF9: 0.07002669489 | AH9: 121.7363281 | AI9: 470.0549186 | AK9: 1 | AL9: 4
A10: MMV1557821 | B10: SC83288 | D10: 6.68 | E10: 3903 | G10: 5000 | I10: 584.2814371 | K10: 748.502994 | M10: Fe-S cluster assembly protein DRE2 | N10: SC83288 is a clinical development candidate for the treatment of severe malaria S Pegoraro 2017 | O10: Target identification studies for SC83288: a novel drug for the treatment of severe malaria RV Celada 2022 | T10: PF3D7_0824600 | V10: 1.14 | W10: 0.16 | X10: -0.15 | AA10: 1.281236743 | AB10: 0.2333067808 | AC10: 1.053525026 | AD10: shared 3 stages | AE10: 5.491639543 | AF10: 1.216142674 | AH10: 106.3947174 | AI10: 615.4730115 | AK10: 1 | AL10: 4
A11: MMV1557821 | B11: SC83288 | D11: 6.68 | E11: 3903 | G11: 5000 | I11: 584.2814371 | K11: 748.502994 | M11: fumarate hydratase (FH) | N11: SC83288 is a clinical development candidate for the treatment of severe malaria S Pegoraro 2017 | O11: Target identification studies for SC83288: a novel drug for the treatment of severe malaria RV Celada 2022 | T11: PF3D7_0927300 | V11: 0.23 | W11: 0.16 | X11: 0.19 | AA11: 0.1657670373 | AB11: 0.3188409631 | AC11: 3.019450334 | AD11: gct V enriched | AE11: 0.5199050827 | AF11: 0.05489973969 | AH11: 1000 | AI11: 1000 | AK11: 2 | AL11: 2
A12: MMV034055 | B12: ELQ-300 | D12: 5 | E12: 5000 | G12: 5000 | I12: 1000 | K12: 1000 | M12: mitochondrial cytochrome bc1 complex (Qi-site) | N12: Nilsen A, LaCrue AN, White KL, Forquer IP, Cross RM, Marfurt J, Mather MW, Delves MJ, Shackleford DM, Saenz FE, Morrisey JM, Steuten J, Mutka T, Li Y, Wirjanata G, Ryan E, Duffy S, Kelly JX, Sebayang BF, Zeeman AM, Noviyanti R, Sinden RE, Kocken CH, Price RN, Avery VM, Angulo-Barturen I, Jimenez-Diaz MB, Ferrer S, Herreros E, Sanz LM, Gamo FJ, Bathurst I, Burrows JN, Siegl P, Guy RK, Winter RW, Vaidya AB, Charman SA, Kyle DE, Manetsch R, Riscoe MK. 2013. Quinolone-3-diarylethers: a new class of antimalarial drug. Sci Transl Med 5:177ra37. | O12: Stickles AM, de Almeida MJ, Morrisey JM, Sheridan KA, Forquer IP, Nilsen A, Winter RW, Burrows JN, Fidock DA, Vaidya AB et al.. (2015) Subtle changes in endochin-like quinolone structure alter the site of inhibition within the cytochrome bc1 complex of Plasmodium falciparum. | V12: 0.8483333333 | W12: 0.98 | X12: 0.81 | Y12: Average | AA12: 0.4530828605 | AB12: 1.700657792 | AC12: 7.360729508 | AD12: gct V enriched | AE12: 0.2664162436 | AF12: 0.06155407015 | AH12: 1000 | AI12: 1000 | AK12: 2 | AL12: 2
A13: MMV018912 | B13: DSM265 | D13: 4.3 | E13: 5000 | G13: 5000 | I13: 1162.790698 | K13: 1162.790698 | M13: PfDHODH | N13: Phillips MA, Lotharius J, Marsh K, White J, Dayan A, White KL, Njoroge JW, El Mazouni F, Lao Y, Kokkonda S, Tomchick DR, Deng X, Laird T, Bhatia SN, March S, Ng CL, Fidock DA, Wittlin S, Lafuente-Monasterio M, Benito FJ, Alonso LM, Martinez MS, Jimenez-Diaz MB, Bazaga SF, Angulo-Barturen I, Haselden JN, Louttit J, Cui Y, Sridhar A, Zeeman AM, Kocken C, Sauerwein R, Dechering K, Avery VM, Duffy S, Delves M, Sinden R, Ruecker A, Wickham KS, Rochford R, Gahagen J, Iyer L, Riccio E, Mirsalis J, Bathhurst I, Rueckle T, Ding X, Campo B, Leroy D, Rogers MJ, etal. 2015. A long-duration dihydroorotate dehydrogenase inhibitor (DSM265) for prevention and treatment of malaria. Sci Transl Med 7:296ra111. | T13: PF3D7_0603300 | V13: 0.75 | W13: -0.19 | X13: -0.43 | AA13: 1.15443469 | AB13: 0.7714114433 | AC13: 1.894266125 | AD13: shared 3 stages | AE13: 1.496522641 | AF13: 0.6094363801 | AH13: 776.9950592 | AI13: 1000 | AK13: 2 | AL13: 2
A14: MMV000024 | B14: Pyrimethamine | D14: 2.5 | E14: 5000 | F14: 5000 | G14: 5000 | I14: 2000 | J14: 2000 | K14: 2000 | M14: DHFR-TS | N14: Basco LK, Eldin de Pecoulas P, Wilson CM, Le Bras J, Mazabraud A. 1995. Point mutations in the dihydrofolate reductase-thymidylate synthase gene and pyrimethamine and cycloguanil resistance in Plasmodium falciparum. Mol Biochem Parasitol 69:135–138. | O14: Sirawaraporn W, Sathitkul T, Sirawaraporn R, Yuthavong Y, Santi DV. (1997) Antifolate-resistant mutants of Plasmodium falciparum dihydrofolate reductase. | P14: Yuthavong Y, Tarnchompoo B, Vilaivan T, Chitnumsub P, Kamchonwongpaisan S, Charman SA, McLennan DN, White KL, Vivas L, Bongard E et al.. (2012) Malarial dihydrofolate reductase as a paradigm for drug development against a resistance-compromised target. | T14: PF3D7_0417200 | V14: 0.11 | W14: 0.52 | X14: 0.13 | AA14: 1.15443469 | AB14: 0.6407679531 | AC14: 10.93776642 | AD14: gct V enriched | AE14: 1.801642364 | AF14: 0.1055457436 | AH14: 1000 | AI14: 1000 | AK14: 2 | AL14: 2
A15: MMV000046 | B15: Atovaquone | D15: 0.27 | E15: 5000 | F15: 34.79 | G15: 1000 | I15: 18518.51852 | J15: 128.8518519 | K15: 3703.703704 | M15: bc1 complex (Qo site) | N15: Fry M, Pudney M. 1992. Site of action of the antimalarial hydroxynaphthoquinone, 2-[trans-4-(4′-chlorophenyl) cyclohexyl]-3-hydroxy-1,4-naphthoquinone (566C80). Biochem Pharmacol 43:1545–1553. | O15: Birth D, Kao WC, Hunte C. 2014. Structural analysis of atovaquone- inhibited cytochrome bc1 complex reveals the molecular basis of anti- malarial drug action. Nat Commun 5:4029. | P15: Srivastava IK, Rottenberg H, Vaidya AB. (1997) Atovaquone, a broad spectrum antiparasitic drug, collapses mitochondrial membrane potential in a malarial parasite. | Q15: Vaidya AB, Lashgari MS, Pologe LG, Morrisey J. (1993) Structural features of Plasmodium cytochrome b that may underlie susceptibility to 8-aminoquinolines and hydroxynaphthoquinones. | V15: 0.8483333333 | W15: 0.98 | X15: 0.81 | Y15: Average | AA15: 0.4530828605 | AB15: 1.700657792 | AC15: 7.360729508 | AD15: gct V enriched | AE15: 0.2664162436 | AF15: 0.06155407015 | AH15: 1000 | AI15: 1000 | AK15: 2 | AL15: 2
A16: MMV1576861 | B16: 49c | D16: 0.6 | E16: 1031 | G16: 5000 | I16: 1718.333333 | K16: 8333.333333 | M16: plasmepsin X (PMX) | N16: Pino P, Caldelari R, Mukherjee B, Vahokoski J, Klages N, Maco B, Collins CR, Blackman MJ, Kursula I, Heussler V et al.. (2017) A multistage antimalarial targets the plasmepsins IX and X essential for invasion and egress. | O16: C.-L. Ciana, Novel in vivo active anti-malarials based on a hydroxy-ethyl-amine scaffold. 2013 | P16: W.A. Guiguemde, A.A. Shelat, D. Bouck, S. Duffy, G.J. Crowther, P.H. Davis, D.C. Smithson, M. Connelly, J. Clark, F. Zhu, M.B. Jiménez-Díaz, M.S. Martinez, E.B. Wilson, A.K. Tripathi, J. Gut, E.R. Sharlow. Chemical genetics of Plasmodium falciparum. 2010 | T16: PF3D7_0808200 | V16: 1.26 | W16: -0.79 | X16: 0.17 | AA16: 0 | AB16: 0 | AC16: 0.995262315 | AD16: gct V enriched | AE16: 1 | AF16: 2 | AH16: 1000 | AI16: 1000 | AK16: 2 | AL16: 2
A17: MMV884705 | B17: NMT-145 | D17: 0.144 | E17: 5000 | G17: 5000 | I17: 34722.22222 | K17: 34722.22222 | M17: glycylpeptide N-tetradecanoyltransferase (NMT) | N17: Selective Inhibitors of Protozoan Protein N-myristoyltransferases as Starting Points for Tropical Disease Medicinal Chemistry Programs Andrew S. Bell 2012 | T17: PF3D7_1412800 | V17: 0.91 | W17: -0.29 | X17: -0.56 | AA17: 2.12508136 | AB17: 1.364823727 | AC17: 2.981071706 | AD17: shared 3 stages | AE17: 1.557037233 | AF17: 0.7128581831 | AH17: 1000 | AI17: 1000 | AK17: 2 | AL17: 2
A18: MMV666693 | D18: 23.8 | E18: 5000 | F18: 438 | G18: 730 | I18: 210.0840336 | J18: 18.40336134 | K18: 30.67226891 | M18: bc1 inhibitor | N18: E.L. Allman, H.J. Painter, J. Samra, M. Carrasquilla, M. Llinas Metabolomic profiling of the malaria box reveals antimalarial target pathways 2016 | O18: Open source drug discovery with the malaria box compound collection for neglected diseases and beyond Voorhis 2016 | P18: Small molecule screen for candidate antimalarials targeting Plasmodium Kinesin-5 L Liu | Q18: Metabolomics-based screening of the malaria box reveals both novel and established mechanisms of action DJ Creek | R18: High-throughput luciferase-based assay for the discovery of therapeutics that prevent malaria J Swann | V18: 0.8483333333 | W18: 0.98 | X18: 0.81 | Y18: Average | AA18: 0.4530828605 | AB18: 1.700657792 | AC18: 7.360729508 | AD18: gct V enriched | AE18: 0.2664162436 | AF18: 0.06155407015 | AH18: 788.555648 | AI18: 498.2979815 | AK18: 2 | AL18: 4
A19: MMV1557821 | B19: SC83288 | D19: 6.68 | E19: 3903 | G19: 5000 | I19: 584.2814371 | K19: 748.502994 | M19: casein kinase 2, alpha subunit | N19: SC83288 is a clinical development candidate for the treatment of severe malaria S Pegoraro 2017 | O19: Target identification studies for SC83288: a novel drug for the treatment of severe malaria RV Celada 2022 | T19: PF3D7_1108400 | V19: 0.45 | W19: 0.17 | X19: 0.01 | AA19: 60.79064012 | AB19: 103.2808345 | AC19: 47.32930239 | AD19: shared 3 stages | AE19: 0.588595555 | AF19: 1.28441868 | AH19: 992.6704885 | AI19: 582.7562347 | AK19: 2 | AL19: 4
A20: MMV666023 | D20: 36.8 | E20: 2000 | F20: 183.5 | G20: 5000 | I20: 54.34782609 | J20: 4.986413043 | K20: 135.8695652 | M20: bc1 inhibitor | N20: Open source drug discovery with the malaria box compound collection for neglected diseases and beyond Voorhis 2016 | O20: Screening the Medicines for Malaria Venture "Malaria Box" against the Plasmodium falciparum Aminopeptidases, M1, M17 and M18 A Paiardini | P20: Malaria Box Compounds against Anopheles gambiae (Diptera: Culicidae) Carboxypeptidase B Activity to Block Malaria Transmission T Pomun | Q20: Metabolomics-based screening of the malaria box reveals both novel and established mechanisms of action DJ Creek | V20: 0.8483333333 | W20: 0.98 | X20: 0.81 | Y20: Average | AA20: 0.4530828605 | AB20: 1.700657792 | AC20: 7.360729508 | AD20: gct V enriched | AE20: 0.2664162436 | AF20: 0.06155407015 | AH20: 203.9959176 | AI20: 1000 | AK20: 3 | AL20: 2
A21: MMV1793799 | B21: ML10 | D21: 18.15 | E21: 5000 | G21: 5000 | I21: 275.4820937 | K21: 275.4820937 | M21: PKG | N21: A potent series targeting the malarial cGMP-dependent protein kinase clears infection and blocks transmission. DA Baker. 2017 | T21: PF3D7_1436600 | V21: 0.47 | W21: -0.44 | X21: 0.1 | AA21: 0 | AB21: 0.0682448935 | AC21: 2.025305457 | AD21: gct V enriched | AE21: 0.8 | AF21: 0.2 | AH21: 344.3526171 | AI21: 1000 | AK21: 3 | AL21: 2
A22: MMV1557821 | B22: SC83288 | D22: 6.68 | E22: 3903 | G22: 5000 | I22: 584.2814371 | K22: 748.502994 | M22: calcium-transporting ATPase (ATP6) | N22: SC83288 is a clinical development candidate for the treatment of severe malaria S Pegoraro 2017 | O22: Target identification studies for SC83288: a novel drug for the treatment of severe malaria RV Celada 2022 | T22: PF3D7_0106300 | V22: 0.39 | W22: -0.03 | X22: -0.13 | AA22: 1.687602771 | AB22: 0.7605873874 | AC22: 3.937969318 | AD22: shared 3 stages | AE22: 2.218815088 | AF22: 0.4285464499 | AH22: 263.3303876 | AI22: 1000 | AK22: 3 | AL22: 2
A23: MMV1557821 | B23: SC83288 | D23: 6.68 | E23: 3903 | G23: 5000 | I23: 584.2814371 | K23: 748.502994 | M23: casein kinase II beta chain | N23: SC83288 is a clinical development candidate for the treatment of severe malaria S Pegoraro 2017 | O23: Target identification studies for SC83288: a novel drug for the treatment of severe malaria RV Celada 2022 | T23: PF3D7_1103700 | V23: 0.9 | W23: 0.14 | X23: -0.56 | AA23: 3.218748794 | AB23: 1.890086131 | AC23: 4.080218047 | AD23: shared 3 stages | AE23: 1.702964082 | AF23: 0.7888668588 | AH23: 343.0967471 | AI23: 948.8331088 | AK23: 3 | AL23: 2
A24: MMV1557821 | B24: SC83288 | D24: 6.68 | E24: 3903 | G24: 5000 | I24: 584.2814371 | K24: 748.502994 | M24: casein kinase II beta chain | N24: SC83288 is a clinical development candidate for the treatment of severe malaria S Pegoraro 2017 | O24: Target identification studies for SC83288: a novel drug for the treatment of severe malaria RV Celada 2022 | T24: PF3D7_1342400 | V24: 0.4 | W24: 0.07 | X24: -0.15 | AA24: 2.257613856 | AB24: 1.173120141 | AC24: 1.371373706 | AD24: enriched troph | AE24: 1.702964082 | AF24: 1.64624263 | AH24: 343.0967471 | AI24: 454.673558 | AK24: 3 | AL24: 4
A25: MMV000445 | D25: 1.97 | E25: 2000 | F25: 1611 | G25: 3586.66 | I25: 1015.228426 | J25: 817.7664975 | K25: 1820.639594 | M25: phosphoethanolamine methyltransferase (PfPMT) | N25: Open Source Drug Discovery with the Malaria Box Compound Collection for Neglected Diseases and Beyond Wesley C. Van Voorhis 2016 | T25: PF3D7_1343000 | V25: 0.77 | W25: 1.48 | X25: 0.61 | AA25: 336.4138014 | AB25: 83.25579797 | AC25: 10.54781985 | AD25: enriched troph | AE25: 4.040725206 | AF25: 31.89415503 | AH25: 251.2490641 | AI25: 57.08380085 | AK25: 3 | AL25: 5
A26: MMV1557821 | B26: SC83288 | D26: 6.68 | E26: 3903 | G26: 5000 | I26: 584.2814371 | K26: 748.502994 | M26: cytosolic iron-sulfur assembly component 2 | N26: SC83288 is a clinical development candidate for the treatment of severe malaria S Pegoraro 2017 | O26: Target identification studies for SC83288: a novel drug for the treatment of severe malaria RV Celada 2022 | T26: PF3D7_0703100 | V26: 0.86 | W26: 0.01 | X26: -0.27 | AA26: 0 | AB26: 0 | AC26: 0.7012542799 | AD26: gct V enriched | AE26: 0.3 | AF26: 0.4 | AH26: 1000 | AI26: 1000 | AK26: 4 | AL26: 2
A27: MMV000147 | B27: P218 | D27: 6 | E27: 5000 | G27: 5000 | I27: 833.3333333 | K27: 833.3333333 | M27: DHFR-TS | N27: Yuthavong Y, Tarnchompoo B, Vilaivan T, Chitnumsub P, Kamchonwongpaisan S, Charman SA, McLennan DN, White KL, Vivas L, Bongard E, Thongphanchang C, Taweechai S, Vanichtanankul J, Rattanajak R, Arwon U, Fantauzzi P, Yuvaniyama J, Charman WN, Matthews D. 2012. Malarial dihydrofolate reductase as a paradigm for drug development against a resistance-compromised target. Proc Natl Acad Sci U S A 109:16823–16828 | T27: PF3D7_0417200 | V27: 0.11 | W27: 0.52 | X27: 0.13 | AA27: 1.15443469 | AB27: 0.6407679531 | AC27: 10.93776642 | AD27: gct V enriched | AE27: 1.801642364 | AF27: 0.1055457436 | AH27: 462.5409292 | AI27: 1000 | AK27: 4 | AL27: 2
A28: MMV000130 | B28: Ganaplacide/KAF156 | D28: 6.00 | E28: 3300.00 | G28: 5000.00 | I28: 550.0000 | K28: 833.33 | M28: CARL | N28: Pan-active imidazolopiperazine antimalarials target the Plasmodium falciparum intracellular secretory pathway. GM LaMonte. 2020 | T28: PF3D7_0321900 | V28: 0.31 | W28: -0.21 | X28: -0.06 | AA28: 0 | AB28: 0 | AC28: 0.05372497274 | AD28: gct V enriched | AE28: 1 | AF28: 0.8 | AH28: 550 | AI28: 1000 | AK28: 4 | AL28: 2
A29: MMV1793038 | B29: BRD7539 | D29: 5.54 | E29: 5000 | G29: 5000 | I29: 902.5270758 | K29: 902.5270758 | M29: PfDHODH | N29: Discovery of Antimalarial Azetidine-2-carbonitriles That Inhibit P. falciparum Dihydroorotate Dehydrogenase. M Maetani. 2017 | O29: Diversity-oriented synthesis yields novel multistage antimalarial inhibitors. Nobutaka Kato. 2016 | P29: Painter, H. J., Morrisey, J. M., Mather, M. W. & Vaidya, A. B. Specific role of mitochondrial electron transport in blood-stage Plasmodium falciparum. Nature 446 | T29: PF3D7_0603300 | V29: 0.75 | W29: -0.19 | X29: -0.43 | AA29: 1.15443469 | AB29: 0.7714114433 | AC29: 1.894266125 | AD29: shared 3 stages | AE29: 1.496522641 | AF29: 0.6094363801 | AH29: 603.0828077 | AI29: 1000 | AK29: 4 | AL29: 2
A30: MMV007384 | D30: 100 | E30: 949 | F30: 1113.5 | G30: 870 | I30: 9.49 | J30: 11.135 | K30: 8.7 | M30: 6-phosphogluconate dehydrogenase | N30: Open source drug discovery with the malaria box compound collection for neglected diseases and beyond Voorhis 2016 | O30: New insights into novel inhibitors against deoxyhypusine hydroxylase from Plasmodium falciparum: compounds with an iron chelating potential I von Koschitzky | P30: Identification of β-hematin inhibitors in the MMV Malaria Box KY Fong | Q30: Characterization of Plasmodium falciparum 6-phosphogluconate dehydrogenase as an antimalarial drug target K Haeussler, | R30: Bilayer Effects of Antimalarial Compounds Nicole B. Ramsey | T30: PF3D7_1454700 | V30: 0.29 | W30: 0.18 | X30: -0.08 | AA30: 1.717623246 | AB30: 5.869374848 | AC30: 16.43328822 | AD30: gct V enriched | AE30: 0.2926415999 | AF30: 0.1045209713 | AH30: 32.42874562 | AI30: 83.23688437 | AK30: 5 | AL30: 1
A31: MMV666054 | D31: 499.444167 | E31: 2000 | F31: 1075 | G31: 5000 | I31: 4.004451613 | J31: 2.152392742 | K31: 10.01112903 | M31: MAPK2 | N31: Open source drug discovery with the malaria box compound collection for neglected diseases and beyond Voorhis 2016 | O31: Screening the Medicines for Malaria Venture "Malaria Box" against the Plasmodium falciparum Aminopeptidases, M1, M17 and M18 A Paiardini | T31: PF3D7_1113900 | V31: 0.53 | W31: 1.03 | X31: 0.24 | AA31: 0 | AB31: 0 | AC31: 3.893900918 | AD31: gct V enriched | AE31: 1 | AF31: 0.05 | AH31: 4.004451613 | AI31: 200.2225806 | AK31: 5 | AL31: 1
A32: MMV000787 | D32: 407 | E32: 2000 | F32: 584 | G32: 4574.65 | I32: 4.914004914 | J32: 1.434889435 | K32: 11.23992629 | M32: CytBC1 | N32: Combining stage specificity and metabolomic profiling to advance antimalarial drug discovery JM Murithi 2020 | O32: Open source drug discovery with the malaria box compound collection for neglected diseases and beyond Voorhis 2016 | V32: 0.8483333333 | W32: 0.98 | X32: 0.81 | Y32: Average | AA32: 0.4530828605 | AB32: 1.700657792 | AC32: 7.360729508 | AD32: gct V enriched | AE32: 0.2664162436 | AF32: 0.06155407015 | AH32: 18.44483973 | AI32: 182.6024869 | AK32: 5 | AL32: 1
A33: MMV665969 | D33: 393 | E33: 5000 | F33: 1881 | G33: 5000 | I33: 12.72264631 | J33: 4.786259542 | K33: 12.72264631 | M33: DHFR-TS | N33: MMV Malaria Box Activity Screening in Dormant Plasmodium falciparum Phenotypes S Galusic | T33: PF3D7_0417200 | V33: 0.11 | W33: 0.52 | X33: 0.13 | AA33: 1.15443469 | AB33: 0.6407679531 | AC33: 10.93776642 | AD33: gct V enriched | AE33: 1.801642364 | AF33: 0.1055457436 | AH33: 7.061693576 | AI33: 120.5415384 | AK33: 5 | AL33: 1
A34: MMV011438 | D34: 50 | E34: 1656 | F34: 1129.5 | G34: 820 | I34: 33.12 | J34: 22.59 | K34: 16.4 | M34: phosphopantothenoylcysteine decarboxylase | N34: Istvan, E. S., Mallari, J. P., Corey, V. C., Dharia, N. V., Marshall, G. R., Winzeler, E. A., and Goldberg, D. E. (2017) Esterase mutation is a mechanism of resistance to antimalarial compounds. Nat. Commu | O34: A novel approach for the discovery of chemically diverse anti-malarial compounds targeting the Plasmodium falciparum Coenzyme A synthesis pathway Sabine Fletcher | T34: PF3D7_0816100 | V34: 0.73 | W34: -0.05 | X34: 0.35 | AA34: 0 | AB34: 2.147127446 | AC34: 1.894266125 | AD34: gct I/II enriched | AE34: 4 | AF34: 0.1 | AH34: 8.28 | AI34: 164 | AK34: 5 | AL34: 1
A35: MMV652103 | D35: 7.25 | E35: 59.6 | F35: 5 | G35: 133.3 | I35: 8.220689655 | J35: 0.6896551724 | K35: 18.3862069 | M35: PKG | N35: Imidazopyridazines as potent inhibitors of Plasmodium falciparum calcium-dependent protein kinase 1 (PfCDPK1): preparation and evaluation of pyrazole … JM Large | O35: Substituted imidazopyridazines are potent and selective inhibitors of Plasmodium falciparum calcium-dependent protein kinase 1 (PfCDPK1) TM Chapman | P35: New Amidated 3,6-Diphenylated Imidazopyridazines with Potent Antiplasmodium Activity Are Dual Inhibitors of Plasmodium Phosphatidylinositol-4-kinase and cGMP … PM Cheuka | Q35: Exploring the transmission-blocking activity of antiplasmodial 3, 6-diarylated imidazopyridazines D Coertzen | T35: PF3D7_1436600 | V35: 0.47 | W35: -0.44 | X35: 0.1 | AA35: 0 | AB35: 0.0682448935 | AC35: 2.025305457 | AD35: gct V enriched | AE35: 0.8 | AF35: 0.2 | AH35: 10.27586207 | AI35: 91.93103448 | AK35: 5 | AL35: 1
A36: MMV006787 | D36: 200.9 | E36: 1645 | F36: 1170 | G36: 3713.2 | I36: 8.18815331 | J36: 5.823792932 | K36: 18.48282728 | M36: Hsp90 | N36: Open source drug discovery with the malaria box compound collection for neglected diseases and beyond Voorhis 2016 | T36: PF3D7_0708400 | V36: 0.47 | W36: 0.14 | X36: -0.37 | AA36: 391.2443421 | AB36: 487.5030362 | AC36: 2642.761186 | AD36: gct V enriched | AE36: 0.8025474984 | AF36: 0.1480437749 | AH36: 10.20270243 | AI36: 124.8470413 | AK36: 5 | AL36: 1
A37: MMV000061 | B37: Methylene Blue | D37: 21.7 | E37: 62.7 | G37: 457 | I37: 2.889400922 | K37: 21.05990783 | M37: glutathione reductase (GR) | N37: Buchholz K, Schirmer RH, Eubel JK, Akoachere MB, Dandekar T, Becker K, Gromer S. 2008. Interactions of methylene blue with human disulfide reductases and their orthologues from Plasmodium falciparum. Antimicrob. Agents Chemother. 52:183–191. | O37: Vennerstrom JL, Makler MT, Angerhofer CK, Williams JA. 1995. Antimalarial dyes revisited: xanthenes, azines, oxazines, and thiazines. Antimicrob Agents Chemother 39:2671–2677. https://doi.org/10.1128/AAC.39 .12.2671 | T37: PF3D7_1419800 | V37: 0.71 | W37: 0.64 | X37: -0.14 | AA37: 1.15443469 | AB37: 1.057018224 | AC37: 9 | AD37: gct V enriched | AE37: 1.092161577 | AF37: 0.1282705211 | AH37: 2.645580089 | AI37: 164.1835369 | AK37: 5 | AL37: 1
A38: MMV675615 | D38: 4.47 | E38: 163.2 | F38: 72.1 | G38: 104.2 | I38: 36.51006711 | J38: 16.12975391 | K38: 23.31096197 | M38: PKG | N38: Imidazopyridazines as potent inhibitors of Plasmodium falciparum calcium-dependent protein kinase 1 (PfCDPK1): preparation and evaluation of pyrazole … JM Large | O38: Substituted imidazopyridazines are potent and selective inhibitors of Plasmodium falciparum calcium-dependent protein kinase 1 (PfCDPK1) TM Chapman | P38: New Amidated 3,6-Diphenylated Imidazopyridazines with Potent Antiplasmodium Activity Are Dual Inhibitors of Plasmodium Phosphatidylinositol-4-kinase and cGMP … PM Cheuka | Q38: Potent Plasmodium falciparum gametocytocidal compounds identified by exploring the kinase inhibitor chemical space for dual active antimalarials Mariëtte E van der Watt, | T38: PF3D7_1436600 | V38: 0.47 | W38: -0.44 | X38: 0.1 | AA38: 0 | AB38: 0.0682448935 | AC38: 2.025305457 | AD38: gct V enriched | AE38: 0.8 | AF38: 0.2 | AH38: 45.63758389 | AI38: 116.5548098 | AK38: 5 | AL38: 1
A39: MMV030084 | D39: 160.17 | E39: 5000 | G39: 5000 | I39: 31.21683212 | K39: 31.21683212 | M39: PKG | N39: Inhibition of resistance-refractory P. falciparum kinase PKG delivers prophylactic, blood stage, and transmission-blocking antiplasmodial activity. M. Vanaerschot, 2020 | T39: PF3D7_1436600 | V39: 0.47 | W39: -0.44 | X39: 0.1 | AA39: 0 | AB39: 0.0682448935 | AC39: 2.025305457 | AD39: gct V enriched | AE39: 0.8 | AF39: 0.2 | AH39: 39.02104014 | AI39: 156.0841606 | AK39: 5 | AL39: 1
A40: MMV672652 | D40: 0.56 | E40: 10.8 | F40: 3.3 | G40: 18.1 | I40: 19.28571429 | J40: 5.892857143 | K40: 32.32142857 | M40: CDPK1 | N40: Imidazopyridazines as potent inhibitors of Plasmodium falciparum calcium-dependent protein kinase 1 (PfCDPK1): preparation and evaluation of pyrazole … JM Large | O40: Substituted imidazopyridazines are potent and selective inhibitors of Plasmodium falciparum calcium-dependent protein kinase 1 (PfCDPK1) TM Chapman | P40: New Amidated 3,6-Diphenylated Imidazopyridazines with Potent Antiplasmodium Activity Are Dual Inhibitors of Plasmodium Phosphatidylinositol-4-kinase and cGMP … PM Cheuka | T40: PF3D7_0217500 | V40: 0.54 | W40: -0.07 | X40: 0.86 | AA40: 1.827664212 | AB40: 0.8228906159 | AC40: 5.078323128 | AD40: shared 3 stages | AE40: 2.221029353 | AF40: 0.3598952186 | AH40: 8.683232511 | AI40: 89.80788547 | AK40: 5 | AL40: 1
A41: MMV672652 | D41: 0.56 | E41: 10.8 | F41: 3.3 | G41: 18.1 | I41: 19.28571429 | J41: 5.892857143 | K41: 32.32142857 | M41: PKG | N41: Imidazopyridazines as potent inhibitors of Plasmodium falciparum calcium-dependent protein kinase 1 (PfCDPK1): preparation and evaluation of pyrazole … JM Large | O41: Substituted imidazopyridazines are potent and selective inhibitors of Plasmodium falciparum calcium-dependent protein kinase 1 (PfCDPK1) TM Chapman | P41: New Amidated 3,6-Diphenylated Imidazopyridazines with Potent Antiplasmodium Activity Are Dual Inhibitors of Plasmodium Phosphatidylinositol-4-kinase and cGMP … PM Cheuka | T41: PF3D7_1436600 | V41: 0.47 | W41: -0.44 | X41: 0.1 | AA41: 0 | AB41: 0.0682448935 | AC41: 2.025305457 | AD41: gct V enriched | AE41: 0.8 | AF41: 0.2 | AH41: 24.10714286 | AI41: 161.6071429 | AK41: 5 | AL41: 1
A42: MMV674766 | D42: 7.86 | E42: 93.9 | F42: 66.4 | G42: 262.9 | I42: 11.94656489 | J42: 8.44783715 | K42: 33.44783715 | M42: CDPK1 | N42: Imidazopyridazines as potent inhibitors of Plasmodium falciparum calcium-dependent protein kinase 1 (PfCDPK1): preparation and evaluation of pyrazole … JM Large | O42: Substituted imidazopyridazines are potent and selective inhibitors of Plasmodium falciparum calcium-dependent protein kinase 1 (PfCDPK1) TM Chapman | P42: New Amidated 3,6-Diphenylated Imidazopyridazines with Potent Antiplasmodium Activity Are Dual Inhibitors of Plasmodium Phosphatidylinositol-4-kinase and cGMP … PM Cheuka | T42: PF3D7_0217500 | V42: 0.54 | W42: -0.07 | X42: 0.86 | AA42: 1.827664212 | AB42: 0.8228906159 | AC42: 5.078323128 | AD42: shared 3 stages | AE42: 2.221029353 | AF42: 0.3598952186 | AH42: 5.378841513 | AI42: 92.93770916 | AK42: 5 | AL42: 1
A43: MMV674766 | D43: 7.86 | E43: 93.9 | F43: 66.4 | G43: 262.9 | I43: 11.94656489 | J43: 8.44783715 | K43: 33.44783715 | M43: PKG | N43: Imidazopyridazines as potent inhibitors of Plasmodium falciparum calcium-dependent protein kinase 1 (PfCDPK1): preparation and evaluation of pyrazole … JM Large | O43: Substituted imidazopyridazines are potent and selective inhibitors of Plasmodium falciparum calcium-dependent protein kinase 1 (PfCDPK1) TM Chapman | P43: New Amidated 3,6-Diphenylated Imidazopyridazines with Potent Antiplasmodium Activity Are Dual Inhibitors of Plasmodium Phosphatidylinositol-4-kinase and cGMP … PM Cheuka | T43: PF3D7_1436600 | V43: 0.47 | W43: -0.44 | X43: 0.1 | AA43: 0 | AB43: 0.0682448935 | AC43: 2.025305457 | AD43: gct V enriched | AE43: 0.8 | AF43: 0.2 | AH43: 14.93320611 | AI43: 167.2391858 | AK43: 5 | AL43: 1
A44: MMV666620 | D44: 11.59 | E44: 68.4 | F44: 78.9 | G44: 428 | I44: 5.901639344 | J44: 6.807592752 | K44: 36.92838654 | M44: CDPK1 | N44: Imidazopyridazines as potent inhibitors of Plasmodium falciparum calcium-dependent protein kinase 1 (PfCDPK1): preparation and evaluation of pyrazole … JM Large | O44: Substituted imidazopyridazines are potent and selective inhibitors of Plasmodium falciparum calcium-dependent protein kinase 1 (PfCDPK1) TM Chapman | P44: New Amidated 3,6-Diphenylated Imidazopyridazines with Potent Antiplasmodium Activity Are Dual Inhibitors of Plasmodium Phosphatidylinositol-4-kinase and cGMP … PM Cheuka | T44: PF3D7_0217500 | V44: 0.54 | W44: -0.07 | X44: 0.86 | AA44: 1.827664212 | AB44: 0.8228906159 | AC44: 5.078323128 | AD44: shared 3 stages | AE44: 2.221029353 | AF44: 0.3598952186 | AH44: 2.657164047 | AI44: 102.6087167 | AK44: 5 | AL44: 1
A45: MMV666620 | D45: 11.59 | E45: 68.4 | F45: 78.9 | G45: 428 | I45: 5.901639344 | J45: 6.807592752 | K45: 36.92838654 | M45: PKG | N45: Imidazopyridazines as potent inhibitors of Plasmodium falciparum calcium-dependent protein kinase 1 (PfCDPK1): preparation and evaluation of pyrazole … JM Large | O45: Substituted imidazopyridazines are potent and selective inhibitors of Plasmodium falciparum calcium-dependent protein kinase 1 (PfCDPK1) TM Chapman | P45: New Amidated 3,6-Diphenylated Imidazopyridazines with Potent Antiplasmodium Activity Are Dual Inhibitors of Plasmodium Phosphatidylinositol-4-kinase and cGMP … PM Cheuka | T45: PF3D7_1436600 | V45: 0.47 | W45: -0.44 | X45: 0.1 | AA45: 0 | AB45: 0.0682448935 | AC45: 2.025305457 | AD45: gct V enriched | AE45: 0.8 | AF45: 0.2 | AH45: 7.37704918 | AI45: 184.6419327 | AK45: 5 | AL45: 1
A46: MMV669286 | D46: 0.88 | E46: 4.1 | F46: 3 | G46: 34.2 | I46: 4.659090909 | J46: 3.409090909 | K46: 38.86363636 | M46: CDPK1 | N46: Imidazopyridazines as potent inhibitors of Plasmodium falciparum calcium-dependent protein kinase 1 (PfCDPK1): preparation and evaluation of pyrazole … JM Large | O46: Substituted imidazopyridazines are potent and selective inhibitors of Plasmodium falciparum calcium-dependent protein kinase 1 (PfCDPK1) TM Chapman | P46: New Amidated 3,6-Diphenylated Imidazopyridazines with Potent Antiplasmodium Activity Are Dual Inhibitors of Plasmodium Phosphatidylinositol-4-kinase and cGMP … PM Cheuka | T46: PF3D7_0217500 | V46: 0.54 | W46: -0.07 | X46: 0.86 | AA46: 1.827664212 | AB46: 0.8228906159 | AC46: 5.078323128 | AD46: shared 3 stages | AE46: 2.221029353 | AF46: 0.3598952186 | AH46: 2.097716945 | AI46: 107.9859758 | AK46: 5 | AL46: 1
A47: MMV669286 | D47: 0.88 | E47: 4.1 | F47: 3 | G47: 34.2 | I47: 4.659090909 | J47: 3.409090909 | K47: 38.86363636 | M47: PKG | N47: Imidazopyridazines as potent inhibitors of Plasmodium falciparum calcium-dependent protein kinase 1 (PfCDPK1): preparation and evaluation of pyrazole … JM Large | O47: Substituted imidazopyridazines are potent and selective inhibitors of Plasmodium falciparum calcium-dependent protein kinase 1 (PfCDPK1) TM Chapman | P47: New Amidated 3,6-Diphenylated Imidazopyridazines with Potent Antiplasmodium Activity Are Dual Inhibitors of Plasmodium Phosphatidylinositol-4-kinase and cGMP … PM Cheuka | T47: PF3D7_1436600 | V47: 0.47 | W47: -0.44 | X47: 0.1 | AA47: 0 | AB47: 0.0682448935 | AC47: 2.025305457 | AD47: gct V enriched | AE47: 0.8 | AF47: 0.2 | AH47: 5.823863636 | AI47: 194.3181818 | AK47: 5 | AL47: 1
A48: MMV000025 | B48: Pyronaridine | D48: 17 | E48: 27 | G48: 938.4 | I48: 1.588235294 | K48: 55.2 | M48: DNA topoisomerase2 (TOP2) | N48: Pyronaridine: An update of its pharmacological activities andmechanisms of action Christian Bailly 2021 | O48: Review of pyronaridine anti-malarial properties and product characteristics Simon L Croft 2012 | T48: PF3D7_1433500 | V48: 0.79 | W48: -0.02 | X48: 0.28 | AA48: 1.125062335 | AB48: 0.9615132377 | AC48: 2.433320018 | AD48: shared 3 stages | AE48: 1.170095524 | AF48: 0.4623569144 | AH48: 1.357355243 | AI48: 119.388287 | AK48: 5 | AL48: 1
A49: MMV000073 | B49: Cipargamin/KAE609/NITD609 | D49: 0.5 | E49: 1.03 | G49: 27.7 | I49: 2.06 | K49: 55.4 | M49: ATP4 | N49: Rottmann M, McNamara C, Yeung BK, Lee MC, Zou B, Russell B, Seitz P, Plouffe DM, Dharia NV, Tan J, Cohen SB, Spencer KR, Gonzalez-Paez GE, Lakshminarayana SB, Goh A, Suwanarusk R, Jegla T, Schmitt EK, Beck HP, Brun R, Nosten F, Renia L, Dartois V, Keller TH, Fidock DA, Winzeler EA, Diagana TT. 2010. Spiroindolones, a potent compound class for the treatment of malaria. Science 329:1175–1180. | O49: N.J. Spillman, R.J. Allen, C.W. McNamara, B.K.S. Yeung, E.A. Winzeler, et al. Na+ regulation in the malaria parasite Plasmodium falciparum involves the cation ATPase PfATP4 and is a target of the spiroindolone antimalarials 2013 | P49: J.C. Van Pelt-Koops, H.E. Pett, W. Graumans, M. van der Vegte-Bolmer, G.J. van Gemert, M. Rottmann, et al. The spiroindolone drug candidate NITD609 potently inhibits gametocytogenesis and blocks Plasmodium falciparum transmission to anopheles mosquito vector 2012 | T49: PF3D7_1211900 | V49: 0.33 | W49: -0.22 | X49: -0.49 | AA49: 1.773190862 | AB49: 0.4394601472 | AC49: 2.593813664 | AD49: shared 3 stages | AE49: 4.034929842 | AF49: 0.683623071 | AH49: 0.5105417146 | AI49: 81.03880976 | AK49: 5 | AL49: 1
A50: MMV000062 | B50: Pentamidine | D50: 10 | E50: 697.28 | F50: 812.56 | G50: 700 | I50: 69.728 | J50: 81.256 | K50: 70 | M50: DNA topoisomerase2 (TOP2) | N50: A. Stead, P.G. Bray, I.G. Edwards, H.P. DeKoning, B.C. Elford, P.A. Stocks, S.A. Ward Mol. Pharmacol., 59 (2001), pp. 1298-1306 | O50: A.E. Purfield, R.R. Tidwell, S.R. Meshnik Malar. J., 8 (2009), p. 104 | T50: PF3D7_1433500 | V50: 0.79 | W50: -0.02 | X50: 0.28 | AA50: 1.125062335 | AB50: 0.9615132377 | AC50: 2.433320018 | AD50: shared 3 stages | AE50: 1.170095524 | AF50: 0.4623569144 | AH50: 59.59171588 | AI50: 151.3981901 | AK50: 5 | AL50: 1
A51: MMV000062 | B51: Pentamidine | D51: 10 | E51: 697.28 | F51: 812.56 | G51: 700 | I51: 69.728 | J51: 81.256 | K51: 70 | M51: calcium-transporting ATPase (ATP6) | N51: A. Stead, P.G. Bray, I.G. Edwards, H.P. DeKoning, B.C. Elford, P.A. Stocks, S.A. Ward Mol. Pharmacol., 59 (2001), pp. 1298-1306 | O51: A.E. Purfield, R.R. Tidwell, S.R. Meshnik Malar. J., 8 (2009), p. 104 | T51: PF3D7_0106300 | V51: 0.39 | W51: -0.03 | X51: -0.13 | AA51: 1.687602771 | AB51: 0.7605873874 | AC51: 3.937969318 | AD51: shared 3 stages | AE51: 2.218815088 | AF51: 0.4285464499 | AH51: 31.3636364 | AI51: 163.3428535 | AK51: 5 | AL51: 1
A52: MMV000662 | D52: 36.7 | E52: 1388 | F52: 2000 | G52: 3324.48 | I52: 37.82016349 | J52: 54.49591281 | K52: 90.5852861 | M52: ATP4 | N52: E.L. Allman, H.J. Painter, J. Samra, M. Carrasquilla, M. Llinas Metabolomic profiling of the malaria box reveals antimalarial target pathways 2016 | O52: Diverse chemotypes disrupt ion homeostasis in the malaria parasite AM Lehane 2014 | P52: Biochemical characterization and chemical inhibition of PfATP4-associated Na+-ATPase activity in Plasmodium falciparum membranes JEO Rosling 2018 | T52: PF3D7_1211900 | V52: 0.33 | W52: -0.22 | X52: -0.49 | AA52: 1.773190862 | AB52: 0.4394601472 | AC52: 2.593813664 | AD52: shared 3 stages | AE52: 4.034929842 | AF52: 0.683623071 | AH52: 9.373189861 | AI52: 132.5076492 | AK52: 5 | AL52: 1
A53: MMV652007 | B53: AN3661 | D53: 46.26 | E53: 1086 | G53: 5000 | I53: 23.47600519 | K53: 108.0847384 | M53: Cleavage and polyadenylation specificity factor subunit 3 (CPSF3) | N53: A potent antimalarial benzoxaborole targets a Plasmodium falciparum cleavage and polyadenylation specificity factor homologue. Ebere Sonoiki. 2017 | T53: PF3D7_1438500 | V53: 0.77 | W53: 0.29 | X53: 0.06 | AA53: 0.1907731686 | AB53: 0.1746748582 | AC53: 0 | AD53: enriched troph | AE53: 1.092161577 | AF53: 1.2 | AH53: 21.49499276 | AI53: 90.07061536 | AK53: 5 | AL53: 1
A54: MMV652103 | D54: 7.25 | E54: 59.6 | F54: 5 | G54: 133.3 | I54: 8.220689655 | J54: 0.6896551724 | K54: 18.3862069 | M54: CDPK4 | N54: Imidazopyridazines as potent inhibitors of Plasmodium falciparum calcium-dependent protein kinase 1 (PfCDPK1): preparation and evaluation of pyrazole … JM Large | O54: Substituted imidazopyridazines are potent and selective inhibitors of Plasmodium falciparum calcium-dependent protein kinase 1 (PfCDPK1) TM Chapman | P54: New Amidated 3,6-Diphenylated Imidazopyridazines with Potent Antiplasmodium Activity Are Dual Inhibitors of Plasmodium Phosphatidylinositol-4-kinase and cGMP … PM Cheuka | Q54: Exploring the transmission-blocking activity of antiplasmodial 3, 6-diarylated imidazopyridazines D Coertzen | T54: PF3D7_0717500 | V54: 0.32 | W54: 0.52 | X54: 0.27 | AA54: 0 | AB54: 0.4054116887 | AC54: 56.3615251 | AD54: gct V enriched | AE54: 0.4 | AF54: 0.001 | AH54: 20.55172414 | AI54: 1000 | AK54: 5 | AL54: 2
A55: MMV672652 | D55: 0.56 | E55: 10.8 | F55: 3.3 | G55: 18.1 | I55: 19.28571429 | J55: 5.892857143 | K55: 32.32142857 | M55: CDPK4 | N55: Imidazopyridazines as potent inhibitors of Plasmodium falciparum calcium-dependent protein kinase 1 (PfCDPK1): preparation and evaluation of pyrazole … JM Large | O55: Substituted imidazopyridazines are potent and selective inhibitors of Plasmodium falciparum calcium-dependent protein kinase 1 (PfCDPK1) TM Chapman | P55: New Amidated 3,6-Diphenylated Imidazopyridazines with Potent Antiplasmodium Activity Are Dual Inhibitors of Plasmodium Phosphatidylinositol-4-kinase and cGMP … PM Cheuka | T55: PF3D7_0717500 | V55: 0.32 | W55: 0.52 | X55: 0.27 | AA55: 0 | AB55: 0.4054116887 | AC55: 56.3615251 | AD55: gct V enriched | AE55: 0.4 | AF55: 0.001 | AH55: 48.21428571 | AI55: 1000 | AK55: 5 | AL55: 2
A56: MMV666620 | D56: 11.59 | E56: 68.4 | F56: 78.9 | G56: 428 | I56: 5.901639344 | J56: 6.807592752 | K56: 36.92838654 | M56: CDPK4 | N56: Imidazopyridazines as potent inhibitors of Plasmodium falciparum calcium-dependent protein kinase 1 (PfCDPK1): preparation and evaluation of pyrazole … JM Large | O56: Substituted imidazopyridazines are potent and selective inhibitors of Plasmodium falciparum calcium-dependent protein kinase 1 (PfCDPK1) TM Chapman | P56: New Amidated 3,6-Diphenylated Imidazopyridazines with Potent Antiplasmodium Activity Are Dual Inhibitors of Plasmodium Phosphatidylinositol-4-kinase and cGMP … PM Cheuka | T56: PF3D7_0717500 | V56: 0.32 | W56: 0.52 | X56: 0.27 | AA56: 0 | AB56: 0.4054116887 | AC56: 56.3615251 | AD56: gct V enriched | AE56: 0.4 | AF56: 0.001 | AH56: 14.75409836 | AI56: 1000 | AK56: 5 | AL56: 2
A57: MMV669286 | D57: 0.88 | E57: 4.1 | F57: 3 | G57: 34.2 | I57: 4.659090909 | J57: 3.409090909 | K57: 38.86363636 | M57: CDPK4 | N57: Imidazopyridazines as potent inhibitors of Plasmodium falciparum calcium-dependent protein kinase 1 (PfCDPK1): preparation and evaluation of pyrazole … JM Large | O57: Substituted imidazopyridazines are potent and selective inhibitors of Plasmodium falciparum calcium-dependent protein kinase 1 (PfCDPK1) TM Chapman | P57: New Amidated 3,6-Diphenylated Imidazopyridazines with Potent Antiplasmodium Activity Are Dual Inhibitors of Plasmodium Phosphatidylinositol-4-kinase and cGMP … PM Cheuka | T57: PF3D7_0717500 | V57: 0.32 | W57: 0.52 | X57: 0.27 | AA57: 0 | AB57: 0.4054116887 | AC57: 56.3615251 | AD57: gct V enriched | AE57: 0.4 | AF57: 0.001 | AH57: 11.64772727 | AI57: 1000 | AK57: 5 | AL57: 2
A58: MMV666021 | D58: 94.4 | E58: 819 | F58: 603 | G58: 5000 | I58: 8.675847458 | J58: 6.387711864 | K58: 52.96610169 | M58: Mitochondrial electron transport chain (bc1 inhibitor) (Gamo) | N58: Open source drug discovery with the malaria box compound collection for neglected diseases and beyond Voorhis 2016 | O58: The relative rate of kill of the MMV Malaria Box compounds provides links to the mode of antimalarial action and highlights scaffolds of medicinal chemistry interest I Ullah | V58: 0.8483333333 | W58: 0.98 | X58: 0.81 | Y58: Average | AA58: 0.4530828605 | AB58: 1.700657792 | AC58: 7.360729508 | AD58: gct V enriched | AE58: 0.2664162436 | AF58: 0.06155407015 | AH58: 32.56500933 | AI58: 860.4809002 | AK58: 5 | AL58: 2
A59: MMV674850 | D59: 2.65 | E59: 4.47 | F59: 28.7 | G59: 208.8 | I59: 1.686792453 | J59: 10.83018868 | K59: 78.79245283 | M59: CDPK4 | N59: Imidazopyridazines as potent inhibitors of Plasmodium falciparum calcium-dependent protein kinase 1 (PfCDPK1): preparation and evaluation of pyrazole … JM Large | O59: Substituted imidazopyridazines are potent and selective inhibitors of Plasmodium falciparum calcium-dependent protein kinase 1 (PfCDPK1) TM Chapman | P59: New Amidated 3,6-Diphenylated Imidazopyridazines with Potent Antiplasmodium Activity Are Dual Inhibitors of Plasmodium Phosphatidylinositol-4-kinase and cGMP … PM Cheuka | T59: PF3D7_0717500 | V59: 0.32 | W59: 0.52 | X59: 0.27 | AA59: 0 | AB59: 0.4054116887 | AC59: 56.3615251 | AD59: gct V enriched | AE59: 0.4 | AF59: 0.001 | AH59: 4.216981132 | AI59: 1000 | AK59: 5 | AL59: 2
A60: MMV674253 | B60: AZ412/MMV253 | D60: 9 | E60: 141.97 | G60: 5000 | I60: 15.77444444 | K60: 555.5555556 | M60: Vacuolar ATP synthase (V-type H+-ATPase) subunit D | N60: Hameed PS, Solapure S, Patil V, Henrich PP, Magistrado PA, Bharath S, Murugan K, Viswanath P, Puttur J, Srivastava A, Bellale E, Panduga V, Shanbag G, Awasthy D, Landge S, Morayya S, Koushik K, Saralaya R, Raichurkar A, Rautela N, Roy Choudhury N, Ambady A, Nandishaiah R, Reddy J, Prabhakar KR, Menasinakai S, Rudrapatna S, Chatterji M, Jimenez-Diaz MB, Martinez MS, Sanz LM, Coburn-Flynn O, Fidock DA, Lukens AK, Wirth DF, Bandodkar B, Mukherjee K, McLaughlin RE, Waterson D, Rosenbrier-Ribeiro L, Hickling K, Balasubramanian V, Warner P, Hosagrahara V, Dudley A, Iyer PS, Narayanan S, Kavanagh S, Sambandamurthy VK. 2015. Triaminopyrimidine is a fast-killing and long-acting antimalarial clinical candidate. Nat Commun 6:6715. | T60: PF3D7_1341900 | V60: 0.35 | W60: 0.76 | X60: 0.31 | AA60: 1.760060687 | AB60: 1.255572788 | AC60: 28.76351442 | AD60: gct V enriched | AE60: 1.401799006 | AF60: 0.06119073842 | AH60: 11.25300016 | AI60: 1000 | AK60: 5 | AL60: 2
A61: MMV688533 | B61: MMV533 | D61: 1.9 | E61: 247.1 | G61: 5000 | I61: 130.0526316 | K61: 2631.578947 | M61: Plasmodium protein (PfACG1) | N61: The antimalarial MMV688533 provides potential for single-dose cures with a high barrier to Plasmodium falciparum parasite resistance James M Murithi 2021 | T61: PF3D7_0910300 | V61: 1 | W61: 1.02 | X61: 0.36 | AA61: 0 | AB61: 1.036455589 | AC61: 1.3101297 | AD61: gct V enriched | AE61: 2 | AF61: 2 | AH61: 65.02631579 | AI61: 1000 | AK61: 5 | AL61: 2
A62: MMV687815 | B62: BRD7929 | D62: 1.07 | E62: 12.45 | G62: 5000 | I62: 11.63551402 | K62: 4672.897196 | M62: phenylalanine-tRNA synthetase (PheRS/FRS) | N62: Inhibition of Plasmodium falciparum phenylalanine tRNA synthetase provides opportunity for antimalarial drug development. Sharma. 2022 | O62: Novel antimalarial target identified. Crunkhorn. 2016 | P62: Kato N, Comer E, Sakata-Kato T, Sharma A, Sharma M, Maetani M, Bastien J, Brancucci NM, Bittker JA, Corey V et al.. (2016) Diversity-oriented synthesis yields novel multistage antimalarial inhibitors. | T62: PF3D7_1104000 | V62: 0.3 | W62: 0.21 | X62: 0.02 | AA62: 1.202079354 | AB62: 1.100642413 | AC62: 3.641588834 | AD62: shared 3 stages | AE62: 1.011326538 | AF62: 0.3300974955 | AH62: 11.50519993 | AI62: 1000 | AK62: 5 | AL62: 2
A63: MMV000011 | B63: Doxycycline hydrochloride | D63: 1258.925412 | E63: 5000 | F63: 5000 | G63: 5000 | I63: 3.971641174 | J63: 3.971641174 | K63: 3.971641174 | M63: targets ribosomes | N63: Multiple antibiotics exert delayed effects against the Plasmodium falciparum apicoplast Erica L Dahl 2007 | V63: 0.8017096774 | W63: 0.4807870968 | X63: 0.1553258065 | Y63: Average | AA63: 24.7129777 | AB63: 85.40557604 | AC63: 1459.533101 | AD63: gct V enriched | AE63: 0.2893602367 | AF63: 0.01693211184 | AH63: 13.72559416 | AI63: 234.5626589 | AK63: 5 | AL63: 3
A64: MMV007116 | D64: 351 | E64: 5000 | F64: 253 | G64: 5000 | I64: 14.24501425 | J64: 0.7207977208 | K64: 14.24501425 | M64: Mitochondrial electron transport chain (bc1 inhibitor) | N64: E.L. Allman, H.J. Painter, J. Samra, M. Carrasquilla, M. Llinas Metabolomic profiling of the malaria box reveals antimalarial target pathways 2016 | O64: Open source drug discovery with the malaria box compound collection for neglected diseases and beyond Voorhis 2016 | P64: Metabolomics-based screening of the malaria box reveals both novel and established mechanisms of action DJ Creek | V64: 0.8483333333 | W64: 0.98 | X64: 0.81 | Y64: Average | AA64: 0.4530828605 | AB64: 1.700657792 | AC64: 7.360729508 | AD64: gct V enriched | AE64: 0.2664162436 | AF64: 0.06155407015 | AH64: 53.46901545 | AI64: 231.4227834 | AK64: 5 | AL64: 3
A65: MMV1577530 | B65: MMV1577530 | D65: 25.87 | E65: 147.14 | G65: 481.57 | I65: 5.687669115 | K65: 18.61499807 | M65: proteosome | N65: Provided from MMV | V65: 0.4142857143 | W65: 0.2892857143 | X65: 0.1192857143 | Y65: Average | AA65: 4.371904225 | AB65: 14.74472314 | AC65: 53.19581726 | AD65: gct V enriched | AE65: 0.2965063625 | AF65: 0.08218511248 | AH65: 19.18228354 | AI65: 226.5008528 | AK65: 5 | AL65: 3
A66: MMV011895 | B66: MMV011895 | D66: 233 | E66: 2156 | G66: 5000 | I66: 9.253218884 | K66: 21.45922747 | M66: 6-phosphogluconate dehydrogenase | N66: Mapping the malaria parasite druggable genome by using in vitro evolution and chemogenomics. Cowell. 2018 | O66: Identification of β-hematin inhibitors in the MMV Malaria Box KY Fong 2015 | P66: Characterization of Plasmodium falciparum 6-phosphogluconate dehydrogenase as an antimalarial drug target K Haeussler 2018 | T66: PF3D7_1454700 | V66: 0.29 | W66: 0.18 | X66: -0.08 | AA66: 1.717623246 | AB66: 5.869374848 | AC66: 16.43328822 | AD66: gct V enriched | AE66: 0.2926415999 | AF66: 0.1045209713 | AH66: 31.61962922 | AI66: 205.310257 | AK66: 5 | AL66: 3
A67: MMV665980 | D67: 210.8 | E67: 5000 | F67: 5000 | G67: 5000 | I67: 23.71916509 | J67: 23.71916509 | K67: 23.71916509 | M67: phosphopantothenoylcysteine decarboxylase | N67: A novel approach for the discovery of chemically diverse anti-malarial compounds targeting the Plasmodium falciparum Coenzyme A synthesis pathway S Fletcher | T67: PF3D7_0816100 | V67: 0.73 | W67: -0.05 | X67: 0.35 | AA67: 0 | AB67: 2.147127446 | AC67: 1.894266125 | AD67: gct I/II enriched | AE67: 4 | AF67: 0.1 | AH67: 5.929791271 | AI67: 237.1916509 | AK67: 5 | AL67: 3
A68: MMV674850 | D68: 2.65 | E68: 4.47 | F68: 28.7 | G68: 208.8 | I68: 1.686792453 | J68: 10.83018868 | K68: 78.79245283 | M68: CDPK1 | N68: Imidazopyridazines as potent inhibitors of Plasmodium falciparum calcium-dependent protein kinase 1 (PfCDPK1): preparation and evaluation of pyrazole … JM Large | O68: Substituted imidazopyridazines are potent and selective inhibitors of Plasmodium falciparum calcium-dependent protein kinase 1 (PfCDPK1) TM Chapman | P68: New Amidated 3,6-Diphenylated Imidazopyridazines with Potent Antiplasmodium Activity Are Dual Inhibitors of Plasmodium Phosphatidylinositol-4-kinase and cGMP … PM Cheuka | T68: PF3D7_0217500 | V68: 0.54 | W68: -0.07 | X68: 0.86 | AA68: 1.827664212 | AB68: 0.8228906159 | AC68: 5.078323128 | AD68: shared 3 stages | AE68: 2.221029353 | AF68: 0.3598952186 | AH68: 0.7594642775 | AI68: 218.9316467 | AK68: 5 | AL68: 3
A69: MMV674850 | D69: 2.65 | E69: 4.47 | F69: 28.7 | G69: 208.8 | I69: 1.686792453 | J69: 10.83018868 | K69: 78.79245283 | M69: PKG | N69: Imidazopyridazines as potent inhibitors of Plasmodium falciparum calcium-dependent protein kinase 1 (PfCDPK1): preparation and evaluation of pyrazole … JM Large | O69: Substituted imidazopyridazines are potent and selective inhibitors of Plasmodium falciparum calcium-dependent protein kinase 1 (PfCDPK1) TM Chapman | P69: New Amidated 3,6-Diphenylated Imidazopyridazines with Potent Antiplasmodium Activity Are Dual Inhibitors of Plasmodium Phosphatidylinositol-4-kinase and cGMP … PM Cheuka | T69: PF3D7_1436600 | V69: 0.47 | W69: -0.44 | X69: 0.1 | AA69: 0 | AB69: 0.0682448935 | AC69: 2.025305457 | AD69: gct V enriched | AE69: 0.8 | AF69: 0.2 | AH69: 2.108490566 | AI69: 393.9622642 | AK69: 5 | AL69: 3
A70: MMV666023 | D70: 36.8 | E70: 2000 | F70: 183.5 | G70: 5000 | I70: 54.34782609 | J70: 4.986413043 | K70: 135.8695652 | M70: PfA-M17 leucyl aminopeptidase | N70: Open source drug discovery with the malaria box compound collection for neglected diseases and beyond Voorhis 2016 | O70: Screening the Medicines for Malaria Venture "Malaria Box" against the Plasmodium falciparum Aminopeptidases, M1, M17 and M18 A Paiardini | P70: Malaria Box Compounds against Anopheles gambiae (Diptera: Culicidae) Carboxypeptidase B Activity to Block Malaria Transmission T Pomun | Q70: Metabolomics-based screening of the malaria box reveals both novel and established mechanisms of action DJ Creek | T70: PF3D7_1446200 | V70: 0.54 | W70: 0.07 | X70: -0.73 | AA70: 5.684407499 | AB70: 6.582454249 | AC70: 12.65007807 | AD70: shared 3 stages | AE70: 0.8635696176 | AF70: 0.4493575035 | AH70: 62.93392562 | AI70: 302.3640735 | AK70: 5 | AL70: 3
A71: MMV666023 | D71: 36.8 | E71: 2000 | F71: 183.5 | G71: 5000 | I71: 54.34782609 | J71: 4.986413043 | K71: 135.8695652 | M71: PfA-M1 alanyl aminopeptidase | N71: Open source drug discovery with the malaria box compound collection for neglected diseases and beyond Voorhis 2016 | O71: Screening the Medicines for Malaria Venture "Malaria Box" against the Plasmodium falciparum Aminopeptidases, M1, M17 and M18 A Paiardini | P71: Malaria Box Compounds against Anopheles gambiae (Diptera: Culicidae) Carboxypeptidase B Activity to Block Malaria Transmission T Pomun | Q71: Metabolomics-based screening of the malaria box reveals both novel and established mechanisms of action DJ Creek | T71: PF3D7_1311800 | V71: 0.56 | W71: 0.06 | X71: -0.86 | AA71: 15.96968869 | AB71: 9.98902256 | AC71: 32.83855153 | AD71: shared 3 stages | AE71: 1.598723859 | AF71: 0.4863091685 | AH71: 33.99450493 | AI71: 279.3892734 | AK71: 5 | AL71: 3
A72: MMV1557817 | B72: MIPS1778 | D72: 32.83 | E72: 1798 | G72: 5000 | I72: 54.76698142 | K72: 152.2997259 | M72: PfA-M17 leucyl aminopeptidase | N72: Characterising the M1 and M17 aminopeptidases in Plasmodium falciparum. R Edgar. 2018 | T72: PF3D7_1446200 | V72: 0.54 | W72: 0.07 | X72: -0.73 | AA72: 5.684407499 | AB72: 6.582454249 | AC72: 12.65007807 | AD72: shared 3 stages | AE72: 0.8635696176 | AF72: 0.4493575035 | AH72: 63.41930089 | AI72: 338.9277461 | AK72: 5 | AL72: 3
A73: MMV1557817 | B73: MIPS1778 | D73: 32.83 | E73: 1798 | G73: 5000 | I73: 54.76698142 | K73: 152.2997259 | M73: PfA-M1 alanyl aminopeptidase | N73: Characterising the M1 and M17 aminopeptidases in Plasmodium falciparum. R Edgar. 2018 | T73: PF3D7_1311800 | V73: 0.56 | W73: 0.06 | X73: -0.86 | AA73: 15.96968869 | AB73: 9.98902256 | AC73: 32.83855153 | AD73: shared 3 stages | AE73: 1.598723859 | AF73: 0.4863091685 | AH73: 34.25668612 | AI73: 313.1746957 | AK73: 5 | AL73: 3
A74: MMV000031 | B74: Cycloheximide | D74: 198 | E74: 912.61 | F74: 476.67 | G74: 2692.47 | I74: 4.609141414 | J74: 2.407424242 | K74: 13.59833333 | M74: 60S ribosomal subunit | N74: Geary TG, Jensen JB. 1983. Effects of antibiotics on Plasmodium falciparum in vitro. Am. J. Trop. Med. Hyg. 32:221–225. | V74: 0.896 | W74: 0.4648 | X74: 0.1642 | Y74: Average | AA74: 28.65293969 | AB74: 19.96706839 | AC74: 1136.274949 | AD74: gct V enriched | AE74: 1.435009844 | AF74: 0.02521655495 | AH74: 3.211923203 | AI74: 539.2621378 | AK74: 5 | AL74: 4
A75: MMV000054 | B75: Quinine | D75: 29.25 | E75: 374.94 | F75: 1000 | G75: 5000 | I75: 12.81846154 | J75: 34.18803419 | K75: 170.9401709 | M75: purine nucleoside phosphorylase (PNP) | N75: A. F. Cowman, D. Galatis, J. K. Thompson, Selection for mefloquine resistance in Plasmodium falciparum is linked to amplification of the pfmdr1 gene and cross-resistance to halofantrine and quinine. Proc. Natl. Acad. Sci. U.S.A. 91, 1143–1147 (1994). | O75: K. N. Olafson, T. Q. Nguyen, J. D. Rimer, P. G. Vekilov, Antimalarials inhibit hematin crystallization by unique drug–surface site interactions. Proc. Natl. Acad. Sci. U.S.A. 114, 7531–7536 (2017). | P75: M. W. Davidson, B. G. Griggs, D. W. Boykin, W. D. Wilson, Molecular structural effects involved in the interaction of quinolinemethanolamines with DNA. Implications for antimalarial action. J. Med. Chem. 20, 1117–1122 (1977). | Q75: Identifying purine nucleoside phosphorylase as the target of quinine using cellular thermal shift assay Jerzy M. Dziekan 2020 | T75: PF3D7_0513300 | V75: 0.88 | W75: 0.31 | X75: -0.78 | AA75: 59.71899427 | AB75: 106.9727075 | AC75: 226.5845926 | AD75: gct V enriched | AE75: 0.5582638383 | AF75: 0.2635615846 | AH75: 22.96129654 | AI75: 648.5777175 | AK75: 5 | AL75: 4
A76: MMV1581373 | B76: KAE609 analog | D76: 0.55 | E76: 1.14 | G76: 0.11 | I76: 2.07 | K76: 0.2000 | M76: ATP4 | N76: Provided from MMV | T76: PF3D7_1211900 | V76: 0.33 | W76: -0.22 | X76: -0.49 | AA76: 1.773190862 | AB76: 0.4394601472 | AC76: 2.593813664 | AD76: shared 3 stages | AE76: 4.034929842 | AF76: 0.683623071 | AH76: 0.5136959882 | AI76: 0.29255888 | AK76: 5 | AL76: 5
A77: MMV643121 | B77: M5717 (DDD107498) | D77: 1.00 | E77: 3.57 | G77: 0.25 | I77: 3.57 | K77: 0.2500 | M77: eEF2 | N77: Baragaña B, Hallyburton I, Lee MC, Norcross NR, Grimaldi R, Otto TD, Proto WR, Blagborough AM, Meister S, Wirjanata G et al.. (2015) A novel multiple-stage antimalarial agent that inhibits protein synthesis. | T77: PF3D7_1451100 | V77: 0.72 | W77: -0.3 | X77: -1 | AA77: 36.21509657 | AB77: 20.79857305 | AC77: 60.26804781 | AD77: shared 3 stages | AE77: 1.741229867 | AF77: 0.6009004421 | AH77: 2.050274963 | AI77: 0.4160422967 | AK77: 5 | AL77: 5
A78: Epoxomycin | B78: Epoxomycin | D78: 8.00 | E78: 12.10 | F78: 0.42 | G78: 3.80 | I78: 1.51 | J78: 0.05 | K78: 0.4750 | M78: Proteosome subunit beta type-5 | N78: rasad R, Atul Kolla VK, Legac J, Singhal N, NavaleR, Rosenthal PJ & Sijwali PS (2013) BlockingPlasmodium falciparumdevelopment via dualinhibition of hemoglobin degradation and theubiquitin proteasome system by MG13 | T78: PF3D7_1011400 | V78: 0.17 | W78: 0.88 | X78: 0.57 | AA78: 1.39576648 | AB78: 5.489058493 | AC78: 6.356422545 | AD78: gct V enriched | AE78: 0.2542815826 | AF78: 0.2195836527 | AH78: 5.948130355 | AI78: 2.16318471 | AK78: 5 | AL78: 5
A79: GNF179 | B79: GNF179 | D79: 4.31 | E79: 19.92 | F79: 9.15 | G79: 3.36 | I79: 4.62 | J79: 2.12 | K79: 0.7798 | M79: CARL | N79: Pan-active imidazolopiperazine antimalarials target the Plasmodium falciparum intracellular secretory pathway GM LaMonte | O79: Plasmodium falciparum Cyclic Amine Resistance Locus (PfCARL), a Resistance Mechanism for Two Distinct Compound Classes Pamela A. Magistrado | P79: UDP-galactose and Acetyl-CoA transporters as Plasmodium multidrug resistance genes Michelle Yi-Xiu Lim | T79: PF3D7_0321900 | V79: 0.31 | W79: -0.21 | X79: -0.06 | AA79: 0 | AB79: 0 | AC79: 0.05372497274 | AD79: gct V enriched | AE79: 1 | AF79: 0.8 | AH79: 4.621809745 | AI79: 0.9747679814 | AK79: 5 | AL79: 5
A80: GNF179 | B80: GNF179 | D80: 4.31 | E80: 19.92 | F80: 9.15 | G80: 3.36 | I80: 4.62 | J80: 2.12 | K80: 0.7798 | M80: acetyl-CoA transporter 1 | N80: Pan-active imidazolopiperazine antimalarials target the Plasmodium falciparum intracellular secretory pathway GM LaMonte | O80: Plasmodium falciparum Cyclic Amine Resistance Locus (PfCARL), a Resistance Mechanism for Two Distinct Compound Classes Pamela A. Magistrado | P80: UDP-galactose and Acetyl-CoA transporters as Plasmodium multidrug resistance genes Michelle Yi-Xiu Lim | T80: PF3D7_1036800 | V80: 1.52 | W80: 0 | X80: 0.37 | AA80: 0 | AB80: 0 | AC80: 0.7378008287 | AD80: gct V enriched | AE80: 2 | AF80: 0.2 | AH80: 2.310904872 | AI80: 3.899071926 | AK80: 5 | AL80: 5
A81: GNF179 | B81: GNF179 | D81: 4.31 | E81: 19.92 | F81: 9.15 | G81: 3.36 | I81: 4.62 | J81: 2.12 | K81: 0.7798 | M81: UDP-galactose transporter | N81: Pan-active imidazolopiperazine antimalarials target the Plasmodium falciparum intracellular secretory pathway GM LaMonte | O81: Plasmodium falciparum Cyclic Amine Resistance Locus (PfCARL), a Resistance Mechanism for Two Distinct Compound Classes Pamela A. Magistrado | P81: UDP-galactose and Acetyl-CoA transporters as Plasmodium multidrug resistance genes Michelle Yi-Xiu Lim | T81: PF3D7_1113300 | V81: 1.64 | W81: -0.02 | X81: 0.24 | AA81: 1.281236743 | AB81: 0 | AC81: 1.610157216 | AD81: shared 3 stages | AE81: 1 | AF81: 0.7957215174 | AH81: 4.621809745 | AI81: 0.9800091717 | AK81: 5 | AL81: 5
A82: MMV665852 | B82: NSC 35217 | D82: 5171.67 | E82: 3978.00 | G82: 5000.00 | I82: 0.77 | K82: 0.9668 | M82: phospholipid-transporting ATPase 2 (ATP2) | N82: Corey VC, Lukens AK, Istvan ES, et al. A broad analysis of resistance development in the malaria parasite. Nat Commun. 2016;7:11901. | O82: Cowell AN, Istvan ES, Lukens AK, et al. Mapping the malaria parasite druggable genome by using in vitro evolution and chemogenomics. Science. 2018;359(6372):191-199. | P82: Screening for potential prophylactics targeting sporozoite motility through the skin RG Douglas 2018 | T82: PF3D7_1219600 | V82: 0.26 | W82: -0.16 | X82: -0.4 | AA82: 0 | AB82: 0 | AC82: 0.3379404427 | AD82: gct V enriched | AE82: 1 | AF82: 0.4 | AH82: 4.86381323 | AI82: 2.417014233 | AK82: 5 | AL82: 5
A83: MMV665852 | B83: NSC 35217 | D83: 5171.67 | E83: 3978.00 | G83: 5000.00 | I83: 0.77 | K83: 0.9668 | M83: PKG | N83: Corey VC, Lukens AK, Istvan ES, et al. A broad analysis of resistance development in the malaria parasite. Nat Commun. 2016;7:11901. | O83: Cowell AN, Istvan ES, Lukens AK, et al. Mapping the malaria parasite druggable genome by using in vitro evolution and chemogenomics. Science. 2018;359(6372):191-199. | P83: Screening for potential prophylactics targeting sporozoite motility through the skin RG Douglas 2018 | T83: PF3D7_1436600 | V83: 0.47 | W83: -0.44 | X83: 0.1 | AA83: 0 | AB83: 0.0682448935 | AC83: 2.025305457 | AD83: gct V enriched | AE83: 0.8 | AF83: 0.2 | AH83: 6.079766537 | AI83: 4.834028467 | AK83: 5 | AL83: 5
A84: MMV667491 | D84: 1230 | E84: 891.5 | F84: 696.4 | G84: 1390.65 | I84: 0.724796748 | J84: 0.5661788618 | K84: 1.130609756 | M84: phosphoethanolamine methyltransferase (PfPMT) | N84: Open source drug discovery with the malaria box compound collection for neglected diseases and beyond Voorhis 2016 | O84: Combining stage specificity and metabolomic profiling to advance antimalarial drug discovery JM Murithi | T84: PF3D7_1343000 | V84: 0.77 | W84: 1.48 | X84: 0.61 | AA84: 336.4138014 | AB84: 83.25579797 | AC84: 10.54781985 | AD84: enriched troph | AE84: 4.040725206 | AF84: 31.89415503 | AH84: 0.179372937 | AI84: 0.03544880731 | AK84: 5 | AL84: 5
A85: MMV019918 | D85: 280 | E85: 824 | F85: 406.9 | G85: 320 | I85: 2.942857143 | J85: 1.453214286 | K85: 1.142857143 | M85: phosphoethanolamine methyltransferase (PfPMT) | N85: … and biological studies of the Malaria Box compound 1-[5-(4-bromo-2-chlorophenyl) furan-2-yl]-N-[(piperidin-4-yl) methyl] methanamine (MMV019918) and … A Vallone | T85: PF3D7_1343000 | V85: 0.77 | W85: 1.48 | X85: 0.61 | AA85: 336.4138014 | AB85: 83.25579797 | AC85: 10.54781985 | AD85: enriched troph | AE85: 4.040725206 | AF85: 31.89415503 | AH85: 0.179372937 | AI85: 0.03583280829 | AK85: 5 | AL85: 5
A86: MMV1542945 | B86: ACT-451840 | D86: 8.34 | E86: 9.9 | G86: 11.1 | I86: 1.18705036 | K86: 1.330935252 | M86: MDR1 | N86: CRISPR‐Cas9‐modified pfmdr1 protects Plasmodium falciparum asexual blood stages and gametocytes against a class of piperazine‐containing compounds. CL Ng 2016 | O86: Brunner R, Aissaoui H, Boss C, Bozdech Z, Brun R, Corminboeuf O, Delahaye S, Fischli C, Heidmann B, Kaiser M et al.. (2012) Identification of a new chemical class of antimalarials. | P86: Brunner R, Ng CL, Aissaoui H, Akabas MH, Boss C, Brun R, Callaghan PS, Corminboeuf O, Fidock DA, Frame IJ et al.. (2013) UV-triggered affinity capture identifies interactions between the Plasmodium falciparum multidrug resistance protein 1 (PfMDR1) and antimalarial agents in live parasitized cells | T86: PF3D7_0523000 | V86: 0.55 | W86: -0.14 | X86: -0.37 | AA86: 4.185382763 | AB86: 2.612005628 | AC86: 5.559963281 | AD86: shared 3 stages | AE86: 1.602363609 | AF86: 0.7527716554 | AH86: 0.7408121062 | AI86: 1.768046448 | AK86: 5 | AL86: 5
A87: MMV396749 | D87: 928 | E87: 1384.56 | F87: 5000 | G87: 1354.33 | I87: 1.491982759 | J87: 5.387931034 | K87: 1.459407328 | M87: ATP4 | N87: E.L. Allman, H.J. Painter, J. Samra, M. Carrasquilla, M. Llinas Metabolomic profiling of the malaria box reveals antimalarial target pathways 2016 | O87: Open source drug discovery with the malaria box compound collection for neglected diseases and beyond Voorhis 2016 | P87: Diverse chemotypes disrupt ion homeostasis in the malaria parasite AM Lehane | Q87: Targeted phenotypic screening in Plasmodium falciparum and Toxoplasma gondii reveals novel modes of action of medicines for malaria venture malaria box … G Subramanian | T87: PF3D7_1211900 | V87: 0.33 | W87: -0.22 | X87: -0.49 | AA87: 1.773190862 | AB87: 0.4394601472 | AC87: 2.593813664 | AD87: shared 3 stages | AE87: 4.034929842 | AF87: 0.683623071 | AH87: 0.3697667164 | AI87: 2.134812866 | AK87: 5 | AL87: 5
A88: MMV019266 | D88: 255 | E88: 596 | F88: 324 | G88: 520 | I88: 2.337254902 | J88: 1.270588235 | K88: 2.039215686 | M88: phosphatidylserine decarboxylase (PSD) | N88: E.L. Allman, H.J. Painter, J. Samra, M. Carrasquilla, M. Llinas Metabolomic profiling of the malaria box reveals antimalarial target pathways 2016 | O88: Open source drug discovery with the malaria box compound collection for neglected diseases and beyond Voorhis 2016 | P88: Characterization of Plasmodium phosphatidylserine decarboxylase expressed in yeast and application for inhibitor screening JY Choi | T88: PF3D7_0927900 | V88: 0.6 | W88: -0.61 | X88: 0.16 | AA88: 0.9628761075 | AB88: 0 | AC88: 0.5848931925 | AD88: shared 3 stages | AE88: 1.5 | AF88: 1.64624263 | AH88: 1.558169935 | AI88: 1.238709075 | AK88: 5 | AL88: 5
A89: MMV019266 | D89: 255 | E89: 596 | F89: 324 | G89: 520 | I89: 2.337254902 | J89: 1.270588235 | K89: 2.039215686 | M89: PKG | N89: E.L. Allman, H.J. Painter, J. Samra, M. Carrasquilla, M. Llinas Metabolomic profiling of the malaria box reveals antimalarial target pathways 2016 | O89: Open source drug discovery with the malaria box compound collection for neglected diseases and beyond Voorhis 2016 | P89: Characterization of Plasmodium phosphatidylserine decarboxylase expressed in yeast and application for inhibitor screening JY Choi | T89: PF3D7_1436600 | V89: 0.47 | W89: -0.44 | X89: 0.1 | AA89: 0 | AB89: 0.0682448935 | AC89: 2.025305457 | AD89: gct V enriched | AE89: 0.8 | AF89: 0.2 | AH89: 2.921568627 | AI89: 10.19607843 | AK89: 5 | AL89: 5
A90: MMV019721 | B90: MMV019721 | D90: 844.3 | E90: 3379 | G90: 1841.33 | I90: 4.002131944 | K90: 2.180895416 | M90: acetyl-CoA synthetase (ACAS) | N90: Chemogenomics identifies acetyl-coenzyme A synthetase as a target for malaria treatment and prevention. RL Summers. 2022 | T90: PF3D7_0627800 | V90: 0.29 | W90: -0.51 | X90: -0.45 | AA90: 0.5239278103 | AB90: 0.2233156821 | AC90: 0.1481536215 | AD90: enriched troph | AE90: 2.346130847 | AF90: 3.536382068 | AH90: 1.705843453 | AI90: 0.6167024305 | AK90: 5 | AL90: 5
A91: MMV019721 | B91: MMV019721 | D91: 844.3 | E91: 3379 | G91: 1841.33 | I91: 4.002131944 | K91: 2.180895416 | M91: acyl-CoA synthetase (ACS11) | N91: Chemogenomics identifies acetyl-coenzyme A synthetase as a target for malaria treatment and prevention. RL Summers. 2022 | T91: PF3D7_1238800 | V91: 0.54 | W91: -0.04 | X91: -0.19 | AA91: 3.175016901 | AB91: 1.578121624 | AC91: 2.782489906 | AD91: shared 3 stages | AE91: 2.011896201 | AF91: 1.141070411 | AH91: 1.989233809 | AI91: 1.911271553 | AK91: 5 | AL91: 5
A92: MMV019721 | B92: MMV019721 | D92: 844.3 | E92: 3379 | G92: 1841.33 | I92: 4.002131944 | K92: 2.180895416 | M92: acyl-CoA synthetase (ACS10) | N92: Chemogenomics identifies acetyl-coenzyme A synthetase as a target for malaria treatment and prevention. RL Summers. 2022 | T92: PF3D7_0525100 | V92: 0.84 | W92: -0.61 | X92: -0.77 | AA92: 6.499642624 | AB92: 6.443810659 | AC92: 5.390804842 | AD92: shared 3 stages | AE92: 1.008664433 | AF92: 1.205690581 | AH92: 3.967753608 | AI92: 1.808835078 | AK92: 5 | AL92: 5
A93: MMV019881 | D93: 646 | E93: 740.91 | F93: 287.6 | G93: 1502 | I93: 1.146919505 | J93: 0.4452012384 | K93: 2.325077399 | M93: Hsp90 | N93: Open source drug discovery with the malaria box compound collection for neglected diseases and beyond Voorhis 2016 | O93: Malaria Box Compounds against Anopheles gambiae (Diptera: Culicidae) Carboxypeptidase B Activity to Block Malaria Transmission Tippawan Pomun | T93: PF3D7_0708400 | V93: 0.47 | W93: 0.14 | X93: -0.37 | AA93: 391.2443421 | AB93: 487.5030362 | AC93: 2642.761186 | AD93: gct V enriched | AE93: 0.8025474984 | AF93: 0.1480437749 | AH93: 1.429098598 | AI93: 15.70533716 | AK93: 5 | AL93: 5
A94: MMV669810 | D94: 0.45 | E94: 2 | F94: 1.4 | G94: 1.2 | I94: 4.444444444 | J94: 3.111111111 | K94: 2.666666667 | M94: CDPK1 | N94: Potent Plasmodium falciparum gametocytocidal compounds identified by exploring the kinase inhibitor chemical space for dual active antimalarials Mariëtte E van der Watt, | T94: PF3D7_0217500 | V94: 0.54 | W94: -0.07 | X94: 0.86 | AA94: 1.827664212 | AB94: 0.8228906159 | AC94: 5.078323128 | AD94: shared 3 stages | AE94: 2.221029353 | AF94: 0.3598952186 | AH94: 2.001074159 | AI94: 7.409564032 | AK94: 5 | AL94: 5
A95: MMV669810 | D95: 0.45 | E95: 2 | F95: 1.4 | G95: 1.2 | I95: 4.444444444 | J95: 3.111111111 | K95: 2.666666667 | M95: PKG | N95: Potent Plasmodium falciparum gametocytocidal compounds identified by exploring the kinase inhibitor chemical space for dual active antimalarials Mariëtte E van der Watt, | T95: PF3D7_1436600 | V95: 0.47 | W95: -0.44 | X95: 0.1 | AA95: 0 | AB95: 0.0682448935 | AC95: 2.025305457 | AD95: gct V enriched | AE95: 0.8 | AF95: 0.2 | AH95: 5.555555556 | AI95: 13.33333333 | AK95: 5 | AL95: 5
A96: MMV669810 | D96: 0.45 | E96: 2 | F96: 1.4 | G96: 1.2 | I96: 4.444444444 | J96: 3.111111111 | K96: 2.666666667 | M96: PK7 | N96: Potent Plasmodium falciparum gametocytocidal compounds identified by exploring the kinase inhibitor chemical space for dual active antimalarials Mariëtte E van der Watt, | T96: PF3D7_0213400 | V96: 0.31 | W96: 0.27 | X96: -0.31 | AA96: 0.2246523051 | AB96: 0 | AC96: 0.1364636664 | AD96: not determined | AE96: 1.1 | AF96: 1.64624263 | AH96: 4.04040404 | AI96: 1.619850329 | AK96: 5 | AL96: 5
A97: MMV670325 | D97: 1365 | E97: 4492 | G97: 3715.67 | I97: 3.290842491 | K97: 2.722102564 | M97: leucine--tRNA ligase (LeuRS) | N97: Provided from MMV | T97: PF3D7_0622800 | V97: 0.36 | W97: -0.2 | X97: -0.48 | AA97: 1.202079354 | AB97: 1.247612089 | AC97: 2.626801691 | AD97: shared 3 stages | AE97: 0.9635040927 | AF97: 0.4576208999 | AH97: 3.415494045 | AI97: 5.948379029 | AK97: 5 | AL97: 5
A98: MMV693183 | B98: MMV183 | D98: 9.4 | E98: 113 | G98: 26.2 | I98: 12.0212766 | K98: 2.787234043 | M98: acetyl-CoA synthetase (ACAS) | N98: Preclinical characterization and target validation of the antimalarial pantothenamide MMV693183. LE de Vries. 2022 | T98: PF3D7_0627800 | V98: 0.29 | W98: -0.51 | X98: -0.45 | AA98: 0.5239278103 | AB98: 0.2233156821 | AC98: 0.1481536215 | AD98: enriched troph | AE98: 2.346130847 | AF98: 3.536382068 | AH98: 5.123873041 | AI98: 0.7881597602 | AK98: 5 | AL98: 5
A99: MMV019662 | D99: 1729 | E99: 4715.5 | G99: 5000 | I99: 2.727299017 | K99: 2.891844997 | M99: Niemann-Pick type C1-related protein (NCR1) | N99: Diverse Chemical Compounds Target Plasmodium falciparum Plasma Membrane Lipid Homeostasis. S Bhatnagar. 2019 | O99: Plasmodium Niemann-Pick type C1-related protein is a druggable target required for parasite membrane homeostasis. ES Istvan. 2019 | P99: Mapping the malaria parasite druggable genome by using in vitro evolution and chemogenomics. Cowell. 2018 | T99: PF3D7_0107500 | V99: 0.44 | W99: -0.6 | X99: -0.27 | AA99: 0.872067592 | AB99: 0 | AC99: 0.0734188827 | AD99: enriched troph | AE99: 1.8 | AF99: 11.87797417 | AH99: 1.51516612 | AI99: 0.2434628125 | AK99: 5 | AL99: 5
A100: MMV016838 | D100: 1718 | E100: 2000 | G100: 5000 | I100: 1.164144354 | K100: 2.910360885 | M100: eEF2 | N100: A novel multiple-stage antimalarial agent that inhibits protein synthesis. Beatriz Baragaña. 2015 | O100: Screening the Medicines for Malaria Venture Pathogen Box for invasion and egress inhibitors of the blood stage of Plasmodium falciparum reveals several inhibitory compounds Author links open overlay panelMadeline G.Dans. 2020 | T100: PF3D7_1451100 | V100: 0.72 | W100: -0.3 | X100: -1 | AA100: 36.21509657 | AB100: 20.79857305 | AC100: 60.26804781 | AD100: shared 3 stages | AE100: 1.741229867 | AF100: 0.6009004421 | AH100: 0.6685759165 | AI100: 4.843332907 | AK100: 5 | AL100: 5
A101: MMV665882 | D101: 337 | E101: 252 | F101: 63 | G101: 983.63 | I101: 0.7477744807 | J101: 0.1869436202 | K101: 2.918783383 | M101: Hsp90 | N101: Open source drug discovery with the malaria box compound collection for neglected diseases and beyond Voorhis 2016 | O101: Mapping the malaria parasite druggable genome by using in vitro evolution and chemogenomics | T101: PF3D7_0708400 | V101: 0.47 | W101: 0.14 | X101: -0.37 | AA101: 391.2443421 | AB101: 487.5030362 | AC101: 2642.761186 | AD101: gct V enriched | AE101: 0.8025474984 | AF101: 0.1480437749 | AH101: 0.931751058 | AI101: 19.71567791 | AK101: 5 | AL101: 5
A102: MMV665943 | D102: 190 | E102: 2000 | F102: 1099 | G102: 570 | I102: 10.52631579 | J102: 5.784210526 | K102: 3 | M102: Cysteine protease | N102: Open source drug discovery with the malaria box compound collection for neglected diseases and beyond Voorhis 2016 | V102: 0.8683333333 | W102: 0.2925 | X102: 0.5025 | Y102: Average | AA102: 0.7986412561 | AB102: 0.1943386009 | AC102: 0.3185628225 | AD102: enriched troph | AE102: 4.109534865 | AF102: 2.507013373 | AH102: 2.561437276 | AI102: 1.196642999 | AK102: 5 | AL102: 5
A103: MMV396797 | D103: 477 | E103: 3934.38 | F103: 1768.9 | G103: 1431.09 | I103: 8.248176101 | J103: 3.708385744 | K103: 3.000188679 | M103: Thioredoxin Reductase (PfTrxR) | N103: E.L. Allman, H.J. Painter, J. Samra, M. Carrasquilla, M. Llinas Metabolomic profiling of the malaria box reveals antimalarial target pathways 2016 | O103: Preliminary LC-MS Based Screening for Inhibitors of Plasmodium falciparum Thioredoxin Reductase (PfTrxR) among a Set of Antimalarials from the Malaria Box NK Tiwari | P103: The Medicines for Malaria Venture Malaria Box contains inhibitors of protein secretion in Plasmodium falciparum blood stage parasites O Looker | T103: PF3D7_0923800 | V103: 0.25 | W103: 0.12 | X103: 0.31 | AA103: 0.2942965475 | AB103: 0.2694624621 | AC103: 3.770582696 | AD103: gct V enriched | AE103: 1.092161577 | AF103: 0.07805068109 | AH103: 7.552157369 | AI103: 38.43898141 | AK103: 5 | AL103: 5
A104: MMV1578884 | B104: CRS-3123 | D104: 1643.33 | E104: 3776 | G104: 5000 | I104: 2.297773423 | K104: 3.04260252 | M104: methionine--tRNA ligase (cyto) | N104: Inhibition of protein synthesis and malaria parasite development by drug targeting of methionyl-tRNA synthetases T Hussain 2015 | T104: PF3D7_1034900 | V104: 0.43 | W104: 0.01 | X104: 0.05 | AA104: 2.488931895 | AB104: 5.890704032 | AC104: 15.5265354 | AD104: gct V enriched | AE104: 0.4225185788 | AF104: 0.1603018208 | AH104: 5.438277839 | AI104: 18.98046139 | AK104: 5 | AL104: 5
A105: MMV665941 | D105: 255 | E105: 769 | F105: 157.9 | G105: 843 | I105: 3.015686275 | J105: 0.6192156863 | K105: 3.305882353 | M105: HT | N105: Open source drug discovery with the malaria box compound collection for neglected diseases and beyond Voorhis 2016 | O105: A novel fluorescence resonance energy transfer-based screen in high-throughput format to identify inhibitors of malarial and human glucose transporters TE Kraft | T105: PF3D7_0204700 | V105: 0.53 | W105: 1.08 | X105: -0.46 | AA105: 3.042315429 | AB105: 4.369138307 | AC105: 2.898603703 | AD105: shared 3 stages | AE105: 0.6963193231 | AF105: 1.049579639 | AH105: 4.330895574 | AI105: 3.149720354 | AK105: 5 | AL105: 5
A106: MMV007273 | D106: 1278 | E106: 1361 | F106: 5000 | G106: 5000 | I106: 1.064945227 | J106: 3.912363067 | K106: 3.912363067 | M106: 6-phosphogluconate dehydrogenase | N106: Identification of β-hematin inhibitors in the MMV Malaria Box KY Fong | O106: Characterization of Plasmodium falciparum 6-phosphogluconate dehydrogenase as an antimalarial drug target K Haeussler | T106: PF3D7_1454700 | V106: 0.29 | W106: 0.18 | X106: -0.08 | AA106: 1.717623246 | AB106: 5.869374848 | AC106: 16.43328822 | AD106: gct V enriched | AE106: 0.2926415999 | AF106: 0.1045209713 | AH106: 3.639076697 | AI106: 37.43136923 | AK106: 5 | AL106: 5
A107: MMV000028 | B107: Trimethoprim | D107: 1258.925412 | E107: 5000 | F107: 5000 | G107: 5000 | I107: 3.971641174 | J107: 3.971641174 | K107: 3.971641174 | M107: DHFR-TS | N107: Antibacterial Agents That Interfere With Folate Synthesis. (2020). In Rang and Dale's Pharmacology (9th ed.). Edinburgh: Elsevier. | T107: PF3D7_0417200 | V107: 0.11 | W107: 0.52 | X107: 0.13 | AA107: 1.15443469 | AB107: 0.6407679531 | AC107: 10.93776642 | AD107: gct V enriched | AE107: 1.801642364 | AF107: 0.1055457436 | AH107: 2.204455919 | AI107: 37.62957214 | AK107: 5 | AL107: 5
A108: MMV666125 | D108: 120 | E108: 720.32 | F108: 745 | G108: 480 | I108: 6.002666667 | J108: 6.208333333 | K108: 4 | M108: Hsp90 | N108: Sun W, Tanaka TQ, Magle CT, Huang W, Southall N, Huang R, Dehdashti SJ, McKew JC et al (2014) Chemical signatures and new drug targets for gametocytocidal drug development. | O108: Characterization of Plasmodium falciparum 6-phosphogluconate dehydrogenase as an antimalarial drug target K Haeussler | T108: PF3D7_0708400 | V108: 0.47 | W108: 0.14 | X108: -0.37 | AA108: 391.2443421 | AB108: 487.5030362 | AC108: 2642.761186 | AD108: gct V enriched | AE108: 0.8025474984 | AF108: 0.1480437749 | AH108: 7.479515765 | AI108: 27.01903543 | AK108: 5 | AL108: 5
A109: MMV666125 | D109: 120 | E109: 720.32 | F109: 745 | G109: 480 | I109: 6.002666667 | J109: 6.208333333 | K109: 4 | M109: 6-phosphogluconate dehydrogenase | N109: Sun W, Tanaka TQ, Magle CT, Huang W, Southall N, Huang R, Dehdashti SJ, McKew JC et al (2014) Chemical signatures and new drug targets for gametocytocidal drug development. | O109: Characterization of Plasmodium falciparum 6-phosphogluconate dehydrogenase as an antimalarial drug target K Haeussler | T109: PF3D7_1454700 | V109: 0.29 | W109: 0.18 | X109: -0.08 | AA109: 1.717623246 | AB109: 5.869374848 | AC109: 16.43328822 | AD109: gct V enriched | AE109: 0.2926415999 | AF109: 0.1045209713 | AH109: 20.51200741 | AI109: 38.2698319 | AK109: 5 | AL109: 5
A110: MMV023367 | D110: 1192.27 | E110: 2718 | G110: 5000 | I110: 2.279684971 | K110: 4.193680962 | M110: AP2 domain transcription factor | N110: Mapping the malaria parasite druggable genome by using in vitro evolution and chemogenomics. Cowell. 2018 | T110: PF3D7_0613800 | V110: 0.3 | W110: 0.16 | X110: 0.69 | AA110: 0.03482332458 | AB110: 0 | AC110: 0 | AD110: enriched troph | AE110: 1.1 | AF110: 1.1 | AH110: 2.072440882 | AI110: 3.812437238 | AK110: 5 | AL110: 5
A111: MMV390048 | B111: MMV0048 | D111: 24 | E111: 171 | G111: 101.4 | I111: 7.125 | K111: 4.225 | M111: PKG | N111: Potent Plasmodium falciparum gametocytocidal compounds identified by exploring the kinase inhibitor chemical space for dual active antimalarials Mariëtte E van der Watt, | O111: Younis Y, Douelle F, Feng TS, Gonzalez Cabrera D, Le Manach C, Nchinda AT, Duffy S, White KL, Shackleford DM, Morizzi J, Mannila J, Katneni K, Bhamidipati R, Zabiulla KM, Joseph JT, Bashyam S, Waterson D, Witty MJ, Hardick D, Wittlin S, Avery V, Charman SA, Chibale K. 2012. 3,5-Diaryl-2-aminopyridines as a novel class of orally active antimalarials demonstrating single dose cure in mice and clinical candidate potential. J Med Chem 55:3479–3487. | P111: Paquet T, Le Manach C, Cabrera DG, Younis Y, Henrich PP, Abraham TS, Lee MCS, Basak R, Ghidelli-Disse S, Lafuente-Monasterio MJ et al.. (2017) Antimalarial efficacy of MMV390048, an inhibitor of Plasmodium phosphatidylinositol 4-kinase. | T111: PF3D7_1436600 | V111: 0.47 | W111: -0.44 | X111: 0.1 | AA111: 0 | AB111: 0.0682448935 | AC111: 2.025305457 | AD111: gct V enriched | AE111: 0.8 | AF111: 0.2 | AH111: 8.90625 | AI111: 21.125 | AK111: 5 | AL111: 5
A112: MMV020438 | D112: 1150.27 | E112: 4554 | G112: 5000 | I112: 3.959070479 | K112: 4.346805533 | M112: HT | N112: Provided from MMV | T112: PF3D7_0204700 | V112: 0.53 | W112: 1.08 | X112: -0.46 | AA112: 3.042315429 | AB112: 4.369138307 | AC112: 2.898603703 | AD112: shared 3 stages | AE112: 0.6963193231 | AF112: 1.049579639 | AH112: 5.685711063 | AI112: 4.141472805 | AK112: 5 | AL112: 5
A113: MMV665852 | D113: 1028 | E113: 5000 | F113: 5000 | G113: 5000 | I113: 4.86381323 | J113: 4.86381323 | K113: 4.86381323 | M113: phospholipid-transporting ATPase 2 (ATP2) | N113: Corey VC, Lukens AK, Istvan ES, et al. A broad analysis of resistance development in the malaria parasite. Nat Commun. 2016;7:11901. | O113: Cowell AN, Istvan ES, Lukens AK, et al. Mapping the malaria parasite druggable genome by using in vitro evolution and chemogenomics. Science. 2018;359(6372):191-199. | P113: Screening for potential prophylactics targeting sporozoite motility through the skin RG Douglas 2018 | T113: PF3D7_1219600 | V113: 0.26 | W113: -0.16 | X113: -0.4 | AA113: 0 | AB113: 0 | AC113: 0.3379404427 | AD113: gct V enriched | AE113: 1 | AF113: 0.4 | AH113: 4.86381323 | AI113: 12.15953307 | AK113: 5 | AL113: 5
A114: MMV665852 | D114: 1028 | E114: 5000 | F114: 5000 | G114: 5000 | I114: 4.86381323 | J114: 4.86381323 | K114: 4.86381323 | M114: PKG | N114: Corey VC, Lukens AK, Istvan ES, et al. A broad analysis of resistance development in the malaria parasite. Nat Commun. 2016;7:11901. | O114: Cowell AN, Istvan ES, Lukens AK, et al. Mapping the malaria parasite druggable genome by using in vitro evolution and chemogenomics. Science. 2018;359(6372):191-199. | P114: Screening for potential prophylactics targeting sporozoite motility through the skin RG Douglas 2018 | T114: PF3D7_1436600 | V114: 0.47 | W114: -0.44 | X114: 0.1 | AA114: 0 | AB114: 0.0682448935 | AC114: 2.025305457 | AD114: gct V enriched | AE114: 0.8 | AF114: 0.2 | AH114: 6.079766537 | AI114: 24.31906615 | AK114: 5 | AL114: 5
A115: MMV665807 | D115: 973.3 | E115: 5000 | F115: 5000 | G115: 5000 | I115: 5.137162232 | J115: 5.137162232 | K115: 5.137162232 | M115: calcium-transporting ATPase (ATP6) | N115: Selective Inhibition of Plasmodium falciparum ATPase 6 by Artemisinins and Identification of New Classes of Inhibitors after Expression in Yeast CM Moore | O115: Screening of the open source malaria box reveals an early lead compound for the treatment of alveolar echinococcosis B Stadelmann | T115: PF3D7_0106300 | V115: 0.39 | W115: -0.03 | X115: -0.13 | AA115: 1.687602771 | AB115: 0.7605873874 | AC115: 3.937969318 | AD115: shared 3 stages | AE115: 2.218815088 | AF115: 0.4285464499 | AH115: 2.315272804 | AI115: 11.98741054 | AK115: 5 | AL115: 5
A116: MMV000848 | D116: 660 | E116: 1997 | F116: 2000 | G116: 3600 | I116: 3.025757576 | J116: 3.03030303 | K116: 5.454545455 | M116: ATP4 | N116: E.L. Allman, H.J. Painter, J. Samra, M. Carrasquilla, M. Llinas Metabolomic profiling of the malaria box reveals antimalarial target pathways 2016 | O116: Open source drug discovery with the malaria box compound collection for neglected diseases and beyond Voorhis 2016 | P116: Identification of an inhibitory pocket in falcilysin provides a new avenue for malaria drug development G Wirjanata | T116: PF3D7_1211900 | V116: 0.33 | W116: -0.22 | X116: -0.49 | AA116: 1.773190862 | AB116: 0.4394601472 | AC116: 2.593813664 | AD116: shared 3 stages | AE116: 4.034929842 | AF116: 0.683623071 | AH116: 0.7498910004 | AI116: 7.978878546 | AK116: 5 | AL116: 5
A117: MMV000848 | D117: 660 | E117: 1997 | F117: 2000 | G117: 3600 | I117: 3.025757576 | J117: 3.03030303 | K117: 5.454545455 | M117: Hsp90 | N117: E.L. Allman, H.J. Painter, J. Samra, M. Carrasquilla, M. Llinas Metabolomic profiling of the malaria box reveals antimalarial target pathways 2016 | O117: Open source drug discovery with the malaria box compound collection for neglected diseases and beyond Voorhis 2016 | P117: Identification of an inhibitory pocket in falcilysin provides a new avenue for malaria drug development G Wirjanata | T117: PF3D7_0708400 | V117: 0.47 | W117: 0.14 | X117: -0.37 | AA117: 391.2443421 | AB117: 487.5030362 | AC117: 2642.761186 | AD117: gct V enriched | AE117: 0.8025474984 | AF117: 0.1480437749 | AH117: 3.770191274 | AI117: 36.84413923 | AK117: 5 | AL117: 5
A118: MMV000720 | D118: 864.3595562 | E118: 5000 | F118: 2427.4 | G118: 5000 | I118: 5.784629746 | J118: 2.808322049 | K118: 5.784629746 | M118: 6-phosphogluconate dehydrogenase | N118: Characterization of Plasmodium falciparum 6-phosphogluconate dehydrogenase as an antimalarial drug target K Haeussler 2018 | T118: PF3D7_1454700 | V118: 0.29 | W118: 0.18 | X118: -0.08 | AA118: 1.717623246 | AB118: 5.869374848 | AC118: 16.43328822 | AD118: gct V enriched | AE118: 0.2926415999 | AF118: 0.1045209713 | AH118: 19.76694273 | AI118: 55.34420199 | AK118: 5 | AL118: 5
A119: MMV011895 | D119: 842 | E119: 1286.53 | F119: 5000 | G119: 5000 | I119: 1.527945368 | J119: 5.93824228 | K119: 5.93824228 | M119: chloroquine resistance transporter (CRT) | N119: Mapping the malaria parasite druggable genome by using in vitro evolution and chemogenomics. Cowell. 2018 | O119: Identification of β-hematin inhibitors in the MMV Malaria Box KY Fong 2015 | P119: Characterization of Plasmodium falciparum 6-phosphogluconate dehydrogenase as an antimalarial drug target K Haeussler 2018 | T119: PF3D7_0709000 | V119: 0.71 | W119: -0.13 | X119: -0.9 | AA119: 2.488931895 | AB119: 0.1839214869 | AC119: 0.5848931925 | AD119: enriched troph | AE119: 13.53257815 | AF119: 4.255361368 | AH119: 0.6837735411 | AI119: 1.395473091 | AK119: 5 | AL119: 5
A120: MMV011895 | D120: 842 | E120: 1286.53 | F120: 5000 | G120: 5000 | I120: 1.527945368 | J120: 5.93824228 | K120: 5.93824228 | M120: 6-phosphogluconate dehydrogenase | N120: Mapping the malaria parasite druggable genome by using in vitro evolution and chemogenomics. Cowell. 2018 | O120: Identification of β-hematin inhibitors in the MMV Malaria Box KY Fong 2015 | P120: Characterization of Plasmodium falciparum 6-phosphogluconate dehydrogenase as an antimalarial drug target K Haeussler 2018 | T120: PF3D7_1454700 | V120: 0.29 | W120: 0.18 | X120: -0.08 | AA120: 1.717623246 | AB120: 5.869374848 | AC120: 16.43328822 | AD120: gct V enriched | AE120: 0.2926415999 | AF120: 0.1045209713 | AH120: 31.61962922 | AI120: 56.81388346 | AK120: 5 | AL120: 5
A121: MMV007224 | D121: 320 | E121: 654 | F121: 948 | G121: 1980 | I121: 2.04375 | J121: 2.9625 | K121: 6.1875 | M121: phospholipid-transporting ATPase 2 (ATP2) | N121: Mapping the malaria parasite druggable genome by using in vitro evolution and chemogenomics. Cowell. 2018 | O121: Lipid transport proteins in malaria, from Plasmodium parasites to their hosts M Ressurreição 2021 | P121: Screening for potential prophylactics targeting sporozoite motility through the skin RG Douglas 2018 | Q121: Generation of a mutator parasite to drive resistome discovery in Plasmodium falciparum K Kumpornsin | T121: PF3D7_1219600 | V121: 0.26 | W121: -0.16 | X121: -0.4 | AA121: 0 | AB121: 0 | AC121: 0.3379404427 | AD121: gct V enriched | AE121: 1 | AF121: 0.4 | AH121: 2 | AI121: 15.46875 | AK121: 5 | AL121: 5
A122: MMV1558277 | D122: 759.3 | E122: 5000 | G122: 5000 | I122: 6.585012512 | K122: 6.585012512 | M122: plasmepsin X (PMX) | N122: Provided from MMV | T122: PF3D7_0808200 | V122: 1.26 | W122: -0.79 | X122: 0.17 | AA122: 0 | AB122: 0 | AC122: 0.995262315 | AD122: gct V enriched | AE122: 1 | AF122: 0.5 | AH122: 6.585012512 | AI122: 13.17002502 | AK122: 5 | AL122: 5
A123: MMV000788 | D123: 697 | E123: 2000 | F123: 2000 | G123: 5000 | I123: 2.869440459 | J123: 2.869440459 | K123: 7.173601148 | M123: Cysteine protease | N123: Open source drug discovery with the malaria box compound collection for neglected diseases and beyond Voorhis 2016 | V123: 0.8683333333 | W123: 0.2925 | X123: 0.5025 | Y123: Average | AA123: 0.7986412561 | AB123: 0.1943386009 | AC123: 0.3185628225 | AD123: enriched troph | AE123: 4.109534865 | AF123: 2.507013373 | AH123: 0.6982397165 | AI123: 2.861413196 | AK123: 5 | AL123: 5
A124: MMV009952 | B124: (-)-Halofuginone | D124: 1.02 | E124: 8.4 | G124: 7.64 | I124: 8.235294118 | K124: 7.490196078 | M124: proline--tRNA ligase (PRS) | N124: Elucidating the path to Plasmodium prolyl-tRNA synthetase inhibitors that overcome halofuginone resistance. MA Tye. 2022 | O124: Structure of prolyl-tRNA synthetase-halofuginone complex provides basis for development of drugs against malaria and toxoplasmosis. V Jain. 2015 | P124: Keller TL, Zocco D, Sundrud MS, Hendrick M, Edenius M, Yum J, Kim YJ, Lee HK, Cortese JF, Wirth DF et al.. (2012) Halofuginone and other febrifugine derivatives inhibit prolyl-tRNA synthetase. | T124: PF3D7_1213800 | V124: 0.36 | W124: 0.11 | X124: -0.31 | AA124: 1.509506996 | AB124: 2.394343882 | AC124: 10.05295141 | AD124: gct V enriched | AE124: 0.6304470327 | AF124: 0.1501556044 | AH124: 13.0626265 | AI124: 49.88289386 | AK124: 5 | AL124: 5
A125: MMV665794 | D125: 90 | E125: 656 | F125: 416 | G125: 680 | I125: 7.288888889 | J125: 4.622222222 | K125: 7.555555556 | M125: PKG | N125: Open source drug discovery with the malaria box compound collection for neglected diseases and beyond Voorhis 2016 | O125: Combining stage specificity and metabolomic profiling to advance antimalarial drug discovery JM Murithi | P125: Malaria Box Compounds against Anopheles gambiae (Diptera: Culicidae) Carboxypeptidase B Activity to Block Malaria Transmission T Pomun | Q125: Generation of a mutator parasite to drive resistome discovery in Plasmodium falciparum K Kumpornsin | T125: PF3D7_1436600 | V125: 0.47 | W125: -0.44 | X125: 0.1 | AA125: 0 | AB125: 0.0682448935 | AC125: 2.025305457 | AD125: gct V enriched | AE125: 0.8 | AF125: 0.2 | AH125: 9.111111111 | AI125: 37.77777778 | AK125: 5 | AL125: 5
A126: MMV665924 | D126: 649.2 | E126: 5000 | G126: 5000 | I126: 7.701786815 | K126: 7.701786815 | M126: acetyl-CoA synthetase (ACAS) | N126: Chemogenomics identifies acetyl-coenzyme A synthetase as a target for malaria treatment and prevention. RL Summers. 2022 | T126: PF3D7_0627800 | V126: 0.29 | W126: -0.51 | X126: -0.45 | AA126: 0.5239278103 | AB126: 0.2233156821 | AC126: 0.1481536215 | AD126: enriched troph | AE126: 2.346130847 | AF126: 3.536382068 | AH126: 3.282760987 | AI126: 2.17787181 | AK126: 5 | AL126: 5
A127: MMV665924 | D127: 649.2 | E127: 5000 | G127: 5000 | I127: 7.701786815 | K127: 7.701786815 | M127: acyl-CoA synthetase (ACS10) | N127: Chemogenomics identifies acetyl-coenzyme A synthetase as a target for malaria treatment and prevention. RL Summers. 2022 | T127: PF3D7_0525100 | V127: 0.84 | W127: -0.61 | X127: -0.77 | AA127: 6.499642624 | AB127: 6.443810659 | AC127: 5.390804842 | AD127: shared 3 stages | AE127: 1.008664433 | AF127: 1.205690581 | AH127: 7.635628424 | AI127: 6.387863465 | AK127: 5 | AL127: 5
A128: MMV665878 | D128: 139 | E128: 819 | G128: 1100 | I128: 5.892086331 | K128: 7.913669065 | M128: ATP4 | N128: E.L. Allman, H.J. Painter, J. Samra, M. Carrasquilla, M. Llinas Metabolomic profiling of the malaria box reveals antimalarial target pathways 2016 | O128: Metabolomics-based screening of the malaria box reveals both novel and established mechanisms of action DJ Creek | P128: Targeted phenotypic screening in Plasmodium falciparum and Toxoplasma gondii reveals novel modes of action of medicines for malaria venture malaria box … G Subramanian | T128: PF3D7_1211900 | V128: 0.33 | W128: -0.22 | X128: -0.49 | AA128: 1.773190862 | AB128: 0.4394601472 | AC128: 2.593813664 | AD128: shared 3 stages | AE128: 4.034929842 | AF128: 0.683623071 | AH128: 1.460269834 | AI128: 11.57607079 | AK128: 5 | AL128: 5
A129: MMV007384 | D129: 100 | E129: 949 | F129: 1113.5 | G129: 870 | I129: 9.49 | J129: 11.135 | K129: 8.7 | M129: Hsp90 | N129: Open source drug discovery with the malaria box compound collection for neglected diseases and beyond Voorhis 2016 | O129: New insights into novel inhibitors against deoxyhypusine hydroxylase from Plasmodium falciparum: compounds with an iron chelating potential I von Koschitzky | P129: Identification of β-hematin inhibitors in the MMV Malaria Box KY Fong | Q129: Characterization of Plasmodium falciparum 6-phosphogluconate dehydrogenase as an antimalarial drug target K Haeussler, | R129: Bilayer Effects of Antimalarial Compounds Nicole B. Ramsey | T129: PF3D7_0708400 | V129: 0.47 | W129: 0.14 | X129: -0.37 | AA129: 391.2443421 | AB129: 487.5030362 | AC129: 2642.761186 | AD129: gct V enriched | AE129: 4.109534865 | AF129: 0.1480437749 | AH129: 2.309263776 | AI129: 58.76640207 | AK129: 5 | AL129: 5
A130: MMV007384 | D130: 100 | E130: 949 | F130: 1113.5 | G130: 870 | I130: 9.49 | J130: 11.135 | K130: 8.7 | M130: phosphoethanolamine methyltransferase (PfPMT) | N130: Open source drug discovery with the malaria box compound collection for neglected diseases and beyond Voorhis 2016 | O130: New insights into novel inhibitors against deoxyhypusine hydroxylase from Plasmodium falciparum: compounds with an iron chelating potential I von Koschitzky | P130: Identification of β-hematin inhibitors in the MMV Malaria Box KY Fong | Q130: Characterization of Plasmodium falciparum 6-phosphogluconate dehydrogenase as an antimalarial drug target K Haeussler, | R130: Bilayer Effects of Antimalarial Compounds Nicole B. Ramsey | T130: PF3D7_1343000 | V130: 0.77 | W130: 1.48 | X130: 0.61 | AA130: 336.4138014 | AB130: 83.25579797 | AC130: 10.54781985 | AD130: enriched troph | AE130: 0.8025474984 | AF130: 31.89415503 | AH130: 11.82484528 | AI130: 0.2727772531 | AK130: 5 | AL130: 5
A131: MMV007384 | D131: 100 | E131: 949 | F131: 1113.5 | G131: 870 | I131: 9.49 | J131: 11.135 | K131: 8.7 | M131: cysteine protease | N131: Open source drug discovery with the malaria box compound collection for neglected diseases and beyond Voorhis 2016 | O131: New insights into novel inhibitors against deoxyhypusine hydroxylase from Plasmodium falciparum: compounds with an iron chelating potential I von Koschitzky | P131: Identification of β-hematin inhibitors in the MMV Malaria Box KY Fong | Q131: Characterization of Plasmodium falciparum 6-phosphogluconate dehydrogenase as an antimalarial drug target K Haeussler, | R131: Bilayer Effects of Antimalarial Compounds Nicole B. Ramsey | T131: PF3D7_1302600 | V131: 0.46 | W131: -0.08 | X131: -0.12 | AA131: 0.7986412561 | AB131: 0.1943386009 | AC131: 0.3185628225 | AD131: enriched troph | AE131: 4.040725206 | AF131: 2.507013373 | AH131: 2.348588314 | AI131: 3.470264696 | AK131: 5 | AL131: 5
A132: MMV006656 | D132: 518.5 | E132: 2420.18 | F132: 5000 | G132: 5000 | I132: 4.667656702 | J132: 9.643201543 | K132: 9.643201543 | M132: ATP4 | N132: Diverse chemotypes disrupt ion homeostasis in the malaria parasite AM Lehane 2014 | O132: A G358S mutation in the Plasmodium falciparum Na+ pump PfATP4 confers clinically-relevant resistance to cipargamin D Qiu | T132: PF3D7_1211900 | V132: 0.33 | W132: -0.22 | X132: -0.49 | AA132: 1.773190862 | AB132: 0.4394601472 | AC132: 2.593813664 | AD132: shared 3 stages | AE132: 4.034929842 | AF132: 0.683623071 | AH132: 1.156812357 | AI132: 14.10602122 | AK132: 5 | AL132: 5
A133: MMV666054 | D133: 499.444167 | E133: 2000 | F133: 1075 | G133: 5000 | I133: 4.004451613 | J133: 2.152392742 | K133: 10.01112903 | M133: PfA-M1 alanyl aminopeptidase | N133: Open source drug discovery with the malaria box compound collection for neglected diseases and beyond Voorhis 2016 | O133: Screening the Medicines for Malaria Venture "Malaria Box" against the Plasmodium falciparum Aminopeptidases, M1, M17 and M18 A Paiardini | T133: PF3D7_1311800 | V133: 0.56 | W133: 0.06 | X133: -0.86 | AA133: 15.96968869 | AB133: 9.98902256 | AC133: 32.83855153 | AD133: shared 3 stages | AE133: 1.598723859 | AF133: 0.4863091685 | AH133: 2.504780041 | AI133: 20.58593521 | AK133: 5 | AL133: 5
A134: MMV665971 | D134: 489 | E134: 359 | F134: 228 | G134: 5000 | I134: 0.7341513292 | J134: 0.4662576687 | K134: 10.22494888 | M134: phosphatidylserine decarboxylase (PSD) | N134: Characterization of Plasmodium phosphatidylserine decarboxylase expressed in yeast and application for inhibitor screening JY Choi | T134: PF3D7_0927900 | V134: 0.6 | W134: -0.61 | X134: 0.16 | AA134: 0.9628761075 | AB134: 0 | AC134: 0.5848931925 | AD134: shared 3 stages | AE134: 1.5 | AF134: 1.64624263 | AH134: 0.4894342195 | AI134: 6.211082551 | AK134: 5 | AL134: 5
A135: MMV000787 | D135: 407 | E135: 2000 | F135: 584 | G135: 4574.65 | I135: 4.914004914 | J135: 1.434889435 | K135: 11.23992629 | M135: PfDHODH | N135: Combining stage specificity and metabolomic profiling to advance antimalarial drug discovery JM Murithi 2020 | O135: Open source drug discovery with the malaria box compound collection for neglected diseases and beyond Voorhis 2016 | T135: PF3D7_0603300 | V135: 0.75 | W135: -0.19 | X135: -0.43 | AA135: 1.15443469 | AB135: 0.7714114433 | AC135: 1.894266125 | AD135: shared 3 stages | AE135: 1.496522641 | AF135: 0.6094363801 | AH135: 3.283615483 | AI135: 18.44314953 | AK135: 5 | AL135: 5
A136: MMV000787 | D136: 407 | E136: 2000 | F136: 584 | G136: 4574.65 | I136: 4.914004914 | J136: 1.434889435 | K136: 11.23992629 | M136: Cysteine protease | N136: Combining stage specificity and metabolomic profiling to advance antimalarial drug discovery JM Murithi 2020 | O136: Open source drug discovery with the malaria box compound collection for neglected diseases and beyond Voorhis 2016 | V136: 0.8683333333 | W136: 0.2925 | X136: 0.5025 | Y136: Average | AA136: 0.7986412561 | AB136: 0.1943386009 | AC136: 0.3185628225 | AD136: enriched troph | AE136: 4.109534865 | AF136: 2.507013373 | AH136: 1.195756959 | AI136: 4.483393033 | AK136: 5 | AL136: 5
A137: MMV007839 | D137: 413.15 | E137: 5000 | G137: 5000 | I137: 12.10214208 | K137: 12.10214208 | M137: formate nitrite transporter (PfFNT) | N137: Substrate-analogous inhibitors exert antimalarial action by targeting the Plasmodium lactate transporter PfFNT at nanomolar scale. A Golldack. 2017 | O137: Structural characterization of the Plasmodium falciparum lactate transporter PfFNT alone and in complex with antimalarial compound MMV007839 reveals its inhibition mechanism. Xi Peng. 2021 | P137: Open source drug discovery with the malaria box compound collection for neglected diseases and beyond Voorhis 2016 | T137: PF3D7_0316600 | V137: 0.56 | W137: -0.12 | X137: -0.52 | AA137: 2.488931895 | AB137: 1.277985337 | AC137: 1.511886432 | AD137: enriched troph | AE137: 1.94754339 | AF137: 1.64624263 | AH137: 6.214055173 | AI137: 7.351372063 | AK137: 5 | AL137: 5
A138: MMV007839 | D138: 413.15 | E138: 5000 | G138: 5000 | I138: 12.10214208 | K138: 12.10214208 | M138: PKG | N138: Substrate-analogous inhibitors exert antimalarial action by targeting the Plasmodium lactate transporter PfFNT at nanomolar scale. A Golldack. 2017 | O138: Structural characterization of the Plasmodium falciparum lactate transporter PfFNT alone and in complex with antimalarial compound MMV007839 reveals its inhibition mechanism. Xi Peng. 2021 | P138: Open source drug discovery with the malaria box compound collection for neglected diseases and beyond Voorhis 2016 | T138: PF3D7_1436600 | V138: 0.47 | W138: -0.44 | X138: 0.1 | AA138: 0 | AB138: 0.0682448935 | AC138: 2.025305457 | AD138: gct V enriched | AE138: 0.8 | AF138: 0.2 | AH138: 15.1276776 | AI138: 60.5107104 | AK138: 5 | AL138: 5
A139: MMV390482 | B139: SJ733 | D139: 30 | E139: 102.7 | G139: 367.5 | I139: 3.423333333 | K139: 12.25 | M139: ATP4 | N139: Jimenez-Diaz MB, Ebert D, Salinas Y, Pradhan A, Lehane AM, Myrand-Lapierre ME, O'Loughlin KG, Shackleford DM, Justino de Almeida M, Carrillo AK, Clark JA, Dennis AS, Diep J, Deng X, Duffy S, Endsley AN, Fedewa G, Guiguemde WA, Gomez MG, Holbrook G, Horst J, Kim CC, Liu J, Lee MC, Matheny A, Martinez MS, Miller G, Rodriguez-Alejandre A, Sanz L, Sigal M, Spillman NJ, Stein PD, Wang Z, Zhu F, Waterson D, Knapp S, Shelat A, Avery VM, Fidock DA, Gamo FJ, Charman SA, Mirsalis JC, Ma H, Ferrer S, Kirk K, Angulo-Barturen I, Kyle DE, DeRisi JL, Floyd DM, Guy RK. 2014. (+)-SJ733, a clinical candidate for malaria that acts through ATP4 to induce rapid host-mediated clearance of Plasmodium. Proc Natl Acad Sci U S A 111:E5455–62. | T139: PF3D7_1211900 | V139: 0.33 | W139: -0.22 | X139: -0.49 | AA139: 1.773190862 | AB139: 0.4394601472 | AC139: 2.593813664 | AD139: shared 3 stages | AE139: 4.034929842 | AF139: 0.683623071 | AH139: 0.8484244999 | AI139: 17.9192314 | AK139: 5 | AL139: 5
A140: MMV1645159 | D140: 388.83 | E140: 4379 | G140: 5000 | I140: 11.2619911 | K140: 12.85909009 | M140: Plasmepsin V (PMV) | N140: Provided from MMV | T140: PF3D7_1323500 | V140: 0.44 | W140: -0.25 | X140: -0.59 | AA140: 0.5122019515 | AB140: 0.3395699984 | AC140: 0.3111339374 | AD140: enriched troph | AE140: 1.508383997 | AF140: 1.64624263 | AH140: 7.466262652 | AI140: 7.811175495 | AK140: 5 | AL140: 5
A141: MMV029272 | D141: 264.07 | E141: 4042 | G141: 3676 | I141: 15.30654751 | K141: 13.92055137 | M141: Dipeptidyl aminopeptidase 1 (DPAP1) | N141: Mapping the malaria parasite druggable genome by using in vitro evolution and chemogenomics. Cowell. 2018 | T141: PF3D7_1116700 | V141: 0.66 | W141: -0.38 | X141: -0.99 | AA141: 2.934525279 | AB141: 0 | AC141: 0.6681005372 | AD141: enriched troph | AE141: 4 | AF141: 4.392340846 | AH141: 3.826636877 | AI141: 3.169278491 | AK141: 5 | AL141: 5
A142: MMV668399 | B142: MMV668399 | D142: 339.43 | E142: 1770 | G142: 5000 | I142: 5.214624518 | K142: 14.73057773 | M142: inorganic anion exchanger, inorganic anion antiporter | N142: Mapping the malaria parasite druggable genome by using in vitro evolution and chemogenomics. Cowell. 2018 | T142: PF3D7_1471200 | V142: 0.26 | W142: 0.44 | X142: -0.04 | AA142: 0 | AB142: 0 | AC142: 0.807768677 | AD142: gct V enriched | AE142: 1 | AF142: 0.6 | AH142: 5.214624518 | AI142: 24.55096289 | AK142: 5 | AL142: 5
A143: MMV674143 | B143: Cladosporin | D143: 65.89 | E143: 199.4 | G143: 1000.67 | I143: 3.026255881 | K143: 15.1869783 | M143: lysine--tRNA ligase (KRS1) | N143: Selective and Specific Inhibition of the Plasmodium falciparum Lysyl-tRNA Synthetase by the Fungal Secondary Metabolite Cladosporin. Hoepfner. 2012 | T143: PF3D7_1350100 | V143: 0.52 | W143: -0.08 | X143: -0.33 | AA143: 2.488931895 | AB143: 4.157766612 | AC143: 5.683439176 | AD143: shared 3 stages | AE143: 0.59862232 | AF143: 0.4379270752 | AH143: 5.055367599 | AI143: 34.67924035 | AK143: 5 | AL143: 5
A144: MMV000753 | D144: 326 | E144: 627 | F144: 2000 | G144: 5000 | I144: 1.923312883 | J144: 6.134969325 | K144: 15.33742331 | M144: CDPK1 | N144: Identification of β-hematin inhibitors in the MMV Malaria Box KY Fong 2015 | O144: Allosteric regulation of the inactive to active state conformational transition in CDPK1 protein of Plasmodium falciparum P Gupta 2022 | P144: K.Y. Fong, R.D. Sandlin, D.W. Wright Identification of beta-hematin inhibitors in the MMV Malaria Box. International journal for parasitology | T144: PF3D7_0217500 | V144: 0.54 | W144: -0.07 | X144: 0.86 | AA144: 1.827664212 | AB144: 0.8228906159 | AC144: 5.078323128 | AD144: shared 3 stages | AE144: 2.221029353 | AF144: 0.3598952186 | AH144: 0.8659556349 | AI144: 42.61635754 | AK144: 5 | AL144: 5
A145: MMV011438 | D145: 50 | E145: 1656 | F145: 1129.5 | G145: 820 | I145: 33.12 | J145: 22.59 | K145: 16.4 | M145: prodrug activation and resistance esterase (PARE) | N145: Istvan, E. S., Mallari, J. P., Corey, V. C., Dharia, N. V., Marshall, G. R., Winzeler, E. A., and Goldberg, D. E. (2017) Esterase mutation is a mechanism of resistance to antimalarial compounds. Nat. Commu | O145: A novel approach for the discovery of chemically diverse anti-malarial compounds targeting the Plasmodium falciparum Coenzyme A synthesis pathway Sabine Fletcher | T145: PF3D7_0709700 | V145: 0.74 | W145: 0.63 | X145: 0.46 | AA145: 2.993499499 | AB145: 1.867155546 | AC145: 1.238721139 | AD145: enriched troph | AE145: 1.603240558 | AF145: 2.41660484 | AH145: 20.65816002 | AI145: 6.786380515 | AK145: 5 | AL145: 5
A146: MMV011438 | D146: 50 | E146: 1656 | F146: 1129.5 | G146: 820 | I146: 33.12 | J146: 22.59 | K146: 16.4 | M146: phosphoethanolamine methyltransferase (PfPMT) | N146: Istvan, E. S., Mallari, J. P., Corey, V. C., Dharia, N. V., Marshall, G. R., Winzeler, E. A., and Goldberg, D. E. (2017) Esterase mutation is a mechanism of resistance to antimalarial compounds. Nat. Commu | O146: A novel approach for the discovery of chemically diverse anti-malarial compounds targeting the Plasmodium falciparum Coenzyme A synthesis pathway Sabine Fletcher | T146: PF3D7_1343000 | V146: 0.77 | W146: 1.48 | X146: 0.61 | AA146: 336.4138014 | AB146: 83.25579797 | AC146: 10.54781985 | AD146: enriched troph | AE146: 4.040725206 | AF146: 31.89415503 | AH146: 8.196548468 | AI146: 0.514200799 | AK146: 5 | AL146: 5
A147: MMV011438 | D147: 50 | E147: 1656 | F147: 1129.5 | G147: 820 | I147: 33.12 | J147: 22.59 | K147: 16.4 | M147: pantothenate kinase 1 | N147: Istvan, E. S., Mallari, J. P., Corey, V. C., Dharia, N. V., Marshall, G. R., Winzeler, E. A., and Goldberg, D. E. (2017) Esterase mutation is a mechanism of resistance to antimalarial compounds. Nat. Commu | O147: A novel approach for the discovery of chemically diverse anti-malarial compounds targeting the Plasmodium falciparum Coenzyme A synthesis pathway Sabine Fletcher | T147: PF3D7_1420600 | V147: 0.26 | W147: 0.36 | X147: 0.59 | AA147: 0.687263764 | AB147: 0 | AC147: 0 | AD147: enriched troph | AE147: 1.5 | AF147: 1.5 | AH147: 22.08 | AI147: 10.93333333 | AK147: 5 | AL147: 5
A148: MMV652103 | D148: 7.25 | E148: 59.6 | F148: 5 | G148: 133.3 | I148: 8.220689655 | J148: 0.6896551724 | K148: 18.3862069 | M148: CDPK1 | N148: Imidazopyridazines as potent inhibitors of Plasmodium falciparum calcium-dependent protein kinase 1 (PfCDPK1): preparation and evaluation of pyrazole … JM Large | O148: Substituted imidazopyridazines are potent and selective inhibitors of Plasmodium falciparum calcium-dependent protein kinase 1 (PfCDPK1) TM Chapman | P148: New Amidated 3,6-Diphenylated Imidazopyridazines with Potent Antiplasmodium Activity Are Dual Inhibitors of Plasmodium Phosphatidylinositol-4-kinase and cGMP … PM Cheuka | Q148: Exploring the transmission-blocking activity of antiplasmodial 3, 6-diarylated imidazopyridazines D Coertzen | T148: PF3D7_0217500 | V148: 0.54 | W148: -0.07 | X148: 0.86 | AA148: 1.827664212 | AB148: 0.8228906159 | AC148: 5.078323128 | AD148: shared 3 stages | AE148: 2.221029353 | AF148: 0.3598952186 | AH148: 3.701297168 | AI148: 51.08766649 | AK148: 5 | AL148: 5
A149: MMV397264 | B149: 21A092 | D149: 10.58 | E149: 62.1 | G149: 213.3 | I149: 5.869565217 | K149: 20.16068053 | M149: ATP4 | N149: Pyrazoleamide compounds are potent antimalarials that target Na+ homeostasis in intraerythrocytic Plasmodium falciparum. Akhil B. Vaidya. 2014 | T149: PF3D7_1211900 | V149: 0.33 | W149: -0.22 | X149: -0.49 | AA149: 1.773190862 | AB149: 0.4394601472 | AC149: 2.593813664 | AD149: shared 3 stages | AE149: 4.034929842 | AF149: 0.683623071 | AH149: 1.454688296 | AI149: 29.49093058 | AK149: 5 | AL149: 5
A150: MMV011895 | B150: MMV011895 | D150: 233 | E150: 2156 | G150: 5000 | I150: 9.253218884 | K150: 21.45922747 | M150: chloroquine resistance transporter (CRT) | N150: Mapping the malaria parasite druggable genome by using in vitro evolution and chemogenomics. Cowell. 2018 | O150: Identification of β-hematin inhibitors in the MMV Malaria Box KY Fong 2015 | P150: Characterization of Plasmodium falciparum 6-phosphogluconate dehydrogenase as an antimalarial drug target K Haeussler 2018 | T150: PF3D7_0709000 | V150: 0.71 | W150: -0.13 | X150: -0.9 | AA150: 2.488931895 | AB150: 0.1839214869 | AC150: 0.5848931925 | AD150: enriched troph | AE150: 13.53257815 | AF150: 4.255361368 | AH150: 0.6837735411 | AI150: 5.042868423 | AK150: 5 | AL150: 5
A151: MMV1792684 | B151: TCMDC-135051 | D151: 115.67 | E151: 840 | G151: 2526 | I151: 7.262038558 | K151: 21.83798738 | M151: cyclin-dependent-like kinase (CLK3) | N151: Development of Potent PfCLK3 Inhibitors Based on TCMDC-135051 as a New Class of Antimalarials. A Mahindra. 2020 | O151: Validation of the protein kinase PfCLK3 as a multistage cross-species malarial drug target. Mahmood M. Alam. 2019 | T151: PF3D7_1114700 | V151: 0.25 | W151: 0.09 | X151: -0.02 | AA151: 0 | AB151: 0 | AC151: 0.06246783089 | AD151: not determined | AE151: 1 | AF151: 0.8 | AH151: 7.262038558 | AI151: 27.29748422 | AK151: 5 | AL151: 5
A152: MMV675615 | D152: 4.47 | E152: 163.2 | F152: 72.1 | G152: 104.2 | I152: 36.51006711 | J152: 16.12975391 | K152: 23.31096197 | M152: CDPK1 | N152: Imidazopyridazines as potent inhibitors of Plasmodium falciparum calcium-dependent protein kinase 1 (PfCDPK1): preparation and evaluation of pyrazole … JM Large | O152: Substituted imidazopyridazines are potent and selective inhibitors of Plasmodium falciparum calcium-dependent protein kinase 1 (PfCDPK1) TM Chapman | P152: New Amidated 3,6-Diphenylated Imidazopyridazines with Potent Antiplasmodium Activity Are Dual Inhibitors of Plasmodium Phosphatidylinositol-4-kinase and cGMP … PM Cheuka | Q152: Potent Plasmodium falciparum gametocytocidal compounds identified by exploring the kinase inhibitor chemical space for dual active antimalarials Mariëtte E van der Watt, | T152: PF3D7_0217500 | V152: 0.54 | W152: -0.07 | X152: 0.86 | AA152: 1.827664212 | AB152: 0.8228906159 | AC152: 5.078323128 | AD152: shared 3 stages | AE152: 2.221029353 | AF152: 0.3598952186 | AH152: 16.43835416 | AI152: 64.77152451 | AK152: 5 | AL152: 5
A153: MMV675615 | D153: 4.47 | E153: 163.2 | F153: 72.1 | G153: 104.2 | I153: 36.51006711 | J153: 16.12975391 | K153: 23.31096197 | M153: PK7 | N153: Imidazopyridazines as potent inhibitors of Plasmodium falciparum calcium-dependent protein kinase 1 (PfCDPK1): preparation and evaluation of pyrazole … JM Large | O153: Substituted imidazopyridazines are potent and selective inhibitors of Plasmodium falciparum calcium-dependent protein kinase 1 (PfCDPK1) TM Chapman | P153: New Amidated 3,6-Diphenylated Imidazopyridazines with Potent Antiplasmodium Activity Are Dual Inhibitors of Plasmodium Phosphatidylinositol-4-kinase and cGMP … PM Cheuka | Q153: Potent Plasmodium falciparum gametocytocidal compounds identified by exploring the kinase inhibitor chemical space for dual active antimalarials Mariëtte E van der Watt, | T153: PF3D7_0213400 | V153: 0.31 | W153: 0.27 | X153: -0.31 | AA153: 0.2246523051 | AB153: 0 | AC153: 0.1364636664 | AD153: not determined | AE153: 1.2 | AF153: 1.64624263 | AH153: 30.42505593 | AI153: 14.16010103 | AK153: 5 | AL153: 5
A154: MMV665980 | D154: 210.8 | E154: 5000 | F154: 5000 | G154: 5000 | I154: 23.71916509 | J154: 23.71916509 | K154: 23.71916509 | M154: phosphoethanolamine methyltransferase (PfPMT) | N154: A novel approach for the discovery of chemically diverse anti-malarial compounds targeting the Plasmodium falciparum Coenzyme A synthesis pathway S Fletcher | T154: PF3D7_1343000 | V154: 0.77 | W154: 1.48 | X154: 0.61 | AA154: 336.4138014 | AB154: 83.25579797 | AC154: 10.54781985 | AD154: enriched troph | AE154: 4.040725206 | AF154: 31.89415503 | AH154: 5.870026758 | AI154: 0.7436837585 | AK154: 5 | AL154: 5
A155: MMV006427 | D155: 78.2 | E155: 1960 | F155: 5000 | G155: 2237.62 | I155: 25.06393862 | J155: 63.93861893 | K155: 28.6140665 | M155: ATP4 | N155: E.L. Allman, H.J. Painter, J. Samra, M. Carrasquilla, M. Llinas Metabolomic profiling of the malaria box reveals antimalarial target pathways 2016 | O155: Open source drug discovery with the malaria box compound collection for neglected diseases and beyond Voorhis 2016 | P155: Diverse chemotypes disrupt ion homeostasis in the malaria parasite AM Lehane | T155: PF3D7_1211900 | V155: 0.33 | W155: -0.22 | X155: -0.49 | AA155: 1.773190862 | AB155: 0.4394601472 | AC155: 2.593813664 | AD155: shared 3 stages | AE155: 4.034929842 | AF155: 0.683623071 | AH155: 6.211740873 | AI155: 41.85649623 | AK155: 5 | AL155: 5
A156: NITD246 | B156: KAF246 | D156: 0.08 | E156: 2.104 | F156: 1.766 | G156: 2.355 | I156: 26.3 | J156: 22.075 | K156: 29.4375 | M156: ATP4 | N156: McNamara CW, Lee MC, Lim CS, Lim SH, Roland J, Nagle A, Simon O, Yeung BK, Chatterjee AK, McCormack SL, Manary MJ, Zeeman AM, Dechering KJ, Kumar TR, Henrich PP, Gagaring K, Ibanez M, Kato N, Kuhen KL, Fischli C, Rottmann M, Plouffe DM, Bursulaya B, Meister S, Rameh L, Trappe J, Haasen D, Timmerman M, Sauerwein RW, Suwanarusk R, Russell B, Renia L, Nosten F, Tully DC, Kocken CH, Glynne RJ, Bodenreider C, Fidock DA, Diagana TT, Winzeler EA. 2013. Targeting Plasmodium PI(4)K to eliminate malaria. Nature 504:248–253. | O156: Na+ extrusion imposes an acid load on the intraerythrocytic malaria parasite NJ Spillman | T156: PF3D7_1211900 | V156: 0.33 | W156: -0.22 | X156: -0.49 | AA156: 1.773190862 | AB156: 0.4394601472 | AC156: 2.593813664 | AD156: shared 3 stages | AE156: 4.034929842 | AF156: 0.683623071 | AH156: 6.518081114 | AI156: 43.06101015 | AK156: 5 | AL156: 5
A157: MMV674766 | D157: 7.86 | E157: 93.9 | F157: 66.4 | G157: 262.9 | I157: 11.94656489 | J157: 8.44783715 | K157: 33.44783715 | M157: PK7 | N157: Imidazopyridazines as potent inhibitors of Plasmodium falciparum calcium-dependent protein kinase 1 (PfCDPK1): preparation and evaluation of pyrazole … JM Large | O157: Substituted imidazopyridazines are potent and selective inhibitors of Plasmodium falciparum calcium-dependent protein kinase 1 (PfCDPK1) TM Chapman | P157: New Amidated 3,6-Diphenylated Imidazopyridazines with Potent Antiplasmodium Activity Are Dual Inhibitors of Plasmodium Phosphatidylinositol-4-kinase and cGMP … PM Cheuka | T157: PF3D7_0213400 | V157: 0.31 | W157: 0.27 | X157: -0.31 | AA157: 0.2246523051 | AB157: 0 | AC157: 0.1364636664 | AD157: not determined | AE157: 1.2 | AF157: 1.64624263 | AH157: 9.955470738 | AI157: 20.31768376 | AK157: 5 | AL157: 5
A158: MMV020243 | D158: 134.258604 | E158: 1058.32 | F158: 5000 | G158: 5000 | I158: 7.882697782 | J158: 37.24156107 | K158: 37.24156107 | M158: phosphatidylserine decarboxylase (PSD) | N158: Characterization of Plasmodium phosphatidylserine decarboxylase expressed in yeast and application for inhibitor screening JY Choi | O158: Identification of Novel Ezrin Inhibitors Targeting Metastatic Osteosarcoma by Screening Open Access Malaria BoxScreening MMV Malaria Box to Identify Novel Ezrin … H Çelik | T158: PF3D7_0927900 | V158: 0.6 | W158: -0.61 | X158: 0.16 | AA158: 0.9628761075 | AB158: 0 | AC158: 0.5848931925 | AD158: shared 3 stages | AE158: 1.9 | AF158: 1.64624263 | AH158: 4.148788306 | AI158: 22.62215811 | AK158: 5 | AL158: 5
A159: MMV019313 | D159: 115.85 | E159: 3928 | G159: 5000 | I159: 33.90591282 | K159: 43.15925766 | M159: bifunctional farnesyl/geranylgeranyl diphosphate synthase (FPPS/GGPPS) | N159: Specific inhibition of the bifunctional farnesyl/geranylgeranyl diphosphate synthase in malaria parasites via a new small-molecule binding site. JE Gisselberg. 2018 | O159: E.L. Allman, H.J. Painter, J. Samra, M. Carrasquilla, M. Llinas Metabolomic profiling of the malaria box reveals antimalarial target pathways 2016 | T159: PF3D7_1128400 | V159: 0.43 | W159: 0.1 | X159: 0.13 | AA159: 1.793245727 | AB159: 2.644193071 | AC159: 1.511886432 | AD159: shared 3 stages | AE159: 0.6781825982 | AF159: 1.186098169 | AH159: 49.9952563 | AI159: 36.38759321 | AK159: 5 | AL159: 5

Sheet ABS iGc targets Supp FigS5
A1: Compound identifier | B1: Trivial name | D1: Final ABS IC50 (nM) | E1: Final iGc IC50 (nM) | F1: Final LGc IC50 (nM) | G1: Final mGc IC50 (nM) | I1: FC iGC-ABS | J1: FC LGc-ABS | K1: FC mGc-ABS | M1: Target (implied/confirmed) | N1: References | U1: GeneID | W1: transcript expression (microarray) (Bozdech 2003, van Biljon 2019) | AB1: Proteome expression (Silvestrini 2010) | AG1: FC proteom (ABS/iGc) | AH1: FC proteome (iGc/ABS) | AJ1: Proteome data (Lasonder 2016) | AL1: Lasonder female | AM1: Lasonder male | AN1: F/M ratio | AP1: Essential (P. falciparum data) | AQ1: A = attenuated, difference in growth, D = different from wild type, U = no difference, I = invasion defect, S = cell cycle defect
W2: ABS | X2: iGc | Y2: mGc | AB2: T | AC2: iGc | AD2: mGc | AE2: classification | AK2: mGc (mixed) | AQ2: ABS | AR2: Gc
A3: MMV1580488 | B3: ML324 | D3: 2060.00 | E3: 188.00 | F3: 77.40 | I3: =E3/D3 -> 0.09 | J3: =F3/D3 -> 0.04 | M3: Jmjc3 | N3: Matthews KA, Senagbe KM, Nötzel C, Gonzales CA, Tong X, Rijo-Ferreira F, Bhanu NV, Miguel-Blanco C, Lafuente-Monasterio MJ, Garcia BA et al.. (2020) Disruption of the Plasmodium falciparum Life Cycle through Transcriptional Reprogramming by Inhibitors of Jumonji Demethylases. | U3: PF3D7_1122200 | W3: 0.76 | X3: 0.34 | Y3: 0.21 | AF3: Not detected | AJ3: Not detected | AP3: Not essential
A4: SD-70 | D4: 3200.00 | E4: 800.00 | I4: 0.25 | M4: Jmjc3 | N4: Matthews KA, Senagbe KM, Nötzel C, Gonzales CA, Tong X, Rijo-Ferreira F, Bhanu NV, Miguel-Blanco C, Lafuente-Monasterio MJ, Garcia BA et al.. (2020) Disruption of the Plasmodium falciparum Life Cycle through Transcriptional Reprogramming by Inhibitors of Jumonji Demethylases. | U4: PF3D7_1122200 | W4: 0.76 | X4: 0.34 | Y4: 0.21 | AF4: Not detected | AJ4: Not detected | AP4: Not essential
A5: MMV687273 | B5: SQ109 | D5: 1390.00 | E5: 383.00 | F5: 104.50 | I5: 0.28 | J5: =F5/D5 -> 0.08 | M5: V-type proton ATPase catalytic subunit A (vapA) | N5: Reader J, van der Watt ME, Taylor D, Le Manach C, Mittal N, Ottilie S, Theron A, Moyo P, Erlank E, Nardini L et al.. (2021)Multistage and transmission-blocking targeted antimalarials discovered from the open-source MMV Pandemic Response Box. | U5: PF3D7_1311900 | W5: 0.31 | X5: 0.05 | Y5: -0.27 | AB5: 5.707253086 | AC5: 4.157766612 | AD5: 52.08844442 | AE5: gct V enriched | AG5: =AB5/AC5 -> 1.372672788 | AH5: =AC5/AB5 -> 0.7285057364 | AJ5: Detected | AK5: 4753861181 | AL5: 6748000000 | AM5: 4641304567 | AN5: =AL5/AM5 -> 1.453901571 | AP5: Not essential
A6: MMV667491 | D6: 1230.00 | E6: 891.50 | F6: 696.40 | G6: 1390.65 | I6: 0.72 | J6: 0.57 | K6: =G6/D6 -> 1.13 | M6: phosphoethanolamine methyltransferase (PfPMT) | N6: Open source drug discovery with the malaria box compound collection for neglected diseases and beyond, van Voorhis 2016 | O6: Combining stage specificity and metabolomic profiling to advance antimalarial drug discovery JM Murithi | U6: PF3D7_1343000 | W6: 0.77 | X6: 1.48 | Y6: 0.61 | AB6: 336.4138014 | AC6: 83.25579797 | AD6: 10.54781985 | AE6: enriched troph | AG6: 4.040725206 | AH6: 0.2474803281 | AJ6: Detected | AK6: 114835488.6 | AL6: 1894500000 | AM6: 446647232.4 | AN6: 4.241602461 | AP6: Not essential/Essential | AQ6: A
A7: MMV665971 | D7: 489.00 | E7: 359.00 | F7: 228.00 | G7: 5000.00 | I7: 0.73 | J7: 0.47 | K7: 10.22 | M7: phosphatidylserine decarboxylase (PSD) | N7: Characterization of Plasmodium phosphatidylserine decarboxylase expressed in yeast and application for inhibitor screening JY Choi | U7: PF3D7_0927900 | W7: 0.6 | X7: -0.61 | Y7: 0.16 | AB7: 0.9628761075 | AC7: 0 | AD7: 0.5848931925 | AE7: shared 3 stages | AG7: 1.5 | AH7: 0 | AJ7: Not detected | AP7: Essential
A8: MMV665882 | D8: 337.00 | E8: 252.00 | F8: 63.00 | G8: 983.63 | I8: 0.75 | J8: 0.19 | K8: 2.92 | M8: AP2 domain transcription factor | N8: Open source drug discovery with the malaria box compound collection for neglected diseases and beyond, van Voorhis 2016 | O8: Mapping the malaria parasite druggable genome by using in vitro evolution and chemogenomics | U8: PF3D7_0613800 | W8: 0.3 | X8: 0.16 | Y8: 0.69 | AB8: 0.03482332458 | AC8: 0 | AD8: 0 | AE8: enriched troph | AG8: 1.1 | AH8: 0 | AJ8: Not detected | AP8: Essential (ortholog)
A9: MMV665882 | D9: 337.00 | E9: 252.00 | F9: 63.00 | G9: 983.63 | I9: 0.75 | J9: 0.19 | K9: 2.92 | M9: Hsp90 | N9: Open source drug discovery with the malaria box compound collection for neglected diseases and beyond, van Voorhis 2016 | O9: Mapping the malaria parasite druggable genome by using in vitro evolution and chemogenomics | U9: PF3D7_0708400 | W9: 0.47 | X9: 0.14 | Y9: -0.37 | AB9: 391.2443421 | AC9: 487.5030362 | AD9: 2642.761186 | AE9: gct V enriched | AG9: 0.8025474984 | AH9: 1.246032169 | AJ9: Detected | AK9: 2.810226702e+10 | AL9: 93040000000 | AM9: 2.430449039e+10 | AN9: 3.828099191 | AP9: Essential
A10: Barasertib (AZD1152-HQPA) | B10: Barasertib (AZD1152-HQPA) | D10: 677.80 | E10: 518.10 | F10: 1000.00 | I10: 0.76 | J10: 1.48 | M10: ARK3 | N10: Activity of epigenetic inhibitors against Plasmodium falciparum asexual and sexual blood stages LN Vanheer 2020 | O10: Yang J, Ikezoe T, Nishioka C, Tasaka T, Taniguchi A, Kuwayama Y, Komatsu N, Bandobashi K, Togitani K, Koeffler HP et al.. (2007) AZD1152, a novel and selective aurora B kinase inhibitor, induces growth arrest, apoptosis, and sensitization for tubulin depolymerizing agent or topoisomerase II inhibitor in human acute leukemia cells in vitro and in vivo. | U10: PF3D7_1356800 | W10: 0.75 | X10: 0.37 | Y10: 1.21 | AF10: Not detected | AJ10: Translationally repressed | AP10: Essential/Not essential
A11: Barasertib (AZD1152-HQPA) | B11: Barasertib (AZD1152-HQPA) | D11: 677.80 | E11: 518.10 | F11: 1000.00 | I11: 0.76 | J11: 1.48 | M11: ARK2 | N11: Activity of epigenetic inhibitors against Plasmodium falciparum asexual and sexual blood stages LN Vanheer 2020 | O11: Yang J, Ikezoe T, Nishioka C, Tasaka T, Taniguchi A, Kuwayama Y, Komatsu N, Bandobashi K, Togitani K, Koeffler HP et al.. (2007) AZD1152, a novel and selective aurora B kinase inhibitor, induces growth arrest, apoptosis, and sensitization for tubulin depolymerizing agent or topoisomerase II inhibitor in human acute leukemia cells in vitro and in vivo. | U11: PF3D7_0309200 | W11: 0.15 | X11: 1.22 | Y11: 0.88 | AF11: Not detected | AJ11: Detected | AK11: 5668429.125 | AL11: 3214137.015 | AM11: 8530385.8 | AN11: 0.3767868289 | AP11: Essential
A12: Barasertib (AZD1152-HQPA) | B12: Barasertib (AZD1152-HQPA) | D12: 677.80 | E12: 518.10 | F12: 1000.00 | I12: 0.76 | J12: 1.48 | M12: ARK1 | N12: Activity of epigenetic inhibitors against Plasmodium falciparum asexual and sexual blood stages LN Vanheer 2020 | O12: Yang J, Ikezoe T, Nishioka C, Tasaka T, Taniguchi A, Kuwayama Y, Komatsu N, Bandobashi K, Togitani K, Koeffler HP et al.. (2007) AZD1152, a novel and selective aurora B kinase inhibitor, induces growth arrest, apoptosis, and sensitization for tubulin depolymerizing agent or topoisomerase II inhibitor in human acute leukemia cells in vitro and in vivo. | U12: PF3D7_0605300 | W12: 0.37 | X12: 1.37 | Y12: 0.19 | AB12: 0 | AC12: 0 | AD12: 2.511191734 | AE12: gct V enriched | AG12: 1 | AJ12: Detected | AK12: 77571928.73 | AL12: 10413000 | AM12: 135021045.8 | AN12: 0.0771213105 | AP12: Essential
A13: MMV665852 | B13: NSC 35217 | D13: 5171.67 | E13: 3978.00 | G13: 5000.00 | I13: 0.77 | K13: =G13/D13 -> 0.97 | M13: erythrocyte membrane protein 1 (PfEMP1) | N13: Corey VC, Lukens AK, Istvan ES, et al. A broad analysis of resistance development in the malaria parasite. Nat Commun. 2016;7:11901. | O13: Cowell AN, Istvan ES, Lukens AK, et al. Mapping the malaria parasite druggable genome by using in vitro evolution and chemogenomics. Science. 2018;359(6372):191-199. | P13: Screening for potential prophylactics targeting sporozoite motility through the skin RG Douglas 2018 | U13: PF3D7_1219500 | W13: 0.43 | X13: 0.04 | Y13: 0.7 | AF13: Not detected | AJ13: Not detected | AP13: Not essential
A14: MMV665852 | B14: NSC 35217 | D14: 5171.67 | E14: 3978.00 | G14: 5000.00 | I14: 0.77 | K14: =G14/D14 -> 0.97 | M14: phospholipid-transporting ATPase 2 (ATP2) | N14: Corey VC, Lukens AK, Istvan ES, et al. A broad analysis of resistance development in the malaria parasite. Nat Commun. 2016;7:11901. | O14: Cowell AN, Istvan ES, Lukens AK, et al. Mapping the malaria parasite druggable genome by using in vitro evolution and chemogenomics. Science. 2018;359(6372):191-199. | P14: Screening for potential prophylactics targeting sporozoite motility through the skin RG Douglas 2018 | U14: PF3D7_1219600 | W14: 0.26 | X14: -0.16 | Y14: -0.4 | AB14: 0 | AC14: 0 | AD14: 0.3379404427 | AE14: gct V enriched | AG14: 1 | AJ14: Detected | AK14: 38850536.94 | AL14: 30051000 | AM14: 36855198.63 | AN14: 0.8153802209 | AP14: Essential
A15: MMV665852 | B15: NSC 35217 | D15: 5171.67 | E15: 3978.00 | G15: 5000.00 | I15: 0.77 | K15: =G15/D15 -> 0.97 | M15: PKG | N15: Corey VC, Lukens AK, Istvan ES, et al. A broad analysis of resistance development in the malaria parasite. Nat Commun. 2016;7:11901. | O15: Cowell AN, Istvan ES, Lukens AK, et al. Mapping the malaria parasite druggable genome by using in vitro evolution and chemogenomics. Science. 2018;359(6372):191-199. | P15: Screening for potential prophylactics targeting sporozoite motility through the skin RG Douglas 2018 | U15: PF3D7_1436600 | W15: 0.47 | X15: -0.44 | Y15: 0.1 | AB15: 0 | AC15: 0.0682448935 | AD15: 2.025305457 | AE15: gct V enriched | AG15: 0.8 | AJ15: Detected | AK15: 187255751.4 | AL15: 109730000 | AM15: 295371702.9 | AN15: 0.3714980106 | AP15: Essential
A16: MMV665953 | D16: 2060.00 | E16: 1645.00 | F16: 5000.00 | G16: 5000.00 | I16: 0.80 | J16: =F16/D16 -> 2.43 | K16: =G16/D16 -> 2.43 | M16: calmodulin (CAM) | N16: The Medicines for Malaria Venture Malaria Box contains inhibitors of protein secretion in Plasmodium falciparum blood stage parasites O Looker | O16: Comparison of ligand binding and conformational stability of human calmodulin with its homolog from the malaria parasite Plasmodium falciparum T Juhász, | U16: PF3D7_1434200 | W16: 0.66 | X16: -0.08 | Y16: 0.22 | AF16: Not detected | AJ16: Detected | AK16: 10931146.99 | AL16: 236040000 | AM16: 342385661.2 | AN16: 0.689398029 | AP16: Essential
A17: Trichostatin A | B17: Trichostatin A | D17: 62.30 | E17: 53.90 | F17: 3795.50 | I17: 0.87 | J17: 60.92 | M17: HDAC1 | N17: Activity of epigenetic inhibitors against Plasmodium falciparum asexual and sexual blood stages LN Vanheer 2020 | O17: Lysine acetylation in sexual stage malaria parasites is a target for antimalarial small molecules K Trenholme | U17: PF3D7_0925700 | W17: 0.51 | X17: -0.22 | Y17: -0.69 | AB17: 0.364934702 | AC17: 0.1587140161 | AD17: 0.221677349 | AE17: enriched troph | AG17: 2.299322461 | AH17: 0.4349107256 | AJ17: Not detected | AP17: Essential
A18: ZM 447439 | D18: 210.40 | E18: 189.40 | F18: 1000.00 | I18: 0.90 | J18: 4.75 | M18: ARK1 | N18: Activity of epigenetic inhibitors against Plasmodium falciparum asexual and sexual blood stages LN Vanheer 2020 | U18: PF3D7_0605300 | W18: 0.37 | X18: 1.37 | Y18: 0.19 | AB18: 0 | AC18: 0 | AD18: 2.511191734 | AE18: gct V enriched | AG18: 1 | AJ18: Detected | AK18: 77571928.73 | AL18: 10413000 | AM18: 135021045.8 | AN18: 0.0771213105 | AP18: Essential
A19: ZM 447439 | D19: 210.40 | E19: 189.40 | F19: 1000.00 | I19: 0.90 | J19: 4.75 | M19: NEK1 | N19: Activity of epigenetic inhibitors against Plasmodium falciparum asexual and sexual blood stages LN Vanheer 2020 | U19: PF3D7_1228300 | W19: 0.07 | X19: 0.23 | Y19: 0.17 | AB19: 0 | AC19: 0 | AD19: 0.1979298107 | AE19: gct V enriched | AG19: 1 | AJ19: Detected | AK19: 2783502.141 | AL19: 2836500 | AM19: 68353087.95 | AN19: 0.04149775943 | AP19: Essential/Not essential
A20: CX-6258 HCl | B20: CX-6258 HCl | D20: 494.30 | E20: 472.20 | F20: 1000.00 | I20: 0.96 | J20: 2.02 | M20: serine/threonine kinases | N20: Activity of epigenetic inhibitors against Plasmodium falciparum asexual and sexual blood stages LN Vanheer 2020 | O20: Haddach M, Michaux J, Schwaebe MK, Pierre F, O'Brien SE, Borsan C, Tran J, Raffaele N, Ravula S, Drygin D et al.. (2012) Discovery of CX-6258. A Potent, Selective, and Orally Efficacious pan-Pim Kinases Inhibitor. | W20: 0.4972413793 | X20: 0.4348275862 | Y20: 0.4413793103 | Z20: Average | AB20: 0.151489917 | AC20: 0.2290765631 | AD20: 0.6138576527 | AE20: gct V enriched | AF20: Average | AG20: 0.6613069227 | AH20: 1.512157163 | AJ20: Detected | AK20: 275788067.4 | AL20: 422139337.5 | AM20: 306182163.2 | AN20: 1.37871956 | AP20: Essential/Not essential
A21: MMV000050 | B21: Chlorproguanil | D21: 5000.00 | E21: 5000.00 | F21: 2002.60 | G21: 4160.00 | I21: 1.00 | J21: 0.40 | K21: =G21/D21 -> 0.83 | M21: hydroxymethyldihydropterin pyrophosphokinase-dihydropteroate synthase (PfPPPK-DHPS) | N21: Zhang Y, Meshnick SR. (1991) Inhibition of Plasmodium falciparum dihydropteroate synthetase and growth in vitro by sulfa drugs. | U21: PF3D7_0810800 | W21: 0.54 | X21: -0.3 | Y21: -0.18 | AB21: 1.438515492 | AC21: 0.5560138313 | AD21: 0.1699891066 | AE21: enriched troph | AG21: 2.58719372 | AH21: 0.3865191819 | AJ21: Detected | AK21: 8837958.657 | AL21: 66947000 | AM21: 11250583.59 | AN21: 5.950535762 | AP21: Essential
A22: MMV007224 | B22: MMV007224 | D22: 5000.00 | E22: 5000.00 | G22: 5000.00 | I22: 1.00 | K22: 1.00 | M22: phospholipid-transporting ATPase 2 (ATP2) | N22: Mapping the malaria parasite druggable genome by using in vitro evolution and chemogenomics. Cowell. 2018 | O22: Lipid transport proteins in malaria, from Plasmodium parasites to their hosts M Ressurreição 2021 | P22: Screening for potential prophylactics targeting sporozoite motility through the skin RG Douglas 2018 | Q22: Generation of a mutator parasite to drive resistome discovery in Plasmodium falciparum K Kumpornsin | U22: PF3D7_1219600 | W22: 0.26 | X22: -0.16 | Y22: -0.4 | AB22: 0 | AC22: 0 | AD22: 0.3379404427 | AE22: gct V enriched | AG22: 1 | AJ22: Detected | AK22: 38850536.94 | AL22: 30051000 | AM22: 36855198.63 | AN22: 0.8153802209 | AP22: Essential
A23: MMV007224 | B23: MMV007224 | D23: 5000.00 | E23: 5000.00 | G23: 5000.00 | I23: 1.00 | K23: 1.00 | M23: amino acid transporter AAT1 | N23: Mapping the malaria parasite druggable genome by using in vitro evolution and chemogenomics. Cowell. 2018 | O23: Lipid transport proteins in malaria, from Plasmodium parasites to their hosts M Ressurreição 2021 | P23: Screening for potential prophylactics targeting sporozoite motility through the skin RG Douglas 2018 | Q23: Generation of a mutator parasite to drive resistome discovery in Plasmodium falciparum K Kumpornsin | U23: PF3D7_0629500 | W23: 0.31 | X23: -0.31 | Y23: -0.59 | AF23: Not detected | AJ23: Detected | AK23: 3042923.635 | AL23: 6972800 | AM23: 6511740.419 | AN23: 1.070804355 | AP23: Essential
A24: MMV007224 | B24: MMV007224 | D24: 5000.00 | E24: 5000.00 | G24: 5000.00 | I24: 1.00 | K24: 1.00 | M24: CCR4-associated factor 16 (CAF16) | N24: Mapping the malaria parasite druggable genome by using in vitro evolution and chemogenomics. Cowell. 2018 | O24: Lipid transport proteins in malaria, from Plasmodium parasites to their hosts M Ressurreição 2021 | P24: Screening for potential prophylactics targeting sporozoite motility through the skin RG Douglas 2018 | Q24: Generation of a mutator parasite to drive resistome discovery in Plasmodium falciparum K Kumpornsin | U24: PF3D7_1434000 | W24: 0.74 | X24: 0.24 | Y24: 0.02 | AF24: Not detected | AJ24: Detected | AK24: 249143.5242 | AL24: 7014000 | AM24: 11440745.84 | AN24: 0.6130719186 | AP24: Essential
A25: MMV007224 | B25: MMV007224 | D25: 5000.00 | E25: 5000.00 | G25: 5000.00 | I25: 1.00 | K25: 1.00 | M25: QRP1? | N25: Mapping the malaria parasite druggable genome by using in vitro evolution and chemogenomics. Cowell. 2018 | O25: Lipid transport proteins in malaria, from Plasmodium parasites to their hosts M Ressurreição 2021 | P25: Screening for potential prophylactics targeting sporozoite motility through the skin RG Douglas 2018 | Q25: Generation of a mutator parasite to drive resistome discovery in Plasmodium falciparum K Kumpornsin | U25: PF3D7_1359900 | W25: 0.59 | X25: -0.05 | Y25: 0.22 | AF25: Not detected | AJ25: Not detected | AP25: Not essential
A26: MMV007224 | B26: MMV007224 | D26: 5000.00 | E26: 5000.00 | G26: 5000.00 | I26: 1.00 | K26: 1.00 | M26: thrombospondin-related anonymous protein (TRAP) | N26: Mapping the malaria parasite druggable genome by using in vitro evolution and chemogenomics. Cowell. 2018 | O26: Lipid transport proteins in malaria, from Plasmodium parasites to their hosts M Ressurreição 2021 | P26: Screening for potential prophylactics targeting sporozoite motility through the skin RG Douglas 2018 | Q26: Generation of a mutator parasite to drive resistome discovery in Plasmodium falciparum K Kumpornsin | U26: PF3D7_1335900 | W26: 0.82 | X26: 0.91 | Y26: 0.81 | AF26: Not detected | AJ26: Translationally repressed | AP26: Not essential
A27: MMV000030 | B27: Thiostrepton | D27: 913.00 | E27: 959.00 | F27: 556.00 | G27: 3260.74 | I27: 1.05 | J27: =F27/D27 -> 0.61 | K27: 3.57 | M27: apicoplast ribosome | N27: B. Clough, M. Strath, P. Preiser, P. Denny, I.R. Wilson Thiostrepton binds to malarial plastid rRNA FEBS Lett, 406 (1997) | O27: M.J. Rogers, Y.V. Bukhman, T.F. McCutchan, D.E. Draper Interaction of thiostrepton with an RNA fragment derived from the plastid-encoded ribosomal RNA of the malaria parasite RNA, 3 (1997) | P27: Aminake MN, Schoof S, Sologub L, Leubner M, Kirschner M, Arndt HD, Pradel G. 2011. Thiostrepton and derivatives exhibit antimalarial and gametocytocidal activity by dually targeting parasite proteasome and apicoplast. Antimicrob. Agents Chemother. 55:1338 –1348. | W27: 0.8017096774 | X27: 0.4807870968 | Y27: 0.1553258065 | Z27: Average | AB27: 24.7129777 | AC27: 85.40557604 | AD27: 1459.533101 | AE27: gct V enriched | AF27: Average | AG27: 0.2893602367 | AH27: 3.455899855 | AJ27: Detected | AK27: 1539680719 | AL27: 1132392260 | AM27: 592017901 | AN27: 1.912766925 | AP27: Essential/Not essential
A28: MMV000030 | B28: Thiostrepton | D28: 913.00 | E28: 959.00 | F28: 556.00 | G28: 3260.74 | I28: 1.05 | J28: 0.61 | K28: 3.57 | M28: 20S proteosome | N28: B. Clough, M. Strath, P. Preiser, P. Denny, I.R. Wilson Thiostrepton binds to malarial plastid rRNA FEBS Lett, 406 (1997) | O28: M.J. Rogers, Y.V. Bukhman, T.F. McCutchan, D.E. Draper Interaction of thiostrepton with an RNA fragment derived from the plastid-encoded ribosomal RNA of the malaria parasite RNA, 3 (1997) | P28: Aminake MN, Schoof S, Sologub L, Leubner M, Kirschner M, Arndt HD, Pradel G. 2011. Thiostrepton and derivatives exhibit antimalarial and gametocytocidal activity by dually targeting parasite proteasome and apicoplast. Antimicrob. Agents Chemother. 55:1338 –1348. | W28: 0.4142857143 | X28: 0.2892857143 | Y28: 0.1192857143 | Z28: Average | AB28: 4.371904225 | AC28: 14.74472314 | AD28: 53.19581726 | AE28: gct V enriched | AF28: Average | AG28: 0.2965063625 | AH28: 3.37260891 | AJ28: Detected | AK28: 1385888365 | AL28: 3846228571 | AM28: 1162706304 | AN28: 3.30799666 | AP28: Essential/Not essential
A29: MMV007273 | D29: 1278.00 | E29: 1361.00 | F29: 5000.00 | G29: 5000.00 | I29: 1.06 | J29: 3.91 | K29: 3.91 | M29: 6-phosphogluconate dehydrogenase | N29: Identification of β-hematin inhibitors in the MMV Malaria Box KY Fong | O29: Characterization of Plasmodium falciparum 6-phosphogluconate dehydrogenase as an antimalarial drug target K Haeussler | U29: PF3D7_1454700 | W29: 0.29 | X29: 0.18 | Y29: -0.08 | AB29: 1.717623246 | AC29: 5.869374848 | AD29: 16.43328822 | AE29: gct V enriched | AG29: 0.2926415999 | AH29: 3.417149169 | AJ29: Detected | AK29: 1936470222 | AL29: 2758600000 | AM29: 3486288340 | AN29: 0.7912713266 | AP29: Essential
A30: Vorinostat (SAHA, MK0683) | B30: Vorinostat (SAHA, MK0683) | D30: 206.30 | E30: 233.10 | F30: 1000.00 | I30: 1.13 | J30: 4.85 | M30: HDAC1 | N30: Activity of epigenetic inhibitors against Plasmodium falciparum asexual and sexual blood stages LN Vanheer 2020 | O30: In silico identification of inhibitors against Plasmodium falciparum histone deacetylase 1 (PfHDAC-1) A Kumar | U30: PF3D7_0925700 | W30: 0.51 | X30: -0.22 | Y30: -0.69 | AB30: 0.364934702 | AC30: 0.1587140161 | AD30: 0.221677349 | AE30: enriched troph | AG30: 2.299322461 | AH30: 0.4349107256 | AJ30: Not detected | AP30: Essential
A31: MMV019881 | D31: 646.00 | E31: 740.91 | F31: 287.60 | G31: 1502.00 | I31: 1.15 | J31: 0.45 | K31: =G31/D31 -> 2.33 | M31: Hsp90 | N31: Open source drug discovery with the malaria box compound collection for neglected diseases and beyond, van Voorhis 2016 | O31: Malaria Box Compounds against Anopheles gambiae (Diptera: Culicidae) Carboxypeptidase B Activity to Block Malaria Transmission Tippawan Pomun | U31: PF3D7_0708400 | W31: 0.47 | X31: 0.14 | Y31: -0.37 | AB31: 391.2443421 | AC31: 487.5030362 | AD31: 2642.761186 | AE31: gct V enriched | AG31: 0.8025474984 | AH31: 1.246032169 | AJ31: Detected | AK31: 2.810226702e+10 | AL31: 93040000000 | AM31: 2.430449039e+10 | AN31: 3.828099191 | AP31: Essential
A32: MMV016838 | D32: 1718.00 | E32: 2000.00 | G32: 5000.00 | I32: 1.16 | K32: =G32/D32 -> 2.91 | M32: eEF2 | N32: A novel multiple-stage antimalarial agent that inhibits protein synthesis. Beatriz Baragaña. 2015 | O32: Screening the Medicines for Malaria Venture Pathogen Box for invasion and egress inhibitors of the blood stage of Plasmodium falciparum reveals several inhibitory compounds Author links open overlay panelMadeline G.Dans. 2020 | U32: PF3D7_1451100 | W32: 0.72 | X32: -0.3 | Y32: -1 | AB32: 36.21509657 | AC32: 20.79857305 | AD32: 60.26804781 | AE32: shared 3 stages | AG32: 1.741229867 | AH32: 0.5743067123 | AJ32: Detected | AK32: 8763016764 | AL32: 19691000000 | AM32: 2265856301 | AN32: 8.690312793 | AP32: Essential (ortholog)
A33: MMV1542945 | B33: ACT-451840 | D33: 8.34 | E33: 9.90 | G33: 11.10 | I33: 1.19 | K33: =G33/D33 -> 1.33 | M33: MDR1 | N33: CRISPR‐Cas9‐modified pfmdr1 protects Plasmodium falciparum asexual blood stages and gametocytes against a class of piperazine‐containing compounds. CL Ng 2016 | O33: Brunner R, Aissaoui H, Boss C, Bozdech Z, Brun R, Corminboeuf O, Delahaye S, Fischli C, Heidmann B, Kaiser M et al.. (2012) Identification of a new chemical class of antimalarials. | P33: Brunner R, Ng CL, Aissaoui H, Akabas MH, Boss C, Brun R, Callaghan PS, Corminboeuf O, Fidock DA, Frame IJ et al.. (2013) UV-triggered affinity capture identifies interactions between the Plasmodium falciparum multidrug resistance protein 1 (PfMDR1) and antimalarial agents in live parasitized cells | U33: PF3D7_0523000 | W33: 0.55 | X33: -0.14 | Y33: -0.37 | AB33: 4.185382763 | AC33: 2.612005628 | AD33: 5.559963281 | AE33: shared 3 stages | AG33: 1.602363609 | AH33: 0.6240780773 | AJ33: Detected | AK33: 1075298324 | AL33: 2109100000 | AM33: 611327737.5 | AN33: 3.45003158 | AP33: Essential
A34: Lestaurtinib | D34: 136.10 | E34: 170.40 | F34: 950.40 | I34: 1.25 | J34: =F34/D34 -> 6.98 | M34: CDPK1 | N34: Activity of epigenetic inhibitors against Plasmodium falciparum asexual and sexual blood stages LN Vanheer 2020 | O34: Swords R, Freeman C, Giles F. 2012. Targeting the FMS-like tyrosine kinase 3 in acute myeloid leukemia. | P34: Expression of the essential kinase PfCDPK1 from Plasmodium falciparum in Toxoplasma gondii facilitates the discovery of novel antimalarial drugs RY Gaji | U34: PF3D7_0217500 | W34: 0.54 | X34: -0.07 | Y34: 0.86 | AB34: 1.827664212 | AC34: 0.8228906159 | AD34: 5.078323128 | AE34: shared 3 stages | AG34: 2.221029353 | AH34: 0.4502416858 | AJ34: Detected | AK34: 1326801430 | AL34: 360430000 | AM34: 3411452183 | AN34: 0.1056529538 | AP34: Essential | AQ34: I S | AR34: A
A35: MMV007907 | D35: 350.00 | E35: 461.00 | F35: 231.00 | I35: 1.32 | J35: =F35/D35 -> 0.66 | M35: autophagy-related protein 8 (ATG8) | N35: Open source drug discovery with the malaria box compound collection for neglected diseases and beyond, van Voorhis 2016 | O35: Characterization of Plasmodium Atg3-Atg8 interaction inhibitors identifies novel alternative mechanisms of action in Toxoplasma gondii JM Varberg | U35: PF3D7_1019900 | W35: 0.69 | X35: -0.17 | Y35: 1.04 | AB35: 0 | AC35: 1.173120141 | AD35: 1.371373706 | AE35: gct V enriched | AG35: 0.5 | AJ35: Not detected | AP35: Essential | AQ35: A
A36: MMV007907 | D36: 350.00 | E36: 461.00 | F36: 231.00 | I36: 1.32 | J36: 0.66 | M36: autophagy-related protein 3 (ATG3) | N36: Open source drug discovery with the malaria box compound collection for neglected diseases and beyond, van Voorhis 2016 | O36: Characterization of Plasmodium Atg3-Atg8 interaction inhibitors identifies novel alternative mechanisms of action in Toxoplasma gondii JM Varberg | U36: PF3D7_0905700 | W36: 0.33 | X36: 0.45 | Y36: 0.09 | AF36: Not detected | AJ36: Not detected | AP36: Essential (ortholog)
A37: MMV000704 | D37: 1091.06 | E37: 1462.00 | F37: 5000.00 | I37: 1.34 | J37: 4.58 | M37: phosphoethanolamine methyltransferase (PfPMT) | N37: Open Source Drug Discovery with the Malaria Box Compound Collection for Neglected Diseases and Beyond Wesley C. Van Open source drug discovery with the malaria box compound collection for neglected diseases and beyond, van Voorhis 2016 2016 | U37: PF3D7_1343000 | W37: 0.77 | X37: 1.48 | Y37: 0.61 | AB37: 336.4138014 | AC37: 83.25579797 | AD37: 10.54781985 | AE37: enriched troph | AG37: 4.040725206 | AH37: 0.2474803281 | AJ37: Detected | AK37: 114835488.6 | AL37: 1894500000 | AM37: 446647232.4 | AN37: 4.241602461 | AP37: Not essential/Essential | AQ37: A
A38: Celastrol | B38: Celastrol | D38: 820.00 | E38: 1160.00 | F38: 282.40 | I38: 1.41 | J38: 0.34 | M38: glutathione reductase (GR) | N38: Antimalarial and antitumour activities of the steroidal quinone-methide celastrol and its combinations with artemiside, artemisone and methylene blue Ng 2022 | U38: PF3D7_1419800 | W38: 0.71 | X38: 0.64 | Y38: -0.14 | AB38: 1.15443469 | AC38: 1.057018224 | AD38: 9 | AE38: gct V enriched | AG38: 1.092161577 | AH38: 0.9156154375 | AJ38: Not detected | AP38: Essential
A39: Celastrol | B39: Celastrol | D39: 820.00 | E39: 1160.00 | F39: 282.40 | I39: 1.41 | J39: 0.34 | M39: Thioredoxin Reductase (PfTrxR) | N39: Antimalarial and antitumour activities of the steroidal quinone-methide celastrol and its combinations with artemiside, artemisone and methylene blue Ng 2022 | U39: PF3D7_0923800 | W39: 0.25 | X39: 0.12 | Y39: 0.31 | AB39: 0.2942965475 | AC39: 0.2694624621 | AD39: 3.770582696 | AE39: gct V enriched | AG39: 1.092161577 | AH39: 0.9156154375 | AJ39: Not detected | AP39: Essential/Not essential
A40: Triclosan | B40: Triclosan | D40: 5.30 | E40: 7.50 | I40: 1.42 | M40: P. falciparum enoyl reductase (PfENR) | N40: Perozzo, R. et al. Structural elucidation of the specificity of the antibacterial agent triclosan for malarial enoyl acyl carrier protein reductase. | O40: Freundlich, J. S. et al. X-ray structural analysis of Plasmodium falciparum enoyl acyl carrier protein reductase as a pathway toward the optimization of triclosan antimalarial efficacy. | P40: Kumar, S. P., George, L. B., Jasrai, Y. T. & Pandya, H. A. Prioritization of active antimalarials using structural interaction profile of Plasmodium falciparum enoyl-acyl carrier protein reductase (PfENR)-triclosan derivatives. | Q40: Plasmodium dihydrofolate reductase is a second enzyme target for the antimalarial action of triclosan E Bilsland | U40: PF3D7_0615100 | W40: 0.62 | X40: 2.1 | Y40: 1.53 | AB40: 0 | AC40: 0.7051256087 | AD40: 0.3335214322 | AE40: gct I/II enriched | AG40: 0.7 | AJ40: Translationally repressed | AP40: Not essential | AQ40: U
A41: Triclosan | B41: Triclosan | D41: 5.30 | E41: 7.50 | I41: 1.42 | M41: DHFR-TS | N41: Perozzo, R. et al. Structural elucidation of the specificity of the antibacterial agent triclosan for malarial enoyl acyl carrier protein reductase. | O41: Freundlich, J. S. et al. X-ray structural analysis of Plasmodium falciparum enoyl acyl carrier protein reductase as a pathway toward the optimization of triclosan antimalarial efficacy. | P41: Kumar, S. P., George, L. B., Jasrai, Y. T. & Pandya, H. A. Prioritization of active antimalarials using structural interaction profile of Plasmodium falciparum enoyl-acyl carrier protein reductase (PfENR)-triclosan derivatives. | Q41: Plasmodium dihydrofolate reductase is a second enzyme target for the antimalarial action of triclosan E Bilsland | U41: PF3D7_0417200 | W41: 0.11 | X41: 0.52 | Y41: 0.13 | AB41: 1.15443469 | AC41: 0.6407679531 | AD41: 10.93776642 | AE41: gct V enriched | AG41: 1.801642364 | AH41: 0.555049115 | AJ41: Detected | AK41: 3107354810 | AL41: 901370000 | AM41: 1885999901 | AN41: 0.4779268545 | AP41: Essential | AQ41: A
A42: GSK1070916 | D42: 535.20 | E42: 761.10 | F42: 1000.00 | I42: 1.42 | J42: =F42/D42 -> 1.87 | M42: ARK3 | N42: Activity of epigenetic inhibitors against Plasmodium falciparum asexual and sexual blood stages LN Vanheer 2020 | O42: Adams ND, Adams JL, Burgess JL, Chaudhari AM, Copeland RA, Donatelli CA, Drewry DH, Fisher KE, Hamajima T, Hardwicke MA et al.. (2010)Discovery of GSK1070916, a potent and selective inhibitor of Aurora B/C kinase. | U42: PF3D7_1356800 | W42: 0.75 | X42: 0.37 | Y42: 1.21 | AF42: Not detected | AJ42: Translationally repressed | AP42: Essential/Not essential
A43: GSK1070916 | D43: 535.20 | E43: 761.10 | F43: 1000.00 | I43: 1.42 | J43: 1.87 | M43: ARK2 | N43: Activity of epigenetic inhibitors against Plasmodium falciparum asexual and sexual blood stages LN Vanheer 2020 | O43: Adams ND, Adams JL, Burgess JL, Chaudhari AM, Copeland RA, Donatelli CA, Drewry DH, Fisher KE, Hamajima T, Hardwicke MA et al.. (2010)Discovery of GSK1070916, a potent and selective inhibitor of Aurora B/C kinase. | U43: PF3D7_0309200 | W43: 0.15 | X43: 1.22 | Y43: 0.88 | AF43: Not detected | AJ43: Detected | AK43: 5668429.125 | AL43: 3214137.015 | AM43: 8530385.8 | AN43: 0.3767868289 | AP43: Essential
A44: GSK1070916 | D44: 535.20 | E44: 761.10 | F44: 1000.00 | I44: 1.42 | J44: 1.87 | M44: ARK1 | N44: Activity of epigenetic inhibitors against Plasmodium falciparum asexual and sexual blood stages LN Vanheer 2020 | O44: Adams ND, Adams JL, Burgess JL, Chaudhari AM, Copeland RA, Donatelli CA, Drewry DH, Fisher KE, Hamajima T, Hardwicke MA et al.. (2010)Discovery of GSK1070916, a potent and selective inhibitor of Aurora B/C kinase. | U44: PF3D7_0605300 | W44: 0.37 | X44: 1.37 | Y44: 0.19 | AB44: 0 | AC44: 0 | AD44: 2.511191734 | AE44: gct V enriched | AG44: 1 | AJ44: Detected | AK44: 77571928.73 | AL44: 10413000 | AM44: 135021045.8 | AN44: 0.0771213105 | AP44: Essential
A45: GSK1070916 | D45: 535.20 | E45: 761.10 | F45: 1000.00 | I45: 1.42 | J45: 1.87 | M45: serine/threonine kinases | N45: Activity of epigenetic inhibitors against Plasmodium falciparum asexual and sexual blood stages LN Vanheer 2020 | O45: Adams ND, Adams JL, Burgess JL, Chaudhari AM, Copeland RA, Donatelli CA, Drewry DH, Fisher KE, Hamajima T, Hardwicke MA et al.. (2010)Discovery of GSK1070916, a potent and selective inhibitor of Aurora B/C kinase. | W45: 0.4972413793 | X45: 0.4348275862 | Y45: 0.4413793103 | Z45: Average | AB45: 0.151489917 | AC45: 0.2290765631 | AD45: 0.6138576527 | AE45: gct V enriched | AF45: Average | AG45: 0.6613069227 | AH45: 1.512157163 | AJ45: Detected | AK45: 275788067.4 | AL45: 422139337.5 | AM45: 306182163.2 | AN45: 1.37871956 | AP45: Essential/Not essential
A46: MMV666597 | D46: 551.00 | E46: 819.00 | F46: 465.00 | G46: 1927.00 | I46: 1.49 | J46: 0.84 | K46: =G46/D46 -> 3.50 | M46: Saglin (thrombospondin-related anonymous protein?) | N46: Transcriptome Analysis of Uninfected and Plasmodium vivax-infected Anopheles dirus at Ookinete and Oocyst Stages and Targeting Anopheles Carboxypeptidase B … T Boonkaew | U46: PF3D7_1335900 | W46: 0.82 | X46: 0.91 | Y46: 0.81 | AF46: Not detected | AJ46: Translationally repressed | AP46: Not essential
A47: MMV396749 | D47: 928.00 | E47: 1384.56 | F47: 5000.00 | G47: 1354.33 | I47: 1.49 | J47: 5.39 | K47: =G47/D47 -> 1.46 | M47: ATP4 | N47: E.L. Allman, H.J. Painter, J. Samra, M. Carrasquilla, M. Llinas Metabolomic profiling of the malaria box reveals antimalarial target pathways 2016 | O47: Open source drug discovery with the malaria box compound collection for neglected diseases and beyond, van Voorhis 2016 | P47: Diverse chemotypes disrupt ion homeostasis in the malaria parasite AM Lehane | Q47: Targeted phenotypic screening in Plasmodium falciparum and Toxoplasma gondii reveals novel modes of action of medicines for malaria venture malaria box … G Subramanian | U47: PF3D7_1211900 | W47: 0.33 | X47: -0.22 | Y47: -0.49 | AB47: 1.773190862 | AC47: 0.4394601472 | AD47: 2.593813664 | AE47: shared 3 stages | AG47: 4.034929842 | AH47: 0.2478357838 | AJ47: Detected | AK47: 636393353.8 | AL47: 392860000 | AM47: 65708369.94 | AN47: 5.978842579 | AP47: Essential
A48: Epoxomycin | B48: Epoxomycin | D48: 8.00 | E48: 12.10 | F48: 0.42 | G48: 3.80 | I48: 1.51 | J48: 0.05 | K48: =G48/D48 -> 0.48 | M48: Proteosome subunit beta type-5 | N48: rasad R, Atul Kolla VK, Legac J, Singhal N, NavaleR, Rosenthal PJ & Sijwali PS (2013) BlockingPlasmodium falciparumdevelopment via dualinhibition of hemoglobin degradation and theubiquitin proteasome system by MG13 | U48: PF3D7_1011400 | W48: 0.17 | X48: 0.88 | Y48: 0.57 | AB48: 1.39576648 | AC48: 5.489058493 | AD48: 6.356422545 | AE48: gct V enriched | AG48: 0.2542815826 | AH48: 3.932648169 | AJ48: Detected | AK48: 863717094.5 | AL48: 2420200000 | AM48: 905523360 | AN48: 2.672708521 | AP48: Essential (ortholog)
A49: MMV011895 | D49: 842.00 | E49: 1286.53 | F49: 5000.00 | G49: 5000.00 | I49: 1.53 | J49: 5.94 | K49: =G49/D49 -> 5.94 | M49: chloroquine resistance transporter (CRT) | N49: Mapping the malaria parasite druggable genome by using in vitro evolution and chemogenomics. Cowell. 2018 | O49: Identification of β-hematin inhibitors in the MMV Malaria Box KY Fong 2015 | P49: Characterization of Plasmodium falciparum 6-phosphogluconate dehydrogenase as an antimalarial drug target K Haeussler 2018 | U49: PF3D7_0709000 | W49: 0.71 | X49: -0.13 | Y49: -0.9 | AB49: 2.488931895 | AC49: 0.1839214869 | AD49: 0.5848931925 | AE49: enriched troph | AG49: 13.53257815 | AH49: 0.0738957491 | AJ49: Detected | AK49: 12619931.9 | AL49: 55641000 | AM49: 158501694.9 | AN49: 0.3510435648 | AP49: Essential | AQ49: D
A50: MMV011895 | D50: 842.00 | E50: 1286.53 | F50: 5000.00 | G50: 5000.00 | I50: 1.53 | J50: 5.94 | K50: 5.94 | M50: amino acid transporter AAT1 | N50: Mapping the malaria parasite druggable genome by using in vitro evolution and chemogenomics. Cowell. 2018 | O50: Identification of β-hematin inhibitors in the MMV Malaria Box KY Fong 2015 | P50: Characterization of Plasmodium falciparum 6-phosphogluconate dehydrogenase as an antimalarial drug target K Haeussler 2018 | U50: PF3D7_0629500 | W50: 0.31 | X50: -0.31 | Y50: -0.59 | AF50: Not detected | AJ50: Detected | AK50: 3042923.635 | AL50: 6972800 | AM50: 6511740.419 | AN50: 1.070804355 | AP50: Essential
A51: MMV011895 | D51: 842.00 | E51: 1286.53 | F51: 5000.00 | G51: 5000.00 | I51: 1.53 | J51: 5.94 | K51: 5.94 | M51: 6-phosphogluconate dehydrogenase | N51: Mapping the malaria parasite druggable genome by using in vitro evolution and chemogenomics. Cowell. 2018 | O51: Identification of β-hematin inhibitors in the MMV Malaria Box KY Fong 2015 | P51: Characterization of Plasmodium falciparum 6-phosphogluconate dehydrogenase as an antimalarial drug target K Haeussler 2018 | U51: PF3D7_1454700 | W51: 0.29 | X51: 0.18 | Y51: -0.08 | AB51: 1.717623246 | AC51: 5.869374848 | AD51: 16.43328822 | AE51: gct V enriched | AG51: 0.2926415999 | AH51: 3.417149169 | AJ51: Detected | AK51: 1936470222 | AL51: 2758600000 | AM51: 3486288340 | AN51: 0.7912713266 | AP51: Essential
A52: MMV000025 | B52: Pyronaridine | D52: 17.00 | E52: 27.00 | G52: 938.40 | I52: 1.59 | K52: 55.20 | M52: DNA topoisomerase2 (TOP2) | N52: Pyronaridine: An update of its pharmacological activities andmechanisms of action Christian Bailly 2021 | O52: Review of pyronaridine anti-malarial properties and product characteristics Simon L Croft 2012 | U52: PF3D7_1433500 | W52: 0.79 | X52: -0.02 | Y52: 0.28 | AB52: 1.125062335 | AC52: 0.9615132377 | AD52: 2.433320018 | AE52: shared 3 stages | AG52: 1.170095524 | AH52: 0.8546310791 | AJ52: Detected | AK52: 563713858.1 | AL52: 244090000 | AM52: 3133698281 | AN52: 0.07789199155 | AP52: Not essential
A53: CLM-19 | D53: 2.70 | E53: 4.50 | F53: 29.00 | I53: 1.67 | J53: =F53/D53 -> 10.74 | M53: PK7 | N53: A novel pyrazolopyridine with in vivo activity in Plasmodium berghei-and Plasmodium falciparum-infected mouse models from structure–activity relationship studies around the core of recently identified antimalarial imidazopyridazines Le Manach 2015 | U53: PF3D7_0213400 | W53: 0.31 | X53: 0.27 | Y53: -0.31 | AB53: 0.2246523051 | AC53: 0 | AD53: 0.1364636664 | AE53: not determined | AG53: 1.2 | AH53: 0 | AJ53: Not detected | AP53: Not essential | AQ53: A D
A54: MMV674850 | D54: 2.65 | E54: 4.47 | F54: 28.70 | G54: 208.80 | I54: 1.69 | J54: 10.83 | K54: =G54/D54 -> 78.79 | M54: CDPK1 | N54: Imidazopyridazines as potent inhibitors of Plasmodium falciparum calcium-dependent protein kinase 1 (PfCDPK1): preparation and evaluation of pyrazole … JM Large | O54: Substituted imidazopyridazines are potent and selective inhibitors of Plasmodium falciparum calcium-dependent protein kinase 1 (PfCDPK1) TM Chapman | P54: New Amidated 3,6-Diphenylated Imidazopyridazines with Potent Antiplasmodium Activity Are Dual Inhibitors of Plasmodium Phosphatidylinositol-4-kinase and cGMP … PM Cheuka | U54: PF3D7_0217500 | W54: 0.54 | X54: -0.07 | Y54: 0.86 | AB54: 1.827664212 | AC54: 0.8228906159 | AD54: 5.078323128 | AE54: shared 3 stages | AG54: 2.221029353 | AH54: 0.4502416858 | AJ54: Detected | AK54: 1326801430 | AL54: 360430000 | AM54: 3411452183 | AN54: =AL54/AM54 -> 0.1056529538 | AP54: Essential | AQ54: I S | AR54: A
A55: MMV674850 | D55: 2.65 | E55: 4.47 | F55: 28.70 | G55: 208.80 | I55: 1.69 | J55: 10.83 | K55: =G55/D55 -> 78.79 | M55: CDPK4 | N55: Imidazopyridazines as potent inhibitors of Plasmodium falciparum calcium-dependent protein kinase 1 (PfCDPK1): preparation and evaluation of pyrazole … JM Large | O55: Substituted imidazopyridazines are potent and selective inhibitors of Plasmodium falciparum calcium-dependent protein kinase 1 (PfCDPK1) TM Chapman | P55: New Amidated 3,6-Diphenylated Imidazopyridazines with Potent Antiplasmodium Activity Are Dual Inhibitors of Plasmodium Phosphatidylinositol-4-kinase and cGMP … PM Cheuka | U55: PF3D7_0717500 | W55: 0.32 | X55: 0.52 | Y55: 0.27 | AB55: 0 | AC55: 0.4054116887 | AD55: 56.3615251 | AE55: gct V enriched | AG55: 0.4 | AJ55: Detected | AK55: 1686711047 | AL55: 891260000 | AM55: 1.124765802e+10 | AN55: 0.07923960691 | AP55: Not essential | AQ55: U
A56: MMV674850 | D56: 2.65 | E56: 4.47 | F56: 28.70 | G56: 208.80 | I56: 1.69 | J56: 10.83 | K56: =G56/D56 -> 78.79 | M56: PI4K | N56: Imidazopyridazines as potent inhibitors of Plasmodium falciparum calcium-dependent protein kinase 1 (PfCDPK1): preparation and evaluation of pyrazole … JM Large | O56: Substituted imidazopyridazines are potent and selective inhibitors of Plasmodium falciparum calcium-dependent protein kinase 1 (PfCDPK1) TM Chapman | P56: New Amidated 3,6-Diphenylated Imidazopyridazines with Potent Antiplasmodium Activity Are Dual Inhibitors of Plasmodium Phosphatidylinositol-4-kinase and cGMP … PM Cheuka | U56: PF3D7_0509800 | W56: 0.29 | X56: -0.01 | Y56: 0.16 | AF56: Not detected | AJ56: Not detected | AP56: Essential
A57: MMV674850 | D57: 2.65 | E57: 4.47 | F57: 28.70 | G57: 208.80 | I57: 1.69 | J57: 10.83 | K57: =G57/D57 -> 78.79 | M57: PKG | N57: Imidazopyridazines as potent inhibitors of Plasmodium falciparum calcium-dependent protein kinase 1 (PfCDPK1): preparation and evaluation of pyrazole … JM Large | O57: Substituted imidazopyridazines are potent and selective inhibitors of Plasmodium falciparum calcium-dependent protein kinase 1 (PfCDPK1) TM Chapman | P57: New Amidated 3,6-Diphenylated Imidazopyridazines with Potent Antiplasmodium Activity Are Dual Inhibitors of Plasmodium Phosphatidylinositol-4-kinase and cGMP … PM Cheuka | U57: PF3D7_1436600 | W57: 0.47 | X57: -0.44 | Y57: 0.1 | AB57: 0 | AC57: 0.0682448935 | AD57: 2.025305457 | AE57: gct V enriched | AG57: 0.8 | AJ57: Detected | AK57: 187255751.4 | AL57: 109730000 | AM57: 295371702.9 | AN57: 0.3714980106 | AP57: Essential
A58: Belinostat (PXD101) | B58: Belinostat (PXD101) | D58: 186.60 | E58: 326.10 | F58: 1000.00 | I58: 1.75 | J58: 5.36 | M58: HDAC1 | N58: Activity of epigenetic inhibitors against Plasmodium falciparum asexual and sexual blood stages LN Vanheer 2020 | O58: Bradner JE, West N, Grachan ML, Greenberg EF, Haggarty SJ, Warnow T, Mazitschek R. (2010) Chemical phylogenetics of histone deacetylases. | P58: Khan N, Jeffers M, Kumar S, Hackett C, Boldog F, Khramtsov N, Qian X, Mills E, Berghs SC, Carey N et al.. (2008) Determination of the class and isoform selectivity of small-molecule histone deacetylase inhibitors. | Q58: Engel JA, Jones AJ, Avery VM et al (2015) Profiling the anti-protozoal activity of anti-cancer HDAC inhibitors against Plasmodium and Trypanosoma parasites. | U58: PF3D7_0925700 | W58: 0.51 | X58: -0.22 | Y58: -0.69 | AB58: 0.364934702 | AC58: 0.1587140161 | AD58: 0.221677349 | AE58: enriched troph | AG58: 2.299322461 | AH58: 0.4349107256 | AJ58: Not detected | AP58: Essential
A59: MMV000839 | D59: 1080.00 | E59: 2000.00 | F59: 2000.00 | I59: 1.85 | J59: 1.85 | M59: Hsp90 | N59: Open source drug discovery with the malaria box compound collection for neglected diseases and beyond, van Voorhis 2016 | U59: PF3D7_0708400 | W59: 0.47 | X59: 0.14 | Y59: -0.37 | AB59: 391.2443421 | AC59: 487.5030362 | AD59: 2642.761186 | AE59: gct V enriched | AG59: 0.8025474984 | AH59: 1.246032169 | AJ59: Detected | AK59: 2.810226702e+10 | AL59: 93040000000 | AM59: 2.430449039e+10 | AN59: 3.828099191 | AP59: Essential
A60: PC29 | D60: 12.00 | E60: 22.80 | F60: 42.30 | I60: 1.90 | J60: 3.53 | M60: PI4K | N60: New Amidated 3,6-Diphenylated Imidazopyridazines with Potent Antiplasmodium Activity Are Dual Inhibitors of Plasmodium Phosphatidylinositol-4-kinase and cGMP … PM Cheuka | U60: PF3D7_0509800 | W60: 0.29 | X60: -0.01 | Y60: 0.16 | AF60: Not detected | AJ60: Not detected | AP60: Essential
A61: MMV000753 | D61: 326.00 | E61: 627.00 | F61: 2000.00 | G61: 5000.00 | I61: 1.92 | J61: 6.13 | K61: =G61/D61 -> 15.34 | M61: CDPK1 | N61: Identification of β-hematin inhibitors in the MMV Malaria Box KY Fong 2015 | O61: Allosteric regulation of the inactive to active state conformational transition in CDPK1 protein of Plasmodium falciparum P Gupta 2022 | P61: K.Y. Fong, R.D. Sandlin, D.W. Wright Identification of beta-hematin inhibitors in the MMV Malaria Box. International journal for parasitology | U61: PF3D7_0217500 | W61: 0.54 | X61: -0.07 | Y61: 0.86 | AB61: 1.827664212 | AC61: 0.8228906159 | AD61: 5.078323128 | AE61: shared 3 stages | AG61: 2.221029353 | AH61: 0.4502416858 | AJ61: Detected | AK61: 1326801430 | AL61: 360430000 | AM61: 3411452183 | AN61: 0.1056529538 | AP61: Essential | AQ61: I S | AR61: A
A62: MMV007224 | D62: 320.00 | E62: 654.00 | F62: 948.00 | G62: 1980.00 | I62: 2.04 | J62: =F62/D62 -> 2.96 | K62: 6.19 | M62: phospholipid-transporting ATPase 2 (ATP2) | N62: Mapping the malaria parasite druggable genome by using in vitro evolution and chemogenomics. Cowell. 2018 | O62: Lipid transport proteins in malaria, from Plasmodium parasites to their hosts M Ressurreição 2021 | P62: Screening for potential prophylactics targeting sporozoite motility through the skin RG Douglas 2018 | Q62: Generation of a mutator parasite to drive resistome discovery in Plasmodium falciparum K Kumpornsin | U62: PF3D7_1219600 | W62: 0.26 | X62: -0.16 | Y62: -0.4 | AB62: 0 | AC62: 0 | AD62: 0.3379404427 | AE62: gct V enriched | AG62: 1 | AJ62: Detected | AK62: 38850536.94 | AL62: 30051000 | AM62: 36855198.63 | AN62: 0.8153802209 | AP62: Essential
A63: MMV007224 | D63: 320.00 | E63: 654.00 | F63: 948.00 | G63: 1980.00 | I63: 2.04 | J63: =F63/D63 -> 2.96 | K63: 6.19 | M63: amino acid transporter AAT1 | N63: Mapping the malaria parasite druggable genome by using in vitro evolution and chemogenomics. Cowell. 2018 | O63: Lipid transport proteins in malaria, from Plasmodium parasites to their hosts M Ressurreição 2021 | P63: Screening for potential prophylactics targeting sporozoite motility through the skin RG Douglas 2018 | Q63: Generation of a mutator parasite to drive resistome discovery in Plasmodium falciparum K Kumpornsin | U63: PF3D7_0629500 | W63: 0.31 | X63: -0.31 | Y63: -0.59 | AF63: Not detected | AJ63: Detected | AK63: 3042923.635 | AL63: 6972800 | AM63: 6511740.419 | AN63: 1.070804355 | AP63: Essential
A64: MMV007224 | D64: 320.00 | E64: 654.00 | F64: 948.00 | G64: 1980.00 | I64: 2.04 | J64: =F64/D64 -> 2.96 | K64: 6.19 | M64: CCR4-associated factor 16 (CAF16) | N64: Mapping the malaria parasite druggable genome by using in vitro evolution and chemogenomics. Cowell. 2018 | O64: Lipid transport proteins in malaria, from Plasmodium parasites to their hosts M Ressurreição 2021 | P64: Screening for potential prophylactics targeting sporozoite motility through the skin RG Douglas 2018 | Q64: Generation of a mutator parasite to drive resistome discovery in Plasmodium falciparum K Kumpornsin | U64: PF3D7_1434000 | W64: 0.74 | X64: 0.24 | Y64: 0.02 | AF64: Not detected | AJ64: Detected | AK64: 249143.5242 | AL64: 7014000 | AM64: 11440745.84 | AN64: 0.6130719186 | AP64: Essential
A65: MMV007224 | D65: 320.00 | E65: 654.00 | F65: 948.00 | G65: 1980.00 | I65: 2.04 | J65: =F65/D65 -> 2.96 | K65: 6.19 | M65: QRP1? | N65: Mapping the malaria parasite druggable genome by using in vitro evolution and chemogenomics. Cowell. 2018 | O65: Lipid transport proteins in malaria, from Plasmodium parasites to their hosts M Ressurreição 2021 | P65: Screening for potential prophylactics targeting sporozoite motility through the skin RG Douglas 2018 | Q65: Generation of a mutator parasite to drive resistome discovery in Plasmodium falciparum K Kumpornsin | U65: PF3D7_1359900 | W65: 0.59 | X65: -0.05 | Y65: 0.22 | AF65: Not detected | AJ65: Not detected | AP65: Not essential
A66: MMV007224 | D66: 320.00 | E66: 654.00 | F66: 948.00 | G66: 1980.00 | I66: 2.04 | J66: =F66/D66 -> 2.96 | K66: 6.19 | M66: thrombospondin-related anonymous protein (TRAP) | N66: Mapping the malaria parasite druggable genome by using in vitro evolution and chemogenomics. Cowell. 2018 | O66: Lipid transport proteins in malaria, from Plasmodium parasites to their hosts M Ressurreição 2021 | P66: Screening for potential prophylactics targeting sporozoite motility through the skin RG Douglas 2018 | Q66: Generation of a mutator parasite to drive resistome discovery in Plasmodium falciparum K Kumpornsin | U66: PF3D7_1335900 | W66: 0.82 | X66: 0.91 | Y66: 0.81 | AF66: Not detected | AJ66: Translationally repressed | AP66: Not essential
A67: MMV000073 | B67: Cipargamin/KAE609/NITD609 | D67: 0.50 | E67: 1.03 | G67: 27.70 | I67: =E67/D67 -> 2.06 | K67: =G67/D67 -> 55.40 | M67: ATP4 | N67: Rottmann M, McNamara C, Yeung BK, Lee MC, Zou B, Russell B, Seitz P, Plouffe DM, Dharia NV, Tan J, Cohen SB, Spencer KR, Gonzalez-Paez GE, Lakshminarayana SB, Goh A, Suwanarusk R, Jegla T, Schmitt EK, Beck HP, Brun R, Nosten F, Renia L, Dartois V, Keller TH, Fidock DA, Winzeler EA, Diagana TT. 2010. Spiroindolones, a potent compound class for the treatment of malaria. Science 329:1175–1180. | O67: N.J. Spillman, R.J. Allen, C.W. McNamara, B.K.S. Yeung, E.A. Winzeler, et al. Na+ regulation in the malaria parasite Plasmodium falciparum involves the cation ATPase PfATP4 and is a target of the spiroindolone antimalarials 2013 | P67: J.C. Van Pelt-Koops, H.E. Pett, W. Graumans, M. van der Vegte-Bolmer, G.J. van Gemert, M. Rottmann, et al. The spiroindolone drug candidate NITD609 potently inhibits gametocytogenesis and blocks Plasmodium falciparum transmission to anopheles mosquito vector 2012 | U67: PF3D7_1211900 | W67: 0.33 | X67: -0.22 | Y67: -0.49 | AB67: 1.773190862 | AC67: 0.4394601472 | AD67: 2.593813664 | AE67: shared 3 stages | AG67: 4.034929842 | AH67: 0.2478357838 | AJ67: Detected | AK67: 636393353.8 | AL67: 392860000 | AM67: 65708369.94 | AN67: 5.978842579 | AP67: Essential
A68: Abexinostat (PCI-24781) | B68: Abexinostat (PCI-24781) | D68: 54.40 | E68: 112.20 | F68: 1000.00 | I68: 2.06 | J68: =F68/D68 -> 18.38 | M68: HDAC1 | N68: Activity of epigenetic inhibitors against Plasmodium falciparum asexual and sexual blood stages LN Vanheer 2020 | O68: Buggy JJ, Cao ZA, Bass KE, Verner E, Balasubramanian S, Liu L, Schultz BE, Young PR, Dalrymple SA. (2006) CRA-024781: a novel synthetic inhibitor of histone deacetylase enzymes with antitumor activity in vitro and in vivo. | U68: PF3D7_0925700 | W68: 0.51 | X68: -0.22 | Y68: -0.69 | AB68: 0.364934702 | AC68: 0.1587140161 | AD68: 0.221677349 | AE68: enriched troph | AG68: 2.299322461 | AH68: 0.4349107256 | AJ68: Not detected | AP68: Essential
A69: MMV1581373 | B69: KAE609 analog | D69: 0.55 | E69: 1.14 | G69: 0.11 | I69: 2.07 | K69: =G69/D69 -> 0.20 | M69: ATP4 | U69: PF3D7_1211900 | W69: 0.33 | X69: -0.22 | Y69: -0.49 | AB69: 1.773190862 | AC69: 0.4394601472 | AD69: 2.593813664 | AE69: shared 3 stages | AG69: =AB69/AC69 -> 4.034929842 | AH69: =AC69/AB69 -> 0.2478357838 | AJ69: Detected | AK69: 636393353.8 | AL69: 392860000 | AM69: 65708369.94 | AN69: 5.978842579 | AP69: Essential
A70: MMV666692 | D70: 387.00 | E70: 830.00 | F70: 594.00 | I70: 2.14 | J70: =F70/D70 -> 1.53 | M70: Saglin (thrombospondin-related anonymous protein?) | N70: Transcriptome Analysis of Uninfected and Plasmodium vivax-infected Anopheles dirus at Ookinete and Oocyst Stages and Targeting Anopheles Carboxypeptidase B … T Boonkaew | U70: PF3D7_1335900 | W70: 0.82 | X70: 0.91 | Y70: 0.81 | AF70: Not detected | AJ70: Translationally repressed | AP70: Not essential
A71: MMV023367 | D71: 1192.27 | E71: 2718.00 | G71: 5000.00 | I71: 2.28 | K71: =G71/D71 -> 4.19 | M71: ABCI3 | N71: Mapping the malaria parasite druggable genome by using in vitro evolution and chemogenomics. Cowell. 2018 | U71: PF3D7_0319700 | W71: 0.37 | X71: -0.27 | Y71: -0.58 | AF71: Not detected | AJ71: Detected | AK71: 2589313.086 | AL71: 1486100 | AM71: 10695894.95 | AN71: 0.1389411552 | AP71: Essential (ortholog)
A72: MMV023367 | D72: 1192.27 | E72: 2718.00 | G72: 5000.00 | I72: 2.28 | K72: =G72/D72 -> 4.19 | M72: amino acid transporter A | N72: Mapping the malaria parasite druggable genome by using in vitro evolution and chemogenomics. Cowell. 2018 | U72: PF3D7_1132500 | W72: 0.34 | X72: 0.73 | Y72: 0.67 | AF72: Not detected | AJ72: Not detected | AP72: Not essential
A73: MMV023367 | D73: 1192.27 | E73: 2718.00 | G73: 5000.00 | I73: 2.28 | K73: =G73/D73 -> 4.19 | M73: amino acid transporter B | N73: Mapping the malaria parasite druggable genome by using in vitro evolution and chemogenomics. Cowell. 2018 | U73: PF3D7_1208400 | W73: 0.32 | X73: 0.7 | Y73: 0.71 | AF73: Not detected | AJ73: Not detected | AP73: Not essential
A74: MMV023367 | D74: 1192.27 | E74: 2718.00 | G74: 5000.00 | I74: 2.28 | K74: =G74/D74 -> 4.19 | M74: amino acid transporter AAT1 | N74: Mapping the malaria parasite druggable genome by using in vitro evolution and chemogenomics. Cowell. 2018 | U74: PF3D7_0629500 | W74: 0.31 | X74: -0.31 | Y74: -0.59 | AF74: Not detected | AJ74: Detected | AK74: 3042923.635 | AL74: 6972800 | AM74: 6511740.419 | AN74: 1.070804355 | AP74: Essential
A75: MMV023367 | D75: 1192.27 | E75: 2718.00 | G75: 5000.00 | I75: 2.28 | K75: =G75/D75 -> 4.19 | M75: AP2 domain transcription factor | N75: Mapping the malaria parasite druggable genome by using in vitro evolution and chemogenomics. Cowell. 2018 | U75: PF3D7_0613800 | W75: 0.3 | X75: 0.16 | Y75: 0.69 | AB75: 0.03482332458 | AC75: 0 | AD75: 0 | AE75: enriched troph | AG75: 1.1 | AH75: 0 | AJ75: Not detected | AP75: Essential (ortholog)
A76: MMV019127 | D76: 625.00 | E76: 1436.00 | F76: 935.00 | I76: 2.30 | J76: =F76/D76 -> 1.50 | M76: PKG | N76: Open source drug discovery with the malaria box compound collection for neglected diseases and beyond, van Voorhis 2016 | O76: Targeted phenotypic screening in Plasmodium falciparum and Toxoplasma gondii reveals novel modes of action of medicines for malaria venture malaria box … G Subramanian | U76: PF3D7_1436600 | W76: 0.47 | X76: -0.44 | Y76: 0.1 | AB76: 0 | AC76: 0.0682448935 | AD76: 2.025305457 | AE76: gct V enriched | AG76: 0.8 | AJ76: Detected | AK76: 187255751.4 | AL76: 109730000 | AM76: 295371702.9 | AN76: 0.3714980106 | AP76: Essential
A77: MMV1578884 | B77: CRS-3123 | D77: 1643.33 | E77: 3776.00 | G77: 5000.00 | I77: 2.30 | K77: =G77/D77 -> 3.04 | M77: methionine--tRNA ligase (cyto) | N77: Inhibition of protein synthesis and malaria parasite development by drug targeting of methionyl-tRNA synthetases T Hussain 2015 | U77: PF3D7_1034900 | W77: 0.43 | X77: 0.01 | Y77: 0.05 | AB77: 2.488931895 | AC77: 5.890704032 | AD77: 15.5265354 | AE77: gct V enriched | AG77: 0.4225185788 | AH77: 2.366759831 | AJ77: Detected | AK77: 3091188099 | AL77: 3090600000 | AM77: 2027422100 | AN77: 1.52439889 | AP77: Essential
A78: MMV1578884 | B78: CRS-3123 | D78: 1643.33 | E78: 3776.00 | G78: 5000.00 | I78: 2.30 | K78: =G78/D78 -> 3.04 | M78: methionine--tRNA ligase (apic) | N78: Inhibition of protein synthesis and malaria parasite development by drug targeting of methionyl-tRNA synthetases T Hussain 2015 | U78: PF3D7_1005000 | W78: 0.42 | X78: 0.36 | Y78: 0.4 | AF78: Not detected | AJ78: Not detected | AP78: Essential
A79: MMV642944 | D79: 20.16 | E79: 46.80 | F79: 51.90 | G79: 96.80 | I79: 2.32 | J79: =F79/D79 -> 2.57 | K79: =G79/D79 -> 4.80 | M79: PI4K | N79: Potent Plasmodium falciparum gametocytocidal compounds identified by exploring the kinase inhibitor chemical space for dual active antimalarials Mariëtte E van der Watt, | O79: Probing the distinct chemosensitivity of Plasmodium vivax liver stage parasites and demonstration of 8-aminoquinoline radical cure activity in vitro SP Maher 2021 | P79: UCT943, a Next-Generation Plasmodium falciparum PI4K Inhibitor Preclinical Candidate for the Treatment of Malaria Christel Brunschwig 2018 | U79: PF3D7_0509800 | W79: 0.29 | X79: -0.01 | Y79: 0.16 | AF79: Not detected | AJ79: Not detected | AP79: Essential
A80: MMV665820 | D80: 520.00 | E80: 1214.00 | F80: 2000.00 | I80: 2.33 | J80: 3.85 | M80: phosphopantetheine adenylyltransferase (PPAT) | N80: Biological characterization of chemically diverse compounds targeting the Plasmodium falciparum coenzyme A synthesis pathway S Fletcher | U80: PF3D7_0704700 | W80: 0.2 | X80: 0.12 | Y80: 0.72 | AF80: Not detected | AJ80: Not detected | AP80: Not essential
A81: MMV665820 | D81: 520.00 | E81: 1214.00 | F81: 2000.00 | I81: 2.33 | J81: 3.85 | M81: dephospho-CoA kinase (DPCK) | N81: Biological characterization of chemically diverse compounds targeting the Plasmodium falciparum coenzyme A synthesis pathway S Fletcher | U81: PF3D7_1443700 | W81: 0.27 | X81: 0.6 | Y81: 0.55 | AF81: Not detected | AJ81: Detected | AK81: 600796.7779 | AL81: 3685300 | AM81: 5879231.533 | AN81: 0.6268336226 | AP81: Essential
A82: MMV019266 | D82: 255.00 | E82: 596.00 | F82: 324.00 | G82: 520.00 | I82: 2.34 | J82: 1.27 | K82: =G82/D82 -> 2.04 | M82: phosphatidylserine decarboxylase (PSD) | N82: E.L. Allman, H.J. Painter, J. Samra, M. Carrasquilla, M. Llinas Metabolomic profiling of the malaria box reveals antimalarial target pathways 2016 | O82: Open source drug discovery with the malaria box compound collection for neglected diseases and beyond, van Voorhis 2016 | P82: Characterization of Plasmodium phosphatidylserine decarboxylase expressed in yeast and application for inhibitor screening JY Choi | U82: PF3D7_0927900 | W82: 0.6 | X82: -0.61 | Y82: 0.16 | AB82: 0.9628761075 | AC82: 0 | AD82: 0.5848931925 | AE82: shared 3 stages | AG82: 1.5 | AH82: 0 | AJ82: Not detected | AP82: Essential
A83: MMV019266 | D83: 255.00 | E83: 596.00 | F83: 324.00 | G83: 520.00 | I83: 2.34 | J83: 1.27 | K83: =G83/D83 -> 2.04 | M83: PKG | N83: E.L. Allman, H.J. Painter, J. Samra, M. Carrasquilla, M. Llinas Metabolomic profiling of the malaria box reveals antimalarial target pathways 2016 | O83: Open source drug discovery with the malaria box compound collection for neglected diseases and beyond, van Voorhis 2016 | P83: Characterization of Plasmodium phosphatidylserine decarboxylase expressed in yeast and application for inhibitor screening JY Choi | U83: PF3D7_1436600 | W83: 0.47 | X83: -0.44 | Y83: 0.1 | AB83: 0 | AC83: 0.0682448935 | AD83: 2.025305457 | AE83: gct V enriched | AG83: 0.8 | AJ83: Detected | AK83: 187255751.4 | AL83: 109730000 | AM83: 295371702.9 | AN83: 0.3714980106 | AP83: Essential
A84: MMV666116 | D84: 548.00 | E84: 1314.00 | F84: 662.00 | I84: 2.40 | J84: 1.21 | M84: DHFR-TS | N84: E.L. Allman, H.J. Painter, J. Samra, M. Carrasquilla, M. Llinas Metabolomic profiling of the malaria box reveals antimalarial target pathways 2016 | O84: MMV Malaria Box Activity Screening in Dormant Plasmodium falciparum Phenotypes S Galusic | U84: PF3D7_0417200 | W84: 0.11 | X84: 0.52 | Y84: 0.13 | AB84: 1.15443469 | AC84: 0.6407679531 | AD84: 10.93776642 | AE84: gct V enriched | AG84: 1.801642364 | AH84: 0.555049115 | AJ84: Detected | AK84: 3107354810 | AL84: 901370000 | AM84: 1885999901 | AN84: 0.4779268545 | AP84: Essential | AQ84: A
A85: MMV665789 | D85: 592.00 | E85: 1592.00 | F85: 1321.00 | I85: 2.69 | J85: 2.23 | M85: MDR1 | N85: E.L. Allman, H.J. Painter, J. Samra, M. Carrasquilla, M. Llinas Metabolomic profiling of the malaria box reveals antimalarial target pathways 2016 | O85: Open source drug discovery with the malaria box compound collection for neglected diseases and beyond, van Voorhis 2016 | P85: Mapping the malaria parasite druggable genome by using in vitro evolution and chemogenomics AN Cowell | U85: PF3D7_0523000 | W85: 0.55 | X85: -0.14 | Y85: -0.37 | AB85: 4.185382763 | AC85: 2.612005628 | AD85: 5.559963281 | AE85: shared 3 stages | AG85: 1.602363609 | AH85: 0.6240780773 | AJ85: Detected | AK85: 1075298324 | AL85: 2109100000 | AM85: 611327737.5 | AN85: 3.45003158 | AP85: Essential
A86: MMV665789 | D86: 592.00 | E86: 1592.00 | F86: 1321.00 | I86: 2.69 | J86: 2.23 | M86: amino acid transporter AAT1 | N86: E.L. Allman, H.J. Painter, J. Samra, M. Carrasquilla, M. Llinas Metabolomic profiling of the malaria box reveals antimalarial target pathways 2016 | O86: Open source drug discovery with the malaria box compound collection for neglected diseases and beyond, van Voorhis 2016 | P86: Mapping the malaria parasite druggable genome by using in vitro evolution and chemogenomics AN Cowell | U86: PF3D7_0629500 | W86: 0.31 | X86: -0.31 | Y86: -0.59 | AF86: Not detected | AJ86: Detected | AK86: 3042923.635 | AL86: 6972800 | AM86: 6511740.419 | AN86: 1.070804355 | AP86: Essential
A87: MMV019662 | D87: 1729.00 | E87: 4715.50 | G87: 5000.00 | I87: 2.73 | K87: =G87/D87 -> 2.89 | M87: Niemann-Pick type C1-related protein (NCR1) | N87: Diverse Chemical Compounds Target Plasmodium falciparum Plasma Membrane Lipid Homeostasis. S Bhatnagar. 2019 | O87: Plasmodium Niemann-Pick type C1-related protein is a druggable target required for parasite membrane homeostasis. ES Istvan. 2019 | P87: Mapping the malaria parasite druggable genome by using in vitro evolution and chemogenomics. Cowell. 2018 | U87: PF3D7_0107500 | W87: 0.44 | X87: -0.6 | Y87: -0.27 | AB87: 0.872067592 | AC87: 0 | AD87: 0.0734188827 | AE87: enriched troph | AG87: 1.8 | AH87: 0 | AJ87: Not detected | AP87: Essential
A88: MMV665929 | D88: 720.00 | E88: 2000.00 | F88: 2000.00 | I88: 2.78 | J88: =F88/D88 -> 2.78 | M88: DHFR-TS | N88: E.L. Allman, H.J. Painter, J. Samra, M. Carrasquilla, M. Llinas Metabolomic profiling of the malaria box reveals antimalarial target pathways 2016 | O88: Novel approaches to treating and preventing malaria J Nogueira Varela | P88: Cheminformatic analysis of antimalarial chemical space illuminates therapeutic mechanisms and offers strategies for therapy development JN Varela | U88: PF3D7_0417200 | W88: 0.11 | X88: 0.52 | Y88: 0.13 | AB88: 1.15443469 | AC88: 0.6407679531 | AD88: 10.93776642 | AE88: gct V enriched | AG88: 1.801642364 | AH88: 0.555049115 | AJ88: Detected | AK88: 3107354810 | AL88: 901370000 | AM88: 1885999901 | AN88: 0.4779268545 | AP88: Essential | AQ88: A
A89: MMV000634 | D89: 634.20 | E89: 1790.00 | F89: 2000.00 | I89: 2.82 | J89: 3.15 | M89: phospholipase | N89: Metabolomics-based screening of the malaria box reveals both novel and established mechanisms of action DJ Creek 2016 | O89: Open source drug discovery with the malaria box compound collection for neglected diseases and beyond, van Voorhis 2016 | W89: 1.234285714 | X89: 0.2328571429 | Y89: 0.4285714286 | Z89: Average | AB89: 0 | AC89: 1.173120141 | AD89: 0 | AE89: gct I/II enriched | AF89: Average | AG89: 0.07 | AJ89: Detected | AK89: 36808252.54 | AL89: 4311923.046 | AM89: 1382391.762 | AN89: 3.119175884
A90: MMV000634 | D90: 634.20 | E90: 1790.00 | F90: 2000.00 | I90: 2.82 | J90: 3.15 | M90: PKG | N90: Metabolomics-based screening of the malaria box reveals both novel and established mechanisms of action DJ Creek 2016 | O90: Open source drug discovery with the malaria box compound collection for neglected diseases and beyond, van Voorhis 2016 | U90: PF3D7_1436600 | W90: 0.47 | X90: -0.44 | Y90: 0.1 | AB90: 0 | AC90: 0.0682448935 | AD90: 2.025305457 | AE90: gct V enriched | AG90: 0.06 | AJ90: Detected | AK90: 187255751.4 | AL90: 109730000 | AM90: 295371702.9 | AN90: 0.3714980106 | AP90: Essential
A91: MMV000634 | D91: 634.20 | E91: 1790.00 | F91: 2000.00 | I91: 2.82 | J91: 3.15 | M91: Fatty acid pathway | N91: Metabolomics-based screening of the malaria box reveals both novel and established mechanisms of action DJ Creek 2016 | O91: Open source drug discovery with the malaria box compound collection for neglected diseases and beyond, van Voorhis 2016 | W91: 0.4282608696 | X91: 0.7691304348 | Y91: 0.5582608696 | Z91: Average | AB91: 0.2833402478 | AC91: 4.761770574 | AD91: 1.319018667 | AE91: gct I/II enriched | AF91: Average | AG91: 0.05950312881 | AH91: 16.80583895 | AJ91: Detected | AK91: 132017292.2 | AL91: 1079994333 | AM91: 70963557.25 | AN91: 15.21899937 | AP91: Essential/Non essential
A92: MMV000788 | D92: 697.00 | E92: 2000.00 | F92: 2000.00 | G92: 5000.00 | I92: 2.87 | J92: 2.87 | K92: =G92/D92 -> 7.17 | M92: Cysteine protease | N92: Open source drug discovery with the malaria box compound collection for neglected diseases and beyond, van Voorhis 2016 | W92: 0.8683333333 | X92: 0.2925 | Y92: 0.5025 | Z92: Average | AB92: 0.7986412561 | AC92: 0.1943386009 | AD92: 0.3185628225 | AE92: enriched troph | AF92: Average | AG92: 4.109534865 | AH92: 0.2433365412 | AJ92: Detected | AK92: 57370296.82 | AL92: 79529333.33 | AM92: 145189284.4 | AN92: 0.5477631055 | AP92: Essential/Non essential | AQ92: S U
A93: MMV000061 | B93: Methylene Blue | D93: 21.70 | E93: 62.70 | G93: 457.00 | I93: 2.89 | K93: =G93/D93 -> 21.06 | M93: glutathione reductase (GR) | N93: Buchholz K, Schirmer RH, Eubel JK, Akoachere MB, Dandekar T, Becker K, Gromer S. 2008. Interactions of methylene blue with human disulfide reductases and their orthologues from Plasmodium falciparum. Antimicrob. Agents Chemother. 52:183–191. | O93: Vennerstrom JL, Makler MT, Angerhofer CK, Williams JA. 1995. Antimalarial dyes revisited: xanthenes, azines, oxazines, and thiazines. Antimicrob Agents Chemother 39:2671–2677. https://doi.org/10.1128/AAC.39 .12.2671 | U93: PF3D7_1419800 | W93: 0.71 | X93: 0.64 | Y93: -0.14 | AB93: 1.15443469 | AC93: 1.057018224 | AD93: 9 | AE93: gct V enriched | AG93: 1.092161577 | AH93: 0.9156154375 | AJ93: Not detected | AP93: Essential
A94: B-II.4 | B94: B-II.4 | D94: 129.97 | E94: 382.10 | F94: 5000.00 | I94: 2.94 | J94: =F94/D94 -> 38.47 | M94: PfDHODH | N94: Comprehensive review in current developments of benzimidazole‐based medicinal chemistry RS Keri | O94: Benzimidazole derivatives are potent against multiple life cycle stages of Plasmodium falciparum malaria parasites Leshabane 2021 | U94: PF3D7_0603300 | W94: 0.75 | X94: -0.19 | Y94: -0.43 | AB94: 1.15443469 | AC94: 0.7714114433 | AD94: 1.894266125 | AE94: shared 3 stages | AG94: 1.496522641 | AH94: 0.6682157509 | AJ94: Detected | AK94: 133919747.9 | AL94: 21091000 | AM94: 31021606.03 | AN94: 0.6798809828 | AP94: Essential
A95: MMV019918 | D95: 280.00 | E95: 824.00 | F95: 406.90 | G95: 320.00 | I95: 2.94 | J95: =F95/D95 -> 1.45 | K95: =G95/D95 -> 1.14 | M95: phosphoethanolamine methyltransferase (PfPMT) | N95: … and biological studies of the Malaria Box compound 1-[5-(4-bromo-2-chlorophenyl) furan-2-yl]-N-[(piperidin-4-yl) methyl] methanamine (MMV019918) and … A Vallone | U95: PF3D7_1343000 | W95: 0.77 | X95: 1.48 | Y95: 0.61 | AB95: 336.4138014 | AC95: 83.25579797 | AD95: 10.54781985 | AE95: enriched troph | AG95: 4.040725206 | AH95: 0.2474803281 | AJ95: Detected | AK95: 114835488.6 | AL95: 1894500000 | AM95: 446647232.4 | AN95: 4.241602461 | AP95: Not essential/Essential | AQ95: A
A96: ACT-451840 | B96: ACT-451840 | D96: 0.60 | E96: 1.80 | I96: 3.00 | M96: MDR1 | N96: CRISPR‐Cas9‐modified pfmdr1 protects Plasmodium falciparum asexual blood stages and gametocytes against a class of piperazine‐containing compounds. CL Ng 2016 | U96: PF3D7_0523000 | W96: 0.55 | X96: -0.14 | Y96: -0.37 | AB96: 4.185382763 | AC96: 2.612005628 | AD96: 5.559963281 | AE96: shared 3 stages | AG96: 1.602363609 | AH96: 0.6240780773 | AJ96: Detected | AK96: 1075298324 | AL96: 2109100000 | AM96: 611327737.5 | AN96: 3.45003158 | AP96: Essential
A97: MMV665941 | D97: 255.00 | E97: 769.00 | F97: 157.90 | G97: 843.00 | I97: 3.02 | J97: =F97/D97 -> 0.62 | K97: =G97/D97 -> 3.31 | M97: HT | N97: Open source drug discovery with the malaria box compound collection for neglected diseases and beyond, van Voorhis 2016 | O97: A novel fluorescence resonance energy transfer-based screen in high-throughput format to identify inhibitors of malarial and human glucose transporters TE Kraft | U97: PF3D7_0204700 | W97: 0.53 | X97: 1.08 | Y97: -0.46 | AB97: 3.042315429 | AC97: 4.369138307 | AD97: 2.898603703 | AE97: shared 3 stages | AG97: 0.6963193231 | AH97: 1.43612272 | AJ97: Detected | AK97: 552024808.2 | AL97: 783670000 | AM97: 843559723.5 | AN97: 0.9290035764 | AP97: Essential
A98: MMV000848 | D98: 660.00 | E98: 1997.00 | F98: 2000.00 | G98: 3600.00 | I98: 3.03 | J98: =F98/D98 -> 3.03 | K98: 5.45 | M98: falcilysin | N98: E.L. Allman, H.J. Painter, J. Samra, M. Carrasquilla, M. Llinas Metabolomic profiling of the malaria box reveals antimalarial target pathways 2016 | O98: Open source drug discovery with the malaria box compound collection for neglected diseases and beyond, van Voorhis 2016 | P98: Identification of an inhibitory pocket in falcilysin provides a new avenue for malaria drug development G Wirjanata | U98: PF3D7_1360800 | W98: 0.16 | X98: 0.01 | Y98: -0.26 | AB98: 3.408200691 | AC98: 7.891611972 | AD98: 54.4102033 | AE98: gct V enriched | AG98: 0.4318763649 | AH98: 2.315477487 | AJ98: Detected | AK98: 3539472590 | AL98: 17515000000 | AM98: 2581642652 | AN98: 6.784440125 | AP98: Essential
A99: MMV000848 | D99: 660.00 | E99: 1997.00 | F99: 2000.00 | G99: 3600.00 | I99: 3.03 | J99: =F99/D99 -> 3.03 | K99: 5.45 | M99: ATP4 | N99: E.L. Allman, H.J. Painter, J. Samra, M. Carrasquilla, M. Llinas Metabolomic profiling of the malaria box reveals antimalarial target pathways 2016 | O99: Open source drug discovery with the malaria box compound collection for neglected diseases and beyond, van Voorhis 2016 | P99: Identification of an inhibitory pocket in falcilysin provides a new avenue for malaria drug development G Wirjanata | U99: PF3D7_1211900 | W99: 0.33 | X99: -0.22 | Y99: -0.49 | AB99: 1.773190862 | AC99: 0.4394601472 | AD99: 2.593813664 | AE99: shared 3 stages | AG99: 4.034929842 | AH99: 0.2478357838 | AJ99: Detected | AK99: 636393353.8 | AL99: 392860000 | AM99: 65708369.94 | AN99: 5.978842579 | AP99: Essential
A100: MMV000848 | D100: 660.00 | E100: 1997.00 | F100: 2000.00 | G100: 3600.00 | I100: 3.03 | J100: =F100/D100 -> 3.03 | K100: 5.45 | M100: Hsp90 | N100: E.L. Allman, H.J. Painter, J. Samra, M. Carrasquilla, M. Llinas Metabolomic profiling of the malaria box reveals antimalarial target pathways 2016 | O100: Open source drug discovery with the malaria box compound collection for neglected diseases and beyond, van Voorhis 2016 | P100: Identification of an inhibitory pocket in falcilysin provides a new avenue for malaria drug development G Wirjanata | U100: PF3D7_0708400 | W100: 0.47 | X100: 0.14 | Y100: -0.37 | AB100: 391.2443421 | AC100: 487.5030362 | AD100: 2642.761186 | AE100: gct V enriched | AG100: 0.8025474984 | AH100: 1.246032169 | AJ100: Detected | AK100: 2.810226702e+10 | AL100: 93040000000 | AM100: 2.430449039e+10 | AN100: 3.828099191 | AP100: Essential
A101: MMV674143 | B101: Cladosporin | D101: 65.89 | E101: 199.40 | G101: 1000.67 | I101: 3.03 | K101: 15.19 | M101: lysine--tRNA ligase (KRS1) | N101: Selective and Specific Inhibition of the Plasmodium falciparum Lysyl-tRNA Synthetase by the Fungal Secondary Metabolite Cladosporin. Hoepfner. 2012 | U101: PF3D7_1350100 | W101: 0.52 | X101: -0.08 | Y101: -0.33 | AB101: 2.488931895 | AC101: 4.157766612 | AD101: 5.683439176 | AE101: shared 3 stages | AG101: 0.59862232 | AH101: 1.670502363 | AJ101: Detected | AK101: 1071857596 | AL101: 2153200000 | AM101: 1024886739 | AN101: 2.100915075
A102: MMV674143 | B102: Cladosporin | D102: 65.89 | E102: 199.40 | G102: 1000.67 | I102: 3.03 | K102: 15.19 | M102: lysine--tRNA ligase (KRS2) | N102: Selective and Specific Inhibition of the Plasmodium falciparum Lysyl-tRNA Synthetase by the Fungal Secondary Metabolite Cladosporin. Hoepfner. 2012 | U102: PF3D7_1416800 | W102: 0.63 | X102: 1.22 | Y102: 0.84 | AF102: Not detected | AJ102: Not detected | AP102: Essential
A103: MMV009015 | D103: 676.50 | E103: 2049.00 | F103: 5000.00 | I103: 3.03 | J103: =F103/D103 -> 7.39 | M103: lysophospholipase (LPL3?) | N103: A Plasmodium Falciparum Lysophospholipase Regulates Host Fatty Acid Chanelling Through Parasite Lipid Storage to Enable Controlled Asexual Schizogonic … PK Sheokand | U103: PF3D7_1476800 | W103: 0.58 | X103: 0.16 | Y103: 0.53 | AB103: 0 | AC103: 0 | AD103: 0.1052951411 | AE103: not determined | AG103: 1 | AJ103: Not detected | AP103: Essential | AQ103: U
A104: MMV009015 | D104: 676.50 | E104: 2049.00 | F104: 5000.00 | I104: 3.03 | J104: =F104/D104 -> 7.39 | M104: phospholipase | N104: A Plasmodium Falciparum Lysophospholipase Regulates Host Fatty Acid Chanelling Through Parasite Lipid Storage to Enable Controlled Asexual Schizogonic … PK Sheokand | W104: 1.234285714 | X104: 0.2328571429 | Y104: 0.4285714286 | Z104: Average | AB104: 0 | AC104: 1.173120141 | AD104: 0 | AE104: gct I/II enriched | AF104: Average | AG104: 0.08 | AJ104: Detected | AK104: 36808252.54 | AL104: 4311923.046 | AM104: 1382391.762 | AN104: 3.119175884
A105: WEHI-842 | B105: WEHI-842 | D105: 1580.00 | E105: 5000.00 | F105: 5000.00 | I105: 3.16 | J105: =F105/D105 -> 3.16 | M105: Plasmepsin V (PMV) | N105: Inhibition of plasmepsin V activity blocks Plasmodium falciparum gametocytogenesis and transmission to mosquitoes Jennison 2019 | U105: PF3D7_1323500 | W105: 0.44 | X105: -0.25 | Y105: -0.59 | AB105: 0.5122019515 | AC105: 0.3395699984 | AD105: 0.3111339374 | AE105: enriched troph | AG105: 1.508383997 | AH105: 0.6629611571 | AJ105: Detected | AK105: 15395138.58 | AL105: 16127000 | AM105: 287542.8695 | AN105: 56.08555006 | AP105: Essential | AQ105: S
A106: MMV665786 | D106: 408.00 | E106: 1308.00 | F106: 2000.00 | I106: 3.21 | J106: =F106/D106 -> 4.90 | M106: PKG | N106: Open source drug discovery with the malaria box compound collection for neglected diseases and beyond, van Voorhis 2016 | U106: PF3D7_1436600 | W106: 0.47 | X106: -0.44 | Y106: 0.1 | AB106: 0 | AC106: 0.0682448935 | AD106: 2.025305457 | AE106: gct V enriched | AG106: 0.8 | AJ106: Detected | AK106: 187255751.4 | AL106: 109730000 | AM106: 295371702.9 | AN106: 0.3714980106 | AP106: Essential
A107: MMV000015 | B107: Mefloquine | D107: 16.00 | E107: 51.70 | F107: 100.00 | G107: 131.95 | I107: 3.23 | J107: =F107/D107 -> 6.25 | K107: =G107/D107 -> 8.25 | M107: 80S ribosome | N107: Wong W, Bai XC, Sleebs BE, Triglia T, Brown A, Thompson JK, Jackson KE, Hanssen E, Marapana DS, Fernandez IS et al.. (2017) Mefloquine targets the Plasmodium falciparum 80S ribosome to inhibit protein synthesis. | Z107: Not detected | AF107: Not detected | AJ107: Not detected
A108: MMV670325 | D108: 1365.00 | E108: 4492.00 | G108: 3715.67 | I108: 3.29 | K108: 2.72 | M108: leucine--tRNA ligase (LeuRS) | N108: Provided from MMV | U108: PF3D7_0622800 | W108: 0.36 | X108: -0.2 | Y108: -0.48 | AB108: 1.202079354 | AC108: 1.247612089 | AD108: 2.626801691 | AE108: shared 3 stages | AG108: 0.9635040927 | AH108: 1.037878311 | AJ108: Detected | AK108: 595387412.7 | AL108: 382780000 | AM108: 1257820863 | AN108: 0.3043199643 | AP108: Essential (ortholog)
A109: MMV390482 | B109: SJ733 | D109: 30.00 | E109: 102.70 | G109: 367.50 | I109: 3.42 | K109: 12.25 | M109: ATP4 | N109: Jimenez-Diaz MB, Ebert D, Salinas Y, Pradhan A, Lehane AM, Myrand-Lapierre ME, O'Loughlin KG, Shackleford DM, Justino de Almeida M, Carrillo AK, Clark JA, Dennis AS, Diep J, Deng X, Duffy S, Endsley AN, Fedewa G, Guiguemde WA, Gomez MG, Holbrook G, Horst J, Kim CC, Liu J, Lee MC, Matheny A, Martinez MS, Miller G, Rodriguez-Alejandre A, Sanz L, Sigal M, Spillman NJ, Stein PD, Wang Z, Zhu F, Waterson D, Knapp S, Shelat A, Avery VM, Fidock DA, Gamo FJ, Charman SA, Mirsalis JC, Ma H, Ferrer S, Kirk K, Angulo-Barturen I, Kyle DE, DeRisi JL, Floyd DM, Guy RK. 2014. (+)-SJ733, a clinical candidate for malaria that acts through ATP4 to induce rapid host-mediated clearance of Plasmodium. Proc Natl Acad Sci U S A 111:E5455–62. | U109: PF3D7_1211900 | W109: 0.33 | X109: -0.22 | Y109: -0.49 | AB109: 1.773190862 | AC109: 0.4394601472 | AD109: 2.593813664 | AE109: shared 3 stages | AG109: 4.034929842 | AH109: 0.2478357838 | AJ109: Detected | AK109: 636393353.8 | AL109: 392860000 | AM109: 65708369.94 | AN109: 5.978842579 | AP109: Essential
A110: MMV643121 | B110: M5717 (DDD107498) | D110: 1.00 | E110: 3.57 | G110: 0.25 | I110: 3.57 | K110: 0.25 | M110: eEF2 | N110: Baragaña B, Hallyburton I, Lee MC, Norcross NR, Grimaldi R, Otto TD, Proto WR, Blagborough AM, Meister S, Wirjanata G et al.. (2015) A novel multiple-stage antimalarial agent that inhibits protein synthesis. | U110: PF3D7_1451100 | W110: 0.72 | X110: -0.3 | Y110: -1 | AB110: 36.21509657 | AC110: 20.79857305 | AD110: 60.26804781 | AE110: shared 3 stages | AG110: 1.741229867 | AH110: 0.5743067123 | AJ110: Detected | AK110: 8763016764 | AL110: 19691000000 | AM110: 2265856301 | AN110: 8.690312793 | AP110: Essential (ortholog)
A111: DDD107498 | B111: M5717 | D111: 1.00 | E111: 3.57 | F111: 1.61 | G111: 0.25 | I111: 3.57 | J111: =F111/D111 -> 1.61 | K111: 0.25 | M111: eEF2 | N111: Baragaña B, Hallyburton I, Lee MC, Norcross NR, Grimaldi R, Otto TD, Proto WR, Blagborough AM, Meister S, Wirjanata G et al.. (2015) A novel multiple-stage antimalarial agent that inhibits protein synthesis. | U111: PF3D7_1451100 | W111: 0.72 | X111: -0.3 | Y111: -1 | AB111: 36.21509657 | AC111: 20.79857305 | AD111: 60.26804781 | AE111: shared 3 stages | AG111: 1.741229867 | AH111: 0.5743067123 | AJ111: Detected | AK111: 8763016764 | AL111: 19691000000 | AM111: 2265856301 | AN111: 8.690312793 | AP111: Essential (ortholog)
A112: MMV000004 | B112: DHA | D112: 0.24 | E112: 0.90 | F112: 2.17 | G112: 1500.00 | I112: 3.75 | J112: =F112/D112 -> 9.04 | K112: 6250.00 | M112: PI3K | N112: Wang J, Zhang CJ, Chia WN, Loh CCY, Li Z, Lee YM, et al. Haem-activated promiscuous targeting of artemisinin in Plasmodium falciparum. Nat Commun. 2015;6:10111. | O112: Tilley L, Straimer J, Gnädig NF, Ralph SA, Fidock DA. Artemisinin action and resistance in Plasmodium falciparum. Trends Parasitol. 2016;32:682–96. | P112: High-throughput assay and discovery of small molecules that interrupt malaria transmission DM Plouffe 2016 | Q112: Antimalarial and anticancer properties of artesunate and other artemisinins: current development P Khanal 2021 | R112: Coertzen, D., Reader, J., van der Watt, M., Nondaba, S. H., Gibhard, L., Wiesner, L., et al. (2018). Artemisone and Artemiside Are Potent Panreactive Antimalarial Agents That Also Synergize Redox Imbalance in Plasmodium Falciparum Transmissible Gametocyte Stages. Antimicrob. Agents Chemother. 62, 1–17. doi: 10.1128/AAC.02214-17 | S112: Klonis, N., Crespo-Ortiz, M. P., Bottova, I., Abu-Bakar, N., Kenny, S., Rosenthal, P. J., et al. (2011). Artemisinin Activity Against Plasmodium Falciparum Requires Hemoglobin Uptake and Digestion. Proc. Natl. Acad. Sci. U.S.A. 108, 11405–11410. doi: 10.1073/pnas.1104063108 | U112: PF3D7_0515300 | W112: 0.56 | X112: 0.18 | Y112: 0.29 | AF112: Not detected | AJ112: Not detected | AP112: Essential
A113: MMV000004 | B113: DHA | D113: 0.24 | E113: 0.90 | F113: 2.17 | G113: 1500.00 | I113: 3.75 | J113: 9.04 | K113: 6250.00 | M113: proteosome | N113: Wang J, Zhang CJ, Chia WN, Loh CCY, Li Z, Lee YM, et al. Haem-activated promiscuous targeting of artemisinin in Plasmodium falciparum. Nat Commun. 2015;6:10111. | O113: Tilley L, Straimer J, Gnädig NF, Ralph SA, Fidock DA. Artemisinin action and resistance in Plasmodium falciparum. Trends Parasitol. 2016;32:682–96. | P113: High-throughput assay and discovery of small molecules that interrupt malaria transmission DM Plouffe 2016 | Q113: Antimalarial and anticancer properties of artesunate and other artemisinins: current development P Khanal 2021 | R113: Coertzen, D., Reader, J., van der Watt, M., Nondaba, S. H., Gibhard, L., Wiesner, L., et al. (2018). Artemisone and Artemiside Are Potent Panreactive Antimalarial Agents That Also Synergize Redox Imbalance in Plasmodium Falciparum Transmissible Gametocyte Stages. Antimicrob. Agents Chemother. 62, 1–17. doi: 10.1128/AAC.02214-17 | S113: Klonis, N., Crespo-Ortiz, M. P., Bottova, I., Abu-Bakar, N., Kenny, S., Rosenthal, P. J., et al. (2011). Artemisinin Activity Against Plasmodium Falciparum Requires Hemoglobin Uptake and Digestion. Proc. Natl. Acad. Sci. U.S.A. 108, 11405–11410. doi: 10.1073/pnas.1104063108 | W113: 0.4142857143 | X113: 0.2892857143 | Y113: 0.1192857143 | Z113: Average | AB113: 4.371904225 | AC113: 14.74472314 | AD113: 53.19581726 | AE113: gct V enriched | AF113: Average | AG113: 0.2965063625 | AH113: 3.37260891 | AJ113: Detected | AK113: 1385888365 | AL113: 3846228571 | AM113: 1162706304 | AN113: 3.30799666 | AP113: Essential/Non essential
A114: MMV396703 | D114: 406.00 | E114: 1531.00 | F114: 3722.00 | I114: 3.77 | J114: 9.17 | M114: PKG | N114: E.L. Allman, H.J. Painter, J. Samra, M. Carrasquilla, M. Llinas Metabolomic profiling of the malaria box reveals antimalarial target pathways 2016 | O114: Open source drug discovery with the malaria box compound collection for neglected diseases and beyond, van Voorhis 2016 | U114: PF3D7_1436600 | W114: 0.47 | X114: -0.44 | Y114: 0.1 | AB114: 0 | AC114: 0.0682448935 | AD114: 2.025305457 | AE114: gct V enriched | AG114: 0.8 | AJ114: Detected | AK114: 187255751.4 | AL114: 109730000 | AM114: 295371702.9 | AN114: 0.3714980106 | AP114: Essential
A115: MMV020438 | D115: 1150.27 | E115: 4554.00 | G115: 5000.00 | I115: 3.96 | K115: =G115/D115 -> 4.35 | M115: HT | N115: Provided from MMV | U115: PF3D7_0204700 | W115: 0.53 | X115: 1.08 | Y115: -0.46 | AB115: 3.042315429 | AC115: 4.369138307 | AD115: 2.898603703 | AE115: shared 3 stages | AG115: 0.6963193231 | AH115: 1.43612272 | AJ115: Detected | AK115: 552024808.2 | AL115: 783670000 | AM115: 843559723.5 | AN115: 0.9290035764 | AP115: Essential
A116: MMV000011 | B116: Doxycycline hydrochloride | D116: 1258.93 | E116: 5000.00 | F116: 5000.00 | G116: 5000.00 | I116: 3.97 | J116: =F116/D116 -> 3.97 | K116: 3.97 | M116: ribosomes | N116: Multiple antibiotics exert delayed effects against the Plasmodium falciparum apicoplast Erica L Dahl 2007 | W116: 0.8017096774 | X116: 0.4807870968 | Y116: 0.1553258065 | Z116: Average | AB116: 24.7129777 | AC116: 85.40557604 | AD116: 1459.533101 | AE116: gct V enriched | AF116: Average | AG116: 0.2893602367 | AH116: 3.455899855 | AJ116: Detected | AK116: 1539680719 | AL116: 1132392260 | AM116: 592017901 | AN116: 1.912766925 | AP116: Essential/Non essential
A117: MMV000028 | B117: Trimethoprim | D117: 1258.93 | E117: 5000.00 | F117: 5000.00 | G117: 5000.00 | I117: 3.97 | J117: =F117/D117 -> 3.97 | K117: 3.97 | M117: DHFR-TS | N117: Antibacterial Agents That Interfere With Folate Synthesis. (2020). In Rang and Dale's Pharmacology (9th ed.). Edinburgh: Elsevier. | U117: PF3D7_0417200 | W117: 0.11 | X117: 0.52 | Y117: 0.13 | AB117: 1.15443469 | AC117: 0.6407679531 | AD117: 10.93776642 | AE117: gct V enriched | AG117: 1.801642364 | AH117: 0.555049115 | AJ117: Detected | AK117: 3107354810 | AL117: 901370000 | AM117: 1885999901 | AN117: 0.4779268545 | AP117: Essential | AQ117: A
A118: MMV019721 | B118: MMV019721 | D118: 844.30 | E118: 3379.00 | G118: 1841.33 | I118: 4.00 | K118: 2.18 | M118: acetyl-CoA synthetase (ACAS) | N118: Chemogenomics identifies acetyl-coenzyme A synthetase as a target for malaria treatment and prevention. RL Summers. 2022 | U118: PF3D7_0627800 | W118: 0.29 | X118: -0.51 | Y118: -0.45 | AB118: 0.5239278103 | AC118: 0.2233156821 | AD118: 0.1481536215 | AE118: enriched troph | AG118: 2.346130847 | AH118: 0.4262336866 | AJ118: Detected | AK118: 7752479.547 | AL118: 5327800 | AM118: 13142844.22 | AN118: =AL118/AM118 -> 0.4053764856 | AP118: Essential | AQ118: A
A119: MMV019721 | B119: MMV019721 | D119: 844.30 | E119: 3379.00 | G119: 1841.33 | I119: 4.00 | K119: 2.18 | M119: acyl-CoA synthetase (ACS11) | N119: Chemogenomics identifies acetyl-coenzyme A synthetase as a target for malaria treatment and prevention. RL Summers. 2022 | U119: PF3D7_1238800 | W119: 0.54 | X119: -0.04 | Y119: -0.19 | AB119: 3.175016901 | AC119: 1.578121624 | AD119: 2.782489906 | AE119: shared 3 stages | AG119: 2.011896201 | AH119: 0.497043535 | AJ119: Detected | AK119: 370910521.3 | AL119: 1014900000 | AM119: 531968643.8 | AN119: 1.907819214 | AP119: Essential
A120: MMV019721 | B120: MMV019721 | D120: 844.30 | E120: 3379.00 | G120: 1841.33 | I120: 4.00 | K120: 2.18 | M120: acyl-CoA synthetase (ACS10) | N120: Chemogenomics identifies acetyl-coenzyme A synthetase as a target for malaria treatment and prevention. RL Summers. 2022 | U120: PF3D7_0525100 | W120: 0.84 | X120: -0.61 | Y120: -0.77 | AB120: 6.499642624 | AC120: 6.443810659 | AD120: 5.390804842 | AE120: shared 3 stages | AG120: 1.008664433 | AH120: 0.9914099946 | AJ120: Detected | AK120: 337785262.2 | AL120: 1807600000 | AM120: 394712460.2 | AN120: 4.5795362 | AP120: Essential
A121: MMV666054 | D121: 499.44 | E121: 2000.00 | F121: 1075.00 | G121: 5000.00 | I121: 4.00 | J121: =F121/D121 -> 2.15 | K121: 10.01 | M121: MAPK2 | N121: Open source drug discovery with the malaria box compound collection for neglected diseases and beyond, van Voorhis 2016 | O121: Screening the Medicines for Malaria Venture "Malaria Box" against the Plasmodium falciparum Aminopeptidases, M1, M17 and M18 A Paiardini | U121: PF3D7_1113900 | W121: 0.53 | X121: 1.03 | Y121: 0.24 | AB121: 0 | AC121: 0 | AD121: 3.893900918 | AE121: gct V enriched | AG121: 1 | AJ121: Detected | AK121: 159395278 | AL121: 174890000 | AM121: 1931170748 | AN121: 0.09056164515 | AP121: Essential/Not essential | AQ121: U | AR121: A
A122: MMV666054 | D122: 499.44 | E122: 2000.00 | F122: 1075.00 | G122: 5000.00 | I122: 4.00 | J122: 2.15 | K122: 10.01 | M122: PfA-M1 alanyl aminopeptidase | N122: Open source drug discovery with the malaria box compound collection for neglected diseases and beyond, van Voorhis 2016 | O122: Screening the Medicines for Malaria Venture "Malaria Box" against the Plasmodium falciparum Aminopeptidases, M1, M17 and M18 A Paiardini | U122: PF3D7_1311800 | W122: 0.56 | X122: 0.06 | Y122: -0.86 | AB122: 15.96968869 | AC122: 9.98902256 | AD122: 32.83855153 | AE122: shared 3 stages | AG122: 1.598723859 | AH122: 0.6254988907 | AJ122: Detected | AK122: 2472328320 | AL122: 15872000000 | AM122: 1421009325 | AN122: 11.16952557 | AP122: Essential
A123: MMV020500 | D123: 62.40 | E123: 252.00 | F123: 235.00 | I123: 4.04 | J123: 3.77 | M123: deoxyhypusine synthase (DHS) | N123: E.L. Allman, H.J. Painter, J. Samra, M. Carrasquilla, M. Llinas Metabolomic profiling of the malaria box reveals antimalarial target pathways 2016 | O123: Metabolomics-based screening of the malaria box reveals both novel and established mechanisms of action DJ Creek | P123: Target evaluation of deoxyhypusine synthase from Theileria parva the neglected animal parasite and its relationship to Plasmodium JT Njuguna | U123: PF3D7_1412600 | W123: 0.81 | X123: 0.46 | Y123: -0.3 | AB123: 0.1360401141 | AC123: 0 | AD123: 0.6102620276 | AE123: gct V enriched | AG123: 1.1 | AH123: 0 | AJ123: Detected | AK123: 18192497.91 | AL123: 43611000 | AM123: 215673242.8 | AN123: 0.202208672 | AP123: Essential
A124: MMV665875 | D124: 140.05 | E124: 588.00 | F124: 372.00 | I124: 4.20 | J124: 2.66 | M124: Cysteine protease | N124: Open source drug discovery with the malaria box compound collection for neglected diseases and beyond, van Voorhis 2016 | W124: 0.8683333333 | X124: 0.2925 | Y124: 0.5025 | Z124: Average | AB124: 0.7986412561 | AC124: 0.1943386009 | AD124: 0.3185628225 | AE124: enriched troph | AF124: Average | AG124: 4.109534865 | AH124: 0.2433365412 | AJ124: Detected | AK124: 57370296.82 | AL124: 79529333.33 | AM124: 145189284.4 | AN124: 0.5477631055 | AP124: Essential/Non essential | AQ124: S U
A125: SC81458 | B125: SC81458 | D125: 18.00 | E125: 76.60 | F125: 1800.00 | I125: 4.26 | J125: 100.00 | M125: calcium-transporting ATPase (ATP6) | N125: SC83288 is a clinical development candidate for the treatment of severe malaria Stefano Pegoraro | U125: PF3D7_0106300 | W125: 0.39 | X125: -0.03 | Y125: -0.13 | AB125: 1.687602771 | AC125: 0.7605873874 | AD125: 3.937969318 | AE125: shared 3 stages | AG125: 2.218815088 | AH125: 0.4506910041 | AJ125: Detected | AK125: 1029579057 | AL125: 1600300000 | AM125: 889900800.1 | AN125: 1.798290326 | AP125: Essential
A126: SC81458 | B126: SC81458 | D126: 18.00 | E126: 76.60 | F126: 1800.00 | I126: 4.26 | J126: 100.00 | M126: fumarate hydratase (FH) | N126: SC83288 is a clinical development candidate for the treatment of severe malaria Stefano Pegoraro | U126: PF3D7_0927300 | W126: 0.23 | X126: 0.16 | Y126: 0.19 | AB126: 0.1657670373 | AC126: 0.3188409631 | AD126: 3.019450334 | AE126: gct V enriched | AG126: 0.5199050827 | AH126: 1.923428013 | AJ126: Detected | AK126: 289907290.8 | AL126: 323510000 | AM126: 31981193.98 | AN126: 10.11563234 | AP126: Essential
A127: SC81458 | B127: SC81458 | D127: 18.00 | E127: 76.60 | F127: 1800.00 | I127: 4.26 | J127: 100.00 | M127: mini-chromosome maintenance complex-binding protein | N127: SC83288 is a clinical development candidate for the treatment of severe malaria Stefano Pegoraro | U127: PF3D7_1412100 | W127: 1.16 | X127: 0.17 | Y127: 0.19 | AB127: 0.2203059526 | AC127: 0.06444401261 | AD127: 0.08733567272 | AE127: enriched troph | AG127: 3.418563551 | AH127: 0.2925205236 | AJ127: Detected | AK127: 477492.17 | AL127: 2276900 | AM127: 32190079.9 | AN127: 0.07073297138 | AP127: Essential | AQ127: A
A128: SC81458 | B128: SC81458 | D128: 18.00 | E128: 76.60 | F128: 1800.00 | I128: 4.26 | J128: 100.00 | M128: casein kinase 2, alpha subunit | N128: SC83288 is a clinical development candidate for the treatment of severe malaria Stefano Pegoraro | U128: PF3D7_1108400 | W128: 0.45 | X128: 0.17 | Y128: 0.01 | AB128: 60.79064012 | AC128: 103.2808345 | AD128: 47.32930239 | AE128: shared 3 stages | AG128: 0.588595555 | AH128: 1.698959483 | AJ128: Detected | AK128: 1725313192 | AL128: 3068800000 | AM128: 905698894.3 | AN128: 3.388322564 | AP128: Essential | AQ128: I | AR128: D
A129: SC81458 | B129: SC81458 | D129: 18.00 | E129: 76.60 | F129: 1800.00 | I129: 4.26 | J129: 100.00 | M129: casein kinase II beta chain | N129: SC83288 is a clinical development candidate for the treatment of severe malaria Stefano Pegoraro | U129: PF3D7_1103700 | W129: 0.9 | X129: 0.14 | Y129: -0.56 | AB129: 3.218748794 | AC129: 1.890086131 | AD129: 4.080218047 | AE129: shared 3 stages | AG129: 1.702964082 | AH129: 0.5872114452 | AJ129: Detected | AK129: 299234964.1 | AL129: 248990000 | AM129: 101464723.3 | AN129: 2.453956329 | AP129: Essential
A130: SC81458 | B130: SC81458 | D130: 18.00 | E130: 76.60 | F130: 1800.00 | I130: 4.26 | J130: 100.00 | M130: casein kinase II beta chain | N130: SC83288 is a clinical development candidate for the treatment of severe malaria Stefano Pegoraro | U130: PF3D7_1103700 | W130: 0.9 | X130: 0.14 | Y130: -0.56 | AB130: 3.218748794 | AC130: 1.890086131 | AD130: 4.080218047 | AE130: shared 3 stages | AG130: 1.702964082 | AH130: 0.5872114452 | AJ130: Detected | AK130: 299234964.1 | AL130: 248990000 | AM130: 101464723.3 | AN130: 2.453956329 | AP130: Essential
A131: SC81458 | B131: SC81458 | D131: 18.00 | E131: 76.60 | F131: 1800.00 | I131: =E131/D131 -> 4.26 | J131: 100.00 | M131: iron-sulfur cluster assembly protein SufA | N131: SC83288 is a clinical development candidate for the treatment of severe malaria Stefano Pegoraro | U131: PF3D7_0522700 | W131: 0.46 | X131: 0.62 | Y131: 0.91 | AF131: Not detected | AJ131: Not detected | AP131: Essential
A132: SC81458 | B132: SC81458 | D132: 18.00 | E132: 76.60 | F132: 1800.00 | I132: 4.26 | J132: 100.00 | M132: iron-sulfur cluster assembly protein SufD | N132: SC83288 is a clinical development candidate for the treatment of severe malaria Stefano Pegoraro | U132: PF3D7_1103400 | W132: 0.4 | X132: 0.62 | Y132: 0.39 | AF132: Not detected | AJ132: Not detected | AP132: Essential
A133: SC81458 | B133: SC81458 | D133: 18.00 | E133: 76.60 | F133: 1800.00 | I133: 4.26 | J133: 100.00 | M133: iron-sulfur cluster assembly protein SufC | N133: SC83288 is a clinical development candidate for the treatment of severe malaria Stefano Pegoraro | U133: PF3D7_1413500 | W133: 0.41 | X133: -0.05 | Y133: 0.12 | AB133: 0 | AC133: 0.3695917364 | AD133: 0 | AE133: gct I/II enriched | AG133: 0.3 | AJ133: Not detected | AP133: Essential | AQ133: R
A134: SC81458 | B134: SC81458 | D134: 18.00 | E134: 76.60 | F134: 1800.00 | I134: 4.26 | J134: 100.00 | M134: iron-sulfur cluster assembly protein ISCU | N134: SC83288 is a clinical development candidate for the treatment of severe malaria Stefano Pegoraro | U134: PF3D7_1454500 | W134: 0.61 | X134: 0.46 | Y134: -0.06 | AF134: Not detected | AJ134: Not detected | AP134: Essential
A135: SC81458 | B135: SC81458 | D135: 18.00 | E135: 76.60 | F135: 1800.00 | I135: 4.26 | J135: 100.00 | M135: cytosolic iron-sulfur assembly component 2 | N135: SC83288 is a clinical development candidate for the treatment of severe malaria Stefano Pegoraro | U135: PF3D7_0703100 | W135: 0.86 | X135: 0.01 | Y135: -0.27 | AB135: 0 | AC135: 0 | AD135: 0.7012542799 | AE135: gct V enriched | AG135: 1 | AJ135: Detected | AK135: 25954875.44 | AL135: 11308000 | AM135: 53060532.68 | AN135: 0.2131150863 | AP135: Essential
A136: SC81458 | B136: SC81458 | D136: 18.00 | E136: 76.60 | F136: 1800.00 | I136: 4.26 | J136: 100.00 | M136: cytosolic iron-sulfur protein assembly protein 1 | N136: SC83288 is a clinical development candidate for the treatment of severe malaria Stefano Pegoraro | U136: PF3D7_1209400 | W136: 0.5 | X136: -0.02 | Y136: 0.36 | AF136: Not detected | AJ136: Detected | AK136: 1273809.009 | AL136: 203910 | AM136: 10904780.86 | AN136: 0.0186991378 | AP136: Essential (ortholog)
A137: SC81458 | B137: SC81458 | D137: 18.00 | E137: 76.60 | F137: 1800.00 | I137: 4.26 | J137: 100.00 | M137: Fe-S cluster assembly protein DRE2 | N137: SC83288 is a clinical development candidate for the treatment of severe malaria Stefano Pegoraro | U137: PF3D7_0824600 | W137: 1.14 | X137: 0.16 | Y137: -0.15 | AB137: 1.281236743 | AC137: 0.2333067808 | AD137: 1.053525026 | AE137: shared 3 stages | AG137: =AB137/AC137 -> 5.491639543 | AH137: =AC137/AB137 -> 0.1820949813 | AJ137: Detected | AK137: 52525311.33 | AL137: 5585300 | AM137: 31361557.62 | AN137: 0.1780938328 | AP137: Essential
A138: MMV669810 | D138: 0.45 | E138: 2.00 | F138: 1.40 | G138: 1.20 | I138: 4.44 | J138: 3.11 | K138: =G138/D138 -> 2.67 | M138: CDPK1 | N138: Potent Plasmodium falciparum gametocytocidal compounds identified by exploring the kinase inhibitor chemical space for dual active antimalarials Mariëtte E van der Watt, | U138: PF3D7_0217500 | W138: 0.54 | X138: -0.07 | Y138: 0.86 | AB138: 1.827664212 | AC138: 0.8228906159 | AD138: 5.078323128 | AE138: shared 3 stages | AG138: 2.221029353 | AH138: 0.4502416858 | AJ138: Detected | AK138: 1326801430 | AL138: 360430000 | AM138: 3411452183 | AN138: 0.1056529538 | AP138: Essential | AQ138: I S | AR138: A
A139: MMV669810 | D139: 0.45 | E139: 2.00 | F139: 1.40 | G139: 1.20 | I139: 4.44 | J139: 3.11 | K139: 2.67 | M139: PI4K | N139: Potent Plasmodium falciparum gametocytocidal compounds identified by exploring the kinase inhibitor chemical space for dual active antimalarials Mariëtte E van der Watt, | U139: PF3D7_0509800 | W139: 0.29 | X139: -0.01 | Y139: 0.16 | AF139: Not detected | AJ139: Not detected | AP139: Essential
A140: MMV669810 | D140: 0.45 | E140: 2.00 | F140: 1.40 | G140: 1.20 | I140: 4.44 | J140: 3.11 | K140: 2.67 | M140: PKG | N140: Potent Plasmodium falciparum gametocytocidal compounds identified by exploring the kinase inhibitor chemical space for dual active antimalarials Mariëtte E van der Watt, | U140: PF3D7_1436600 | W140: 0.47 | X140: -0.44 | Y140: 0.1 | AB140: 0 | AC140: 0.0682448935 | AD140: 2.025305457 | AE140: gct V enriched | AG140: 0.8 | AJ140: Detected | AK140: 187255751.4 | AL140: 109730000 | AM140: 295371702.9 | AN140: 0.3714980106 | AP140: Essential
A141: MMV669810 | D141: 0.45 | E141: 2.00 | F141: 1.40 | G141: 1.20 | I141: 4.44 | J141: 3.11 | K141: 2.67 | M141: PK7 | N141: Potent Plasmodium falciparum gametocytocidal compounds identified by exploring the kinase inhibitor chemical space for dual active antimalarials Mariëtte E van der Watt, | U141: PF3D7_0213400 | W141: 0.31 | X141: 0.27 | Y141: -0.31 | AB141: 0.2246523051 | AC141: 0 | AD141: 0.1364636664 | AE141: not determined | AG141: 1.1 | AH141: 0 | AJ141: Not detected | AP141: Not essential | AQ141: A D
A142: MMV000031 | B142: Cycloheximide | D142: 198.00 | E142: 912.61 | F142: 476.67 | G142: 2692.47 | I142: 4.61 | J142: 2.41 | K142: 13.60 | M142: 60S ribosomal subunit | N142: Geary TG, Jensen JB. 1983. Effects of antibiotics on Plasmodium falciparum in vitro. Am. J. Trop. Med. Hyg. 32:221–225. | W142: 0.896 | X142: 0.4648 | Y142: 0.1642 | Z142: Average | AB142: 28.65293969 | AC142: 19.96706839 | AD142: 1136.274949 | AE142: gct V enriched | AF142: Average | AG142: 1.435009844 | AH142: 0.6968593312 | AJ142: Detected | AK142: 1241256245 | AL142: 846791520.5 | AM142: 502040263.2 | AN142: 1.686700415 | AP142: Essential/Non essential
A143: GNF179 | B143: GNF179 | D143: 4.31 | E143: 19.92 | F143: 9.15 | G143: 3.36 | I143: 4.62 | J143: 2.12 | K143: 0.78 | M143: inhibit protein trafficking, block the establishment of new permeation pathways, and cause ER expansion. - similar to KAF156 | N143: Pan-active imidazolopiperazine antimalarials target the Plasmodium falciparum intracellular secretory pathway GM LaMonte | O143: Plasmodium falciparum Cyclic Amine Resistance Locus (PfCARL), a Resistance Mechanism for Two Distinct Compound Classes Pamela A. Magistrado | P143: UDP-galactose and Acetyl-CoA transporters as Plasmodium multidrug resistance genes Michelle Yi-Xiu Lim | Z143: Not detected | AF143: Not detected
A144: GNF179 | B144: GNF179 | D144: 4.31 | E144: 19.92 | F144: 9.15 | G144: 3.36 | I144: 4.62 | J144: 2.12 | K144: 0.78 | M144: CARL | N144: Pan-active imidazolopiperazine antimalarials target the Plasmodium falciparum intracellular secretory pathway GM LaMonte | O144: Plasmodium falciparum Cyclic Amine Resistance Locus (PfCARL), a Resistance Mechanism for Two Distinct Compound Classes Pamela A. Magistrado | P144: UDP-galactose and Acetyl-CoA transporters as Plasmodium multidrug resistance genes Michelle Yi-Xiu Lim | U144: PF3D7_0321900 | W144: 0.31 | X144: -0.21 | Y144: -0.06 | AB144: 0 | AC144: 0 | AD144: 0.05372497274 | AE144: gct V enriched | AG144: 1 | AJ144: Not detected | AP144: Essential
A145: GNF179 | B145: GNF179 | D145: 4.31 | E145: 19.92 | F145: 9.15 | G145: 3.36 | I145: 4.62 | J145: 2.12 | K145: 0.78 | M145: UDP-galactose transporter | N145: Pan-active imidazolopiperazine antimalarials target the Plasmodium falciparum intracellular secretory pathway GM LaMonte | O145: Plasmodium falciparum Cyclic Amine Resistance Locus (PfCARL), a Resistance Mechanism for Two Distinct Compound Classes Pamela A. Magistrado | P145: UDP-galactose and Acetyl-CoA transporters as Plasmodium multidrug resistance genes Michelle Yi-Xiu Lim | U145: PF3D7_1113300 | W145: 1.64 | X145: -0.02 | Y145: 0.24 | AB145: 1.281236743 | AC145: 0 | AD145: 1.610157216 | AE145: shared 3 stages | AG145: 2 | AH145: 0 | AJ145: Detected | AK145: 44784143.76 | AL145: 138230000 | AM145: 1149223.592 | AN145: =AL145/AM145 -> 120.2812063 | AP145: Essential
A146: GNF179 | B146: GNF179 | D146: 4.31 | E146: 19.92 | F146: 9.15 | G146: 3.36 | I146: 4.62 | J146: 2.12 | K146: 0.78 | M146: acetyl-CoA transporter 1 | N146: Pan-active imidazolopiperazine antimalarials target the Plasmodium falciparum intracellular secretory pathway GM LaMonte | O146: Plasmodium falciparum Cyclic Amine Resistance Locus (PfCARL), a Resistance Mechanism for Two Distinct Compound Classes Pamela A. Magistrado | P146: UDP-galactose and Acetyl-CoA transporters as Plasmodium multidrug resistance genes Michelle Yi-Xiu Lim | U146: PF3D7_1036800 | W146: 1.52 | X146: 0 | Y146: 0.37 | AB146: 0 | AC146: 0 | AD146: 0.7378008287 | AE146: gct V enriched | AG146: 1 | AJ146: Detected | AK146: 15362145.3 | AL146: 3550600 | AM146: 31982949.33 | AN146: 0.1110154027 | AP146: Not essential | AQ146: A
A147: MMV669286 | D147: 0.88 | E147: 4.10 | F147: 3.00 | G147: 34.20 | I147: 4.66 | J147: 3.41 | K147: 38.86 | M147: CDPK1 | N147: Imidazopyridazines as potent inhibitors of Plasmodium falciparum calcium-dependent protein kinase 1 (PfCDPK1): preparation and evaluation of pyrazole … JM Large | O147: Substituted imidazopyridazines are potent and selective inhibitors of Plasmodium falciparum calcium-dependent protein kinase 1 (PfCDPK1) TM Chapman | P147: New Amidated 3,6-Diphenylated Imidazopyridazines with Potent Antiplasmodium Activity Are Dual Inhibitors of Plasmodium Phosphatidylinositol-4-kinase and cGMP … PM Cheuka | U147: PF3D7_0217500 | W147: 0.54 | X147: -0.07 | Y147: 0.86 | AB147: 1.827664212 | AC147: 0.8228906159 | AD147: 5.078323128 | AE147: shared 3 stages | AG147: 2.221029353 | AH147: 0.4502416858 | AJ147: Detected | AK147: 1326801430 | AL147: 360430000 | AM147: 3411452183 | AN147: 0.1056529538 | AP147: Essential | AQ147: I S | AR147: A
A148: MMV669286 | D148: 0.88 | E148: 4.10 | F148: 3.00 | G148: 34.20 | I148: 4.66 | J148: 3.41 | K148: 38.86 | M148: CDPK4 | N148: Imidazopyridazines as potent inhibitors of Plasmodium falciparum calcium-dependent protein kinase 1 (PfCDPK1): preparation and evaluation of pyrazole … JM Large | O148: Substituted imidazopyridazines are potent and selective inhibitors of Plasmodium falciparum calcium-dependent protein kinase 1 (PfCDPK1) TM Chapman | P148: New Amidated 3,6-Diphenylated Imidazopyridazines with Potent Antiplasmodium Activity Are Dual Inhibitors of Plasmodium Phosphatidylinositol-4-kinase and cGMP … PM Cheuka | U148: PF3D7_0717500 | W148: 0.32 | X148: 0.52 | Y148: 0.27 | AB148: 0 | AC148: 0.4054116887 | AD148: 56.3615251 | AE148: gct V enriched | AG148: 0.4 | AJ148: Detected | AK148: 1686711047 | AL148: 891260000 | AM148: 1.124765802e+10 | AN148: 0.07923960691 | AP148: Not essential | AQ148: U
A149: MMV669286 | D149: 0.88 | E149: 4.10 | F149: 3.00 | G149: 34.20 | I149: 4.66 | J149: 3.41 | K149: 38.86 | M149: PI4K | N149: Imidazopyridazines as potent inhibitors of Plasmodium falciparum calcium-dependent protein kinase 1 (PfCDPK1): preparation and evaluation of pyrazole … JM Large | O149: Substituted imidazopyridazines are potent and selective inhibitors of Plasmodium falciparum calcium-dependent protein kinase 1 (PfCDPK1) TM Chapman | P149: New Amidated 3,6-Diphenylated Imidazopyridazines with Potent Antiplasmodium Activity Are Dual Inhibitors of Plasmodium Phosphatidylinositol-4-kinase and cGMP … PM Cheuka | U149: PF3D7_0509800 | W149: 0.29 | X149: -0.01 | Y149: 0.16 | AF149: Not detected | AJ149: Not detected | AP149: Essential
A150: MMV669286 | D150: 0.88 | E150: 4.10 | F150: 3.00 | G150: 34.20 | I150: 4.66 | J150: 3.41 | K150: 38.86 | M150: PKG | N150: Imidazopyridazines as potent inhibitors of Plasmodium falciparum calcium-dependent protein kinase 1 (PfCDPK1): preparation and evaluation of pyrazole … JM Large | O150: Substituted imidazopyridazines are potent and selective inhibitors of Plasmodium falciparum calcium-dependent protein kinase 1 (PfCDPK1) TM Chapman | P150: New Amidated 3,6-Diphenylated Imidazopyridazines with Potent Antiplasmodium Activity Are Dual Inhibitors of Plasmodium Phosphatidylinositol-4-kinase and cGMP … PM Cheuka | U150: PF3D7_1436600 | W150: 0.47 | X150: -0.44 | Y150: 0.1 | AB150: 0 | AC150: 0.0682448935 | AD150: 2.025305457 | AE150: gct V enriched | AG150: 0.8 | AJ150: Detected | AK150: 187255751.4 | AL150: 109730000 | AM150: 295371702.9 | AN150: 0.3714980106 | AP150: Essential
A151: MMV006656 | D151: 518.50 | E151: 2420.18 | F151: 5000.00 | G151: 5000.00 | I151: 4.67 | J151: 9.64 | K151: 9.64 | M151: ATP4 | N151: Diverse chemotypes disrupt ion homeostasis in the malaria parasite AM Lehane 2014 | O151: A G358S mutation in the Plasmodium falciparum Na+ pump PfATP4 confers clinically-relevant resistance to cipargamin D Qiu | U151: PF3D7_1211900 | W151: 0.33 | X151: -0.22 | Y151: -0.49 | AB151: 1.773190862 | AC151: 0.4394601472 | AD151: 2.593813664 | AE151: shared 3 stages | AG151: 4.034929842 | AH151: 0.2478357838 | AJ151: Detected | AK151: 636393353.8 | AL151: 392860000 | AM151: 65708369.94 | AN151: 5.978842579 | AP151: Essential
A152: MMV665934 | D152: 1070.00 | E152: 5000.00 | F152: 5000.00 | I152: 4.67 | J152: 4.67 | M152: Mitochondrial electron transport chain (bc1 inhibitor) (Gamo) | N152: Open source drug discovery with the malaria box compound collection for neglected diseases and beyond, van Voorhis 2016 | O152: The relative rate of kill of the MMV Malaria Box compounds provides links to the mode of antimalarial action and highlights scaffolds of medicinal chemistry interest I Ullah | W152: 0.8483333333 | X152: 0.98 | Y152: 0.81 | Z152: Average | AB152: 0.4530828605 | AC152: 1.700657792 | AD152: 7.360729508 | AE152: gct V enriched | AF152: Average | AG152: 0.2664162436 | AH152: 3.753524884 | AJ152: Detected | AK152: 692838621.1 | AL152: 545915000 | AM152: 215905094.4 | AN152: 2.528495224 | AP152: Essential/Non essential
A153: CLM-22 | D153: 0.42 | E153: 2.00 | F153: 1.40 | I153: 4.76 | J153: 3.33 | M153: PK7 | N153: A novel pyrazolopyridine with in vivo activity in Plasmodium berghei-and Plasmodium falciparum-infected mouse models from structure–activity relationship studies around the core of recently identified antimalarial imidazopyridazines Le Manach 2015 | U153: PF3D7_0213400 | W153: 0.31 | X153: 0.27 | Y153: -0.31 | AB153: 0.2246523051 | AC153: 0 | AD153: 0.1364636664 | AE153: not determined | AG153: 1.1 | AH153: 0 | AJ153: Not detected | AP153: Not essential | AQ153: A D
A154: MMV668436 | D154: 163.91 | E154: 781.60 | F154: 5000.00 | I154: 4.77 | J154: 30.50 | M154: DHFR-TS | N154: Rosowsky A., Chen K. K., Lin M.: 2,4-Diaminothieno(2,3-d)pyrimidines as antifolates and antimalarials. | U154: PF3D7_0417200 | W154: 0.11 | X154: 0.52 | Y154: 0.13 | AB154: 1.15443469 | AC154: 0.6407679531 | AD154: 10.93776642 | AE154: gct V enriched | AG154: 1.801642364 | AH154: 0.555049115 | AJ154: Detected | AK154: 3107354810 | AL154: 901370000 | AM154: 1885999901 | AN154: 0.4779268545 | AP154: Essential | AQ154: A
A155: MMV665852 | D155: 1028.00 | E155: 5000.00 | F155: 5000.00 | G155: 5000.00 | I155: 4.86 | J155: 4.86 | K155: =G155/D155 -> 4.86 | M155: phospholipid-transporting ATPase 2 (ATP2) | N155: Corey VC, Lukens AK, Istvan ES, et al. A broad analysis of resistance development in the malaria parasite. Nat Commun. 2016;7:11901. | O155: Cowell AN, Istvan ES, Lukens AK, et al. Mapping the malaria parasite druggable genome by using in vitro evolution and chemogenomics. Science. 2018;359(6372):191-199. | P155: Screening for potential prophylactics targeting sporozoite motility through the skin RG Douglas 2018 | U155: PF3D7_1219600 | W155: 0.26 | X155: -0.16 | Y155: -0.4 | AB155: 0 | AC155: 0 | AD155: 0.3379404427 | AE155: gct V enriched | AG155: 1 | AJ155: Detected | AK155: 38850536.94 | AL155: 30051000 | AM155: 36855198.63 | AN155: 0.8153802209 | AP155: Essential
A156: MMV665852 | D156: 1028.00 | E156: 5000.00 | F156: 5000.00 | G156: 5000.00 | I156: 4.86 | J156: 4.86 | K156: =G156/D156 -> 4.86 | M156: PKG | N156: Corey VC, Lukens AK, Istvan ES, et al. A broad analysis of resistance development in the malaria parasite. Nat Commun. 2016;7:11901. | O156: Cowell AN, Istvan ES, Lukens AK, et al. Mapping the malaria parasite druggable genome by using in vitro evolution and chemogenomics. Science. 2018;359(6372):191-199. | P156: Screening for potential prophylactics targeting sporozoite motility through the skin RG Douglas 2018 | U156: PF3D7_1436600 | W156: 0.47 | X156: -0.44 | Y156: 0.1 | AB156: 0 | AC156: 0.0682448935 | AD156: 2.025305457 | AE156: gct V enriched | AG156: 0.8 | AJ156: Detected | AK156: 187255751.4 | AL156: 109730000 | AM156: 295371702.9 | AN156: 0.3714980106 | AP156: Essential
A157: MMV000787 | D157: 407.00 | E157: 2000.00 | F157: 584.00 | G157: 4574.65 | I157: 4.91 | J157: 1.43 | K157: =G157/D157 -> 11.24 | M157: PfDHODH | N157: Combining stage specificity and metabolomic profiling to advance antimalarial drug discovery JM Murithi 2020 | O157: Open source drug discovery with the malaria box compound collection for neglected diseases and beyond, van Voorhis 2016 | U157: PF3D7_0603300 | W157: 0.75 | X157: -0.19 | Y157: -0.43 | AB157: 1.15443469 | AC157: 0.7714114433 | AD157: 1.894266125 | AE157: shared 3 stages | AG157: 1.496522641 | AH157: 0.6682157509 | AJ157: Detected | AK157: 133919747.9 | AL157: 21091000 | AM157: 31021606.03 | AN157: 0.6798809828 | AP157: Essential
A158: MMV000787 | D158: 407.00 | E158: 2000.00 | F158: 584.00 | G158: 4574.65 | I158: 4.91 | J158: 1.43 | K158: =G158/D158 -> 11.24 | M158: Cysteine protease | N158: Combining stage specificity and metabolomic profiling to advance antimalarial drug discovery JM Murithi 2020 | O158: Open source drug discovery with the malaria box compound collection for neglected diseases and beyond, van Voorhis 2016 | W158: 0.8683333333 | X158: 0.2925 | Y158: 0.5025 | Z158: Average | AB158: 0.7986412561 | AC158: 0.1943386009 | AD158: 0.3185628225 | AE158: enriched troph | AF158: Average | AG158: 4.109534865 | AH158: 0.2433365412 | AJ158: Detected | AK158: 57370296.82 | AL158: 79529333.33 | AM158: 145189284.4 | AN158: 0.5477631055 | AP158: Essential/Non essential | AQ158: S U
A159: MMV000787 | D159: 407.00 | E159: 2000.00 | F159: 584.00 | G159: 4574.65 | I159: 4.91 | J159: 1.43 | K159: =G159/D159 -> 11.24 | M159: CytBC1 | N159: Combining stage specificity and metabolomic profiling to advance antimalarial drug discovery JM Murithi 2020 | O159: Open source drug discovery with the malaria box compound collection for neglected diseases and beyond, van Voorhis 2016 | W159: 0.8483333333 | X159: 0.98 | Y159: 0.81 | Z159: Average | AB159: 0.4530828605 | AC159: 1.700657792 | AD159: 7.360729508 | AE159: gct V enriched | AF159: Average | AG159: 0.2664162436 | AH159: 3.753524884 | AJ159: Detected | AK159: 692838621.1 | AL159: 545915000 | AM159: 215905094.4 | AN159: 2.528495224 | AP159: Essential/Non essential
A160: MMV665807 | D160: 973.30 | E160: 5000.00 | F160: 5000.00 | G160: 5000.00 | I160: 5.14 | J160: =F160/D160 -> 5.14 | K160: =G160/D160 -> 5.14 | M160: calcium-transporting ATPase (ATP6) | N160: Selective Inhibition of Plasmodium falciparum ATPase 6 by Artemisinins and Identification of New Classes of Inhibitors after Expression in Yeast CM Moore | O160: Screening of the open source malaria box reveals an early lead compound for the treatment of alveolar echinococcosis B Stadelmann | U160: PF3D7_0106300 | W160: 0.39 | X160: -0.03 | Y160: -0.13 | AB160: 1.687602771 | AC160: 0.7605873874 | AD160: 3.937969318 | AE160: shared 3 stages | AG160: 2.218815088 | AH160: 0.4506910041 | AJ160: Detected | AK160: 1029579057 | AL160: 1600300000 | AM160: 889900800.1 | AN160: 1.798290326 | AP160: Essential
A161: MMV668399 | B161: MMV668399 | D161: 339.43 | E161: 1770.00 | G161: 5000.00 | I161: 5.21 | K161: 14.73 | M161: inorganic anion exchanger, inorganic anion antiporter | N161: Mapping the malaria parasite druggable genome by using in vitro evolution and chemogenomics. Cowell. 2018 | U161: PF3D7_1471200 | W161: 0.26 | X161: 0.44 | Y161: -0.04 | AB161: 0 | AC161: 0 | AD161: 0.807768677 | AE161: gct V enriched | AG161: 1 | AJ161: Detected | AK161: 64874226.95 | AL161: 78503000 | AM161: 147852609.1 | AN161: 0.530954445 | AP161: Essential
A162: MMV668399 | B162: MMV668399 | D162: 339.43 | E162: 1770.00 | G162: 5000.00 | I162: 5.21 | K162: 14.73 | M162: amino acid transporter AAT1 | N162: Mapping the malaria parasite druggable genome by using in vitro evolution and chemogenomics. Cowell. 2018 | U162: PF3D7_0629500 | W162: 0.31 | X162: -0.31 | Y162: -0.59 | AF162: Not detected | AJ162: Detected | AK162: 3042923.635 | AL162: 6972800 | AM162: 6511740.419 | AN162: 1.070804355 | AP162: Essential
A163: MMV668399 | B163: MMV668399 | D163: 339.43 | E163: 1770.00 | G163: 5000.00 | I163: 5.21 | K163: 14.73 | M163: Forkhead-associated domain (FHA) | N163: Mapping the malaria parasite druggable genome by using in vitro evolution and chemogenomics. Cowell. 2018 | U163: PF3D7_0909700 | W163: 0.98 | X163: 1.04 | Y163: 0.42 | AB163: 0 | AC163: 0.2766043115 | AD163: 0 | AE163: gct I/II enriched | AG163: 0.2 | AJ163: Not detected | AP163: Not essential | AQ163: V
A164: MMV643110 | D164: 23.24 | E164: 122.10 | F164: 71.51 | G164: 92.70 | I164: 5.25 | J164: =F164/D164 -> 3.08 | K164: 3.99 | M164: PI4K | N164: Potent Plasmodium falciparum gametocytocidal compounds identified by exploring the kinase inhibitor chemical space for dual active antimalarials Mariëtte E van der Watt, | U164: PF3D7_0509800 | W164: 0.29 | X164: -0.01 | Y164: 0.16 | AF164: Not detected | AJ164: Not detected | AP164: Essential
A165: MMV1577530 | B165: MMV1577530 | D165: 25.87 | E165: 147.14 | G165: 481.57 | I165: 5.69 | K165: 18.61 | M165: proteosome | N165: Provided from MMV | W165: 0.4142857143 | X165: 0.2892857143 | Y165: 0.1192857143 | Z165: Average | AB165: 4.371904225 | AC165: 14.74472314 | AD165: 53.19581726 | AE165: gct V enriched | AF165: Average | AG165: 0.2965063625 | AH165: 3.37260891 | AJ165: Detected | AK165: 1385888365 | AL165: 3846228571 | AM165: 1162706304 | AN165: 3.30799666 | AP165: Essential/Non essential
A166: MMV000720 | D166: 864.36 | E166: 5000.00 | F166: 2427.40 | G166: 5000.00 | I166: 5.78 | J166: =F166/D166 -> 2.81 | K166: 5.78 | M166: 6-phosphogluconate dehydrogenase | N166: Characterization of Plasmodium falciparum 6-phosphogluconate dehydrogenase as an antimalarial drug target K Haeussler 2018 | U166: PF3D7_1454700 | W166: 0.29 | X166: 0.18 | Y166: -0.08 | AB166: 1.717623246 | AC166: 5.869374848 | AD166: 16.43328822 | AE166: gct V enriched | AG166: 0.2926415999 | AH166: 3.417149169 | AJ166: Detected | AK166: 1936470222 | AL166: 2758600000 | AM166: 3486288340 | AN166: 0.7912713266 | AP166: Essential
A167: MMV397264 | B167: 21A092 | D167: 10.58 | E167: 62.10 | G167: 213.30 | I167: 5.87 | K167: 20.16 | M167: ATP4 | N167: Pyrazoleamide compounds are potent antimalarials that target Na+ homeostasis in intraerythrocytic Plasmodium falciparum. Akhil B. Vaidya. 2014 | U167: PF3D7_1211900 | W167: 0.33 | X167: -0.22 | Y167: -0.49 | AB167: 1.773190862 | AC167: 0.4394601472 | AD167: 2.593813664 | AE167: shared 3 stages | AG167: 4.034929842 | AH167: 0.2478357838 | AJ167: Detected | AK167: 636393353.8 | AL167: 392860000 | AM167: 65708369.94 | AN167: 5.978842579 | AP167: Essential
A168: MMV665878 | D168: 139.00 | E168: 819.00 | G168: 1100.00 | I168: 5.89 | K168: 7.91 | M168: ATP4 | N168: E.L. Allman, H.J. Painter, J. Samra, M. Carrasquilla, M. Llinas Metabolomic profiling of the malaria box reveals antimalarial target pathways 2016 | O168: Metabolomics-based screening of the malaria box reveals both novel and established mechanisms of action DJ Creek | P168: Targeted phenotypic screening in Plasmodium falciparum and Toxoplasma gondii reveals novel modes of action of medicines for malaria venture malaria box … G Subramanian | U168: PF3D7_1211900 | W168: 0.33 | X168: -0.22 | Y168: -0.49 | AB168: 1.773190862 | AC168: 0.4394601472 | AD168: 2.593813664 | AE168: shared 3 stages | AG168: 4.034929842 | AH168: 0.2478357838 | AJ168: Detected | AK168: 636393353.8 | AL168: 392860000 | AM168: 65708369.94 | AN168: 5.978842579 | AP168: Essential
A169: KS9 | D169: 390.00 | E169: 2300.00 | F169: 1020.00 | I169: 5.90 | J169: =F169/D169 -> 2.62 | M169: bc1 complex | N169: Antimalarial pyrido [1,2-a] benzimidazoles: Lead optimization, parasite life cycle stage profile, mechanistic evaluation, killing kinetics, and in vivo oral efficacy in a mouse model Singh 2017 | W169: 0.8483333333 | X169: 0.98 | Y169: 0.81 | Z169: Average | AB169: 0.4530828605 | AC169: 1.700657792 | AD169: 7.360729508 | AE169: gct V enriched | AF169: Average | AG169: 0.2664162436 | AH169: 3.753524884 | AJ169: Detected | AK169: 692838621.1 | AL169: 545915000 | AM169: 215905094.4 | AN169: 2.528495224 | AP169: Essential/Non essential
A170: MMV666620 | D170: 11.59 | E170: 68.40 | F170: 78.90 | G170: 428.00 | I170: 5.90 | J170: 6.81 | K170: =G170/D170 -> 36.93 | M170: CDPK1 | N170: Imidazopyridazines as potent inhibitors of Plasmodium falciparum calcium-dependent protein kinase 1 (PfCDPK1): preparation and evaluation of pyrazole … JM Large | O170: Substituted imidazopyridazines are potent and selective inhibitors of Plasmodium falciparum calcium-dependent protein kinase 1 (PfCDPK1) TM Chapman | P170: New Amidated 3,6-Diphenylated Imidazopyridazines with Potent Antiplasmodium Activity Are Dual Inhibitors of Plasmodium Phosphatidylinositol-4-kinase and cGMP … PM Cheuka | U170: PF3D7_0217500 | W170: 0.54 | X170: -0.07 | Y170: 0.86 | AB170: 1.827664212 | AC170: 0.8228906159 | AD170: 5.078323128 | AE170: shared 3 stages | AG170: 2.221029353 | AH170: 0.4502416858 | AJ170: Detected | AK170: 1326801430 | AL170: 360430000 | AM170: 3411452183 | AN170: 0.1056529538 | AP170: Essential | AQ170: I S | AR170: A
A171: MMV666620 | D171: 11.59 | E171: 68.40 | F171: 78.90 | G171: 428.00 | I171: 5.90 | J171: 6.81 | K171: 36.93 | M171: CDPK4 | N171: Imidazopyridazines as potent inhibitors of Plasmodium falciparum calcium-dependent protein kinase 1 (PfCDPK1): preparation and evaluation of pyrazole … JM Large | O171: Substituted imidazopyridazines are potent and selective inhibitors of Plasmodium falciparum calcium-dependent protein kinase 1 (PfCDPK1) TM Chapman | P171: New Amidated 3,6-Diphenylated Imidazopyridazines with Potent Antiplasmodium Activity Are Dual Inhibitors of Plasmodium Phosphatidylinositol-4-kinase and cGMP … PM Cheuka | U171: PF3D7_0717500 | W171: 0.32 | X171: 0.52 | Y171: 0.27 | AB171: 0 | AC171: 0.4054116887 | AD171: 56.3615251 | AE171: gct V enriched | AG171: 0.4 | AJ171: Detected | AK171: 1686711047 | AL171: 891260000 | AM171: 1.124765802e+10 | AN171: 0.07923960691 | AP171: Not essential | AQ171: U
A172: MMV666620 | D172: 11.59 | E172: 68.40 | F172: 78.90 | G172: 428.00 | I172: 5.90 | J172: 6.81 | K172: 36.93 | M172: PI4K | N172: Imidazopyridazines as potent inhibitors of Plasmodium falciparum calcium-dependent protein kinase 1 (PfCDPK1): preparation and evaluation of pyrazole … JM Large | O172: Substituted imidazopyridazines are potent and selective inhibitors of Plasmodium falciparum calcium-dependent protein kinase 1 (PfCDPK1) TM Chapman | P172: New Amidated 3,6-Diphenylated Imidazopyridazines with Potent Antiplasmodium Activity Are Dual Inhibitors of Plasmodium Phosphatidylinositol-4-kinase and cGMP … PM Cheuka | U172: PF3D7_0509800 | W172: 0.29 | X172: -0.01 | Y172: 0.16 | AF172: Not detected | AJ172: Not detected | AP172: Essential
A173: MMV666620 | D173: 11.59 | E173: 68.40 | F173: 78.90 | G173: 428.00 | I173: 5.90 | J173: 6.81 | K173: 36.93 | M173: PKG | N173: Imidazopyridazines as potent inhibitors of Plasmodium falciparum calcium-dependent protein kinase 1 (PfCDPK1): preparation and evaluation of pyrazole … JM Large | O173: Substituted imidazopyridazines are potent and selective inhibitors of Plasmodium falciparum calcium-dependent protein kinase 1 (PfCDPK1) TM Chapman | P173: New Amidated 3,6-Diphenylated Imidazopyridazines with Potent Antiplasmodium Activity Are Dual Inhibitors of Plasmodium Phosphatidylinositol-4-kinase and cGMP … PM Cheuka | U173: PF3D7_1436600 | W173: 0.47 | X173: -0.44 | Y173: 0.1 | AB173: 0 | AC173: 0.0682448935 | AD173: 2.025305457 | AE173: gct V enriched | AG173: 0.8 | AJ173: Detected | AK173: 187255751.4 | AL173: 109730000 | AM173: 295371702.9 | AN173: 0.3714980106 | AP173: Essential
A174: MMV000025 | B174: Pyronaridine | D174: 4.50 | E174: 27.00 | F174: 1866.00 | G174: 938.00 | I174: 6.00 | J174: 414.67 | K174: 208.44 | M174: DNA topoisomerase2 (TOP2) | N174: Pyronaridine: An update of its pharmacological activities andmechanisms of action Christian Bailly 2021 | O174: Review of pyronaridine anti-malarial properties and product characteristics Simon L Croft 2012 | U174: PF3D7_1433500 | W174: 0.79 | X174: -0.02 | Y174: 0.28 | AB174: 1.125062335 | AC174: 0.9615132377 | AD174: 2.433320018 | AE174: shared 3 stages | AG174: 1.170095524 | AH174: 0.8546310791 | AJ174: Detected | AK174: 563713858.1 | AL174: 244090000 | AM174: 3133698281 | AN174: 0.07789199155 | AP174: Not essential
A175: MMV666125 | D175: 120.00 | E175: 720.32 | F175: 745.00 | G175: 480.00 | I175: 6.00 | J175: 6.21 | K175: 4.00 | M175: Hsp90 | N175: Sun W, Tanaka TQ, Magle CT, Huang W, Southall N, Huang R, Dehdashti SJ, McKew JC et al (2014) Chemical signatures and new drug targets for gametocytocidal drug development. | O175: Characterization of Plasmodium falciparum 6-phosphogluconate dehydrogenase as an antimalarial drug target K Haeussler | U175: PF3D7_0708400 | W175: 0.47 | X175: 0.14 | Y175: -0.37 | AB175: 391.2443421 | AC175: 487.5030362 | AD175: 2642.761186 | AE175: gct V enriched | AG175: 0.8025474984 | AH175: 1.246032169 | AJ175: Detected | AK175: 2.810226702e+10 | AL175: 93040000000 | AM175: 2.430449039e+10 | AN175: 3.828099191 | AP175: Essential
A176: MMV666125 | D176: 120.00 | E176: 720.32 | F176: 745.00 | G176: 480.00 | I176: 6.00 | J176: 6.21 | K176: 4.00 | M176: 6-phosphogluconate dehydrogenase | N176: Sun W, Tanaka TQ, Magle CT, Huang W, Southall N, Huang R, Dehdashti SJ, McKew JC et al (2014) Chemical signatures and new drug targets for gametocytocidal drug development. | O176: Characterization of Plasmodium falciparum 6-phosphogluconate dehydrogenase as an antimalarial drug target K Haeussler | U176: PF3D7_1454700 | W176: 0.29 | X176: 0.18 | Y176: -0.08 | AB176: 1.717623246 | AC176: 5.869374848 | AD176: 16.43328822 | AE176: gct V enriched | AG176: 0.2926415999 | AH176: 3.417149169 | AJ176: Detected | AK176: 1936470222 | AL176: 2758600000 | AM176: 3486288340 | AN176: 0.7912713266 | AP176: Essential
A177: PC22 | D177: 94.00 | E177: 570.00 | F177: 780.00 | I177: 6.06 | J177: 8.30 | M177: PI4K | N177: New Amidated 3,6-Diphenylated Imidazopyridazines with Potent Antiplasmodium Activity Are Dual Inhibitors of Plasmodium Phosphatidylinositol-4-kinase and cGMP … PM Cheuka | U177: PF3D7_0509800 | W177: 0.29 | X177: -0.01 | Y177: 0.16 | AF177: Not detected | AJ177: Not detected | AP177: Essential
A178: MMV1558277 | D178: 759.30 | E178: 5000.00 | G178: 5000.00 | I178: 6.59 | K178: =G178/D178 -> 6.59 | M178: plasmepsin X (PMX) | N178: Provided from MMV | U178: PF3D7_0808200 | W178: 1.26 | X178: -0.79 | Y178: 0.17 | AB178: 0 | AC178: 0 | AD178: 0.995262315 | AE178: gct V enriched | AG178: 1 | AJ178: Detected | AK178: 90439310.28 | AL178: 149530000 | AM178: 3295189.911 | AN178: 45.37826469 | AP178: Essential/Not essential | AQ178: D I
A179: MMV009063 | D179: 293.00 | E179: 2000.00 | F179: 897.00 | I179: 6.83 | J179: =F179/D179 -> 3.06 | M179: ATP4 | N179: E.L. Allman, H.J. Painter, J. Samra, M. Carrasquilla, M. Llinas Metabolomic profiling of the malaria box reveals antimalarial target pathways 2016 | O179: Mapping the malaria parasite druggable genome by using in vitro evolution and chemogenomics AN Cowell | U179: PF3D7_1211900 | W179: 0.33 | X179: -0.22 | Y179: -0.49 | AB179: 1.773190862 | AC179: 0.4394601472 | AD179: 2.593813664 | AE179: shared 3 stages | AG179: 4.034929842 | AH179: 0.2478357838 | AJ179: Detected | AK179: 636393353.8 | AL179: 392860000 | AM179: 65708369.94 | AN179: 5.978842579 | AP179: Essential
A180: MMV009063 | D180: 293.00 | E180: 2000.00 | F180: 897.00 | I180: 6.83 | J180: 3.06 | M180: MDR1 | N180: E.L. Allman, H.J. Painter, J. Samra, M. Carrasquilla, M. Llinas Metabolomic profiling of the malaria box reveals antimalarial target pathways 2016 | O180: Mapping the malaria parasite druggable genome by using in vitro evolution and chemogenomics AN Cowell | U180: PF3D7_0523000 | W180: 0.55 | X180: -0.14 | Y180: -0.37 | AB180: 4.185382763 | AC180: 2.612005628 | AD180: 5.559963281 | AE180: shared 3 stages | AG180: 1.602363609 | AH180: 0.6240780773 | AJ180: Detected | AK180: 1075298324 | AL180: 2109100000 | AM180: 611327737.5 | AN180: 3.45003158 | AP180: Essential
A181: MMV675081 | D181: 24.42 | E181: 168.00 | F181: 845.00 | I181: 6.88 | J181: 34.60 | M181: PI4K | N181: Potent Plasmodium falciparum gametocytocidal compounds identified by exploring the kinase inhibitor chemical space for dual active antimalarials Mariëtte E van der Watt, | U181: PF3D7_0509800 | W181: 0.29 | X181: -0.01 | Y181: 0.16 | AF181: Not detected | AJ181: Not detected | AP181: Essential
A182: MMV665915 | D182: 212.00 | E182: 1463.00 | F182: 2000.00 | I182: 6.90 | J182: 9.43 | M182: C4,C9-fatty acid incorporation into neutral lipids - lipid synthesis, ALA pathway | N182: Leveraging a Fluorescent Fatty Acid Probe to Discover Cell-Permeable Inhibitors of Plasmodium falciparum Glycerolipid Biosynthesis C Dapper | O182: Metabolomics-based screening of the malaria box reveals both novel and established mechanisms of action DJ Creek | W182: 0.6671428571 | X182: 0.3242857143 | Y182: -0.02142857143 | Z182: Average | AB182: 37.64651951 | AC182: 9.332753817 | AD182: 5.059184394 | AE182: enriched troph | AF182: Average | AG182: 4.033806126 | AH182: 0.2479048246 | AJ182: Detected | AK182: 681055108.2 | AL182: 2380578564 | AM182: 834388396.6 | AN182: 2.853082059 | AP182: Essential/Not essential
A183: MMV665915 | D183: 212.00 | E183: 1463.00 | F183: 2000.00 | I183: 6.90 | J183: 9.43 | M183: acyl-CoA synthetase (ACS11) | N183: Leveraging a Fluorescent Fatty Acid Probe to Discover Cell-Permeable Inhibitors of Plasmodium falciparum Glycerolipid Biosynthesis C Dapper | O183: Metabolomics-based screening of the malaria box reveals both novel and established mechanisms of action DJ Creek | U183: PF3D7_1238800 | W183: 0.54 | X183: -0.04 | Y183: -0.19 | AB183: 3.175016901 | AC183: 1.578121624 | AD183: 2.782489906 | AE183: shared 3 stages | AG183: 2.011896201 | AH183: 0.497043535 | AJ183: Detected | AK183: 370910521.3 | AL183: 1014900000 | AM183: 531968643.8 | AN183: 1.907819214 | AP183: Essential
A184: MMV665915 | D184: 212.00 | E184: 1463.00 | F184: 2000.00 | I184: 6.90 | J184: 9.43 | M184: Fatty acid pathway | N184: Leveraging a Fluorescent Fatty Acid Probe to Discover Cell-Permeable Inhibitors of Plasmodium falciparum Glycerolipid Biosynthesis C Dapper | O184: Metabolomics-based screening of the malaria box reveals both novel and established mechanisms of action DJ Creek | W184: 0.4282608696 | X184: 0.7691304348 | Y184: 0.5582608696 | Z184: Average | AB184: 0.2833402478 | AC184: 4.761770574 | AD184: 1.319018667 | AE184: gct I/II enriched | AF184: Average | AG184: 0.05950312881 | AH184: 16.80583895 | AJ184: Detected | AK184: 132017292.2 | AL184: 1079994333 | AM184: 70963557.25 | AN184: 15.21899937 | AP184: Essential/Not essential
A185: MMV000963 | D185: 212.50 | E185: 1476.00 | F185: 2000.00 | I185: 6.95 | J185: 9.41 | M185: PKG | N185: E.L. Allman, H.J. Painter, J. Samra, M. Carrasquilla, M. Llinas Metabolomic profiling of the malaria box reveals antimalarial target pathways 2016 | O185: Evaluation of 4-amino 2-anilinoquinazolines against Plasmodium and other apicomplexan parasites in vitro and in a P. falciparum humanized NOD-scid IL2Rγnull PR Gilson 2019 | P185: Open source drug discovery with the malaria box compound collection for neglected diseases and beyond, van Voorhis 2016 | U185: PF3D7_1436600 | W185: 0.47 | X185: -0.44 | Y185: 0.1 | AB185: 0 | AC185: 0.0682448935 | AD185: 2.025305457 | AE185: gct V enriched | AG185: 0.8 | AJ185: Detected | AK185: 187255751.4 | AL185: 109730000 | AM185: 295371702.9 | AN185: 0.3714980106 | AP185: Essential
A186: MMV390048 | B186: MMV0048 | D186: 24.00 | E186: 171.00 | G186: 101.40 | I186: 7.13 | K186: =G186/D186 -> 4.23 | M186: PI4K | N186: Potent Plasmodium falciparum gametocytocidal compounds identified by exploring the kinase inhibitor chemical space for dual active antimalarials Mariëtte E van der Watt, | O186: Younis Y, Douelle F, Feng TS, Gonzalez Cabrera D, Le Manach C, Nchinda AT, Duffy S, White KL, Shackleford DM, Morizzi J, Mannila J, Katneni K, Bhamidipati R, Zabiulla KM, Joseph JT, Bashyam S, Waterson D, Witty MJ, Hardick D, Wittlin S, Avery V, Charman SA, Chibale K. 2012. 3,5-Diaryl-2-aminopyridines as a novel class of orally active antimalarials demonstrating single dose cure in mice and clinical candidate potential. J Med Chem 55:3479–3487. | P186: Paquet T, Le Manach C, Cabrera DG, Younis Y, Henrich PP, Abraham TS, Lee MCS, Basak R, Ghidelli-Disse S, Lafuente-Monasterio MJ et al.. (2017) Antimalarial efficacy of MMV390048, an inhibitor of Plasmodium phosphatidylinositol 4-kinase. | U186: PF3D7_0509800 | W186: 0.29 | X186: -0.01 | Y186: 0.16 | AF186: Not detected | AJ186: Not detected | AP186: Essential
A187: MMV390048 | B187: MMV0048 | D187: 24.00 | E187: 171.00 | G187: 101.40 | I187: 7.13 | K187: =G187/D187 -> 4.23 | M187: PI3K | N187: Potent Plasmodium falciparum gametocytocidal compounds identified by exploring the kinase inhibitor chemical space for dual active antimalarials Mariëtte E van der Watt, | O187: Younis Y, Douelle F, Feng TS, Gonzalez Cabrera D, Le Manach C, Nchinda AT, Duffy S, White KL, Shackleford DM, Morizzi J, Mannila J, Katneni K, Bhamidipati R, Zabiulla KM, Joseph JT, Bashyam S, Waterson D, Witty MJ, Hardick D, Wittlin S, Avery V, Charman SA, Chibale K. 2012. 3,5-Diaryl-2-aminopyridines as a novel class of orally active antimalarials demonstrating single dose cure in mice and clinical candidate potential. J Med Chem 55:3479–3487. | P187: Paquet T, Le Manach C, Cabrera DG, Younis Y, Henrich PP, Abraham TS, Lee MCS, Basak R, Ghidelli-Disse S, Lafuente-Monasterio MJ et al.. (2017) Antimalarial efficacy of MMV390048, an inhibitor of Plasmodium phosphatidylinositol 4-kinase. | U187: PF3D7_0515300 | W187: 0.56 | X187: 0.18 | Y187: 0.29 | AF187: Not detected | AJ187: Not detected | AP187: Essential
A188: MMV390048 | B188: MMV0048 | D188: 24.00 | E188: 171.00 | G188: 101.40 | I188: 7.13 | K188: =G188/D188 -> 4.23 | M188: PKG | N188: Potent Plasmodium falciparum gametocytocidal compounds identified by exploring the kinase inhibitor chemical space for dual active antimalarials Mariëtte E van der Watt, | O188: Younis Y, Douelle F, Feng TS, Gonzalez Cabrera D, Le Manach C, Nchinda AT, Duffy S, White KL, Shackleford DM, Morizzi J, Mannila J, Katneni K, Bhamidipati R, Zabiulla KM, Joseph JT, Bashyam S, Waterson D, Witty MJ, Hardick D, Wittlin S, Avery V, Charman SA, Chibale K. 2012. 3,5-Diaryl-2-aminopyridines as a novel class of orally active antimalarials demonstrating single dose cure in mice and clinical candidate potential. J Med Chem 55:3479–3487. | P188: Paquet T, Le Manach C, Cabrera DG, Younis Y, Henrich PP, Abraham TS, Lee MCS, Basak R, Ghidelli-Disse S, Lafuente-Monasterio MJ et al.. (2017) Antimalarial efficacy of MMV390048, an inhibitor of Plasmodium phosphatidylinositol 4-kinase. | U188: PF3D7_1436600 | W188: 0.47 | X188: -0.44 | Y188: 0.1 | AB188: 0 | AC188: 0.0682448935 | AD188: 2.025305457 | AE188: gct V enriched | AG188: 0.8 | AJ188: Detected | AK188: 187255751.4 | AL188: 109730000 | AM188: 295371702.9 | AN188: 0.3714980106 | AP188: Essential
A189: MMV1792684 | B189: TCMDC-135051 | D189: 115.67 | E189: 840.00 | G189: 2526.00 | I189: 7.26 | K189: =G189/D189 -> 21.84 | M189: cyclin-dependent-like kinase (CLK3) | N189: Development of Potent PfCLK3 Inhibitors Based on TCMDC-135051 as a New Class of Antimalarials. A Mahindra. 2020 | O189: Validation of the protein kinase PfCLK3 as a multistage cross-species malarial drug target. Mahmood M. Alam. 2019 | U189: PF3D7_1114700 | W189: 0.25 | X189: 0.09 | Y189: -0.02 | AB189: 0 | AC189: 0 | AD189: 0.06246783089 | AE189: not determined | AG189: 1 | AJ189: Detected | AK189: 2546751.747 | AL189: 7551700 | AM189: 2549578.372 | AN189: 2.96194072 | AP189: Essential
A190: MMV674594 | D190: 89.06 | E190: 649.00 | F190: 1860.00 | I190: 7.29 | J190: =F190/D190 -> 20.88 | M190: PI4K | N190: Potent Plasmodium falciparum gametocytocidal compounds identified by exploring the kinase inhibitor chemical space for dual active antimalarials Mariëtte E van der Watt, | U190: PF3D7_0509800 | W190: 0.29 | X190: -0.01 | Y190: 0.16 | AF190: Not detected | AJ190: Not detected | AP190: Essential
A191: MMV665794 | D191: 90.00 | E191: 656.00 | F191: 416.00 | G191: 680.00 | I191: 7.29 | J191: 4.62 | K191: =G191/D191 -> 7.56 | M191: PKG | N191: Open source drug discovery with the malaria box compound collection for neglected diseases and beyond, van Voorhis 2016 | O191: Combining stage specificity and metabolomic profiling to advance antimalarial drug discovery JM Murithi | P191: Malaria Box Compounds against Anopheles gambiae (Diptera: Culicidae) Carboxypeptidase B Activity to Block Malaria Transmission T Pomun | Q191: Generation of a mutator parasite to drive resistome discovery in Plasmodium falciparum K Kumpornsin | U191: PF3D7_1436600 | W191: 0.47 | X191: -0.44 | Y191: 0.1 | AB191: 0 | AC191: 0.0682448935 | AD191: 2.025305457 | AE191: gct V enriched | AG191: 0.8 | AJ191: Detected | AK191: 187255751.4 | AL191: 109730000 | AM191: 295371702.9 | AN191: 0.3714980106 | AP191: Essential
A192: MMV665794 | D192: 90.00 | E192: 656.00 | F192: 416.00 | G192: 680.00 | I192: 7.29 | J192: 4.62 | K192: =G192/D192 -> 7.56 | M192: QRP1? | N192: Open source drug discovery with the malaria box compound collection for neglected diseases and beyond, van Voorhis 2016 | O192: Combining stage specificity and metabolomic profiling to advance antimalarial drug discovery JM Murithi | P192: Malaria Box Compounds against Anopheles gambiae (Diptera: Culicidae) Carboxypeptidase B Activity to Block Malaria Transmission T Pomun | Q192: Generation of a mutator parasite to drive resistome discovery in Plasmodium falciparum K Kumpornsin | U192: PF3D7_1359900 | W192: 0.59 | X192: -0.05 | Y192: 0.22 | AF192: Not detected | AJ192: Not detected | AP192: Not essential
A193: MMV020549 | D193: 274.00 | E193: 2027.00 | F193: 5000.00 | I193: 7.40 | J193: 18.25 | M193: Hsp90 | N193: E.L. Allman, H.J. Painter, J. Samra, M. Carrasquilla, M. Llinas Metabolomic profiling of the malaria box reveals antimalarial target pathways 2016 | O193: Open source drug discovery with the malaria box compound collection for neglected diseases and beyond, van Voorhis 2016 | P193: Bilayer effects of antimalarial compounds NB Ramsey | Q193: Identification of Novel Ezrin Inhibitors Targeting Metastatic Osteosarcoma by Screening Open Access Malaria BoxScreening MMV Malaria Box to Identify Novel Ezrin … H Çelik | U193: PF3D7_0708400 | W193: 0.47 | X193: 0.14 | Y193: -0.37 | AB193: 391.2443421 | AC193: 487.5030362 | AD193: 2642.761186 | AE193: gct V enriched | AG193: 0.8025474984 | AH193: 1.246032169 | AJ193: Detected | AK193: 2.810226702e+10 | AL193: 93040000000 | AM193: 2.430449039e+10 | AN193: =AL193/AM193 -> 3.828099191 | AP193: Essential
A194: MMV665924 | D194: 649.20 | E194: 5000.00 | G194: 5000.00 | I194: 7.70 | K194: =G194/D194 -> 7.70 | M194: acetyl-CoA synthetase (ACAS) | N194: Chemogenomics identifies acetyl-coenzyme A synthetase as a target for malaria treatment and prevention. RL Summers. 2022 | U194: PF3D7_0627800 | W194: 0.29 | X194: -0.51 | Y194: -0.45 | AB194: 0.5239278103 | AC194: 0.2233156821 | AD194: 0.1481536215 | AE194: enriched troph | AG194: 2.346130847 | AH194: 0.4262336866 | AJ194: Detected | AK194: 7752479.547 | AL194: 5327800 | AM194: 13142844.22 | AN194: 0.4053764856 | AP194: Essential | AQ194: A
A195: MMV665924 | D195: 649.20 | E195: 5000.00 | G195: 5000.00 | I195: 7.70 | K195: 7.70 | M195: acyl-CoA synthetase (ACS10) | N195: Chemogenomics identifies acetyl-coenzyme A synthetase as a target for malaria treatment and prevention. RL Summers. 2022 | U195: PF3D7_0525100 | W195: 0.84 | X195: -0.61 | Y195: -0.77 | AB195: 6.499642624 | AC195: 6.443810659 | AD195: 5.390804842 | AE195: shared 3 stages | AG195: 1.008664433 | AH195: 0.9914099946 | AJ195: Detected | AK195: 337785262.2 | AL195: 1807600000 | AM195: 394712460.2 | AN195: 4.5795362 | AP195: Essential
A196: MMV020243 | D196: 134.26 | E196: 1058.32 | F196: 5000.00 | G196: 5000.00 | I196: 7.88 | J196: =F196/D196 -> 37.24 | K196: 37.24 | M196: phosphatidylserine decarboxylase (PSD) | N196: Characterization of Plasmodium phosphatidylserine decarboxylase expressed in yeast and application for inhibitor screening JY Choi | O196: Identification of Novel Ezrin Inhibitors Targeting Metastatic Osteosarcoma by Screening Open Access Malaria BoxScreening MMV Malaria Box to Identify Novel Ezrin … H Çelik | U196: PF3D7_0927900 | W196: 0.6 | X196: -0.61 | Y196: 0.16 | AB196: 0.9628761075 | AC196: 0 | AD196: 0.5848931925 | AE196: shared 3 stages | AG196: 1.9 | AH196: 0 | AJ196: Not detected | AP196: Essential
A197: MMV006787 | D197: 200.90 | E197: 1645.00 | F197: 1170.00 | G197: 3713.20 | I197: 8.19 | J197: 5.82 | K197: =G197/D197 -> 18.48 | M197: Hsp90 | N197: Open source drug discovery with the malaria box compound collection for neglected diseases and beyond, van Voorhis 2016 | U197: PF3D7_0708400 | W197: 0.47 | X197: 0.14 | Y197: -0.37 | AB197: 391.2443421 | AC197: 487.5030362 | AD197: 2642.761186 | AE197: gct V enriched | AG197: =AB197/AC197 -> 0.8025474984 | AH197: 1.246032169 | AJ197: Detected | AK197: 2.810226702e+10 | AL197: 93040000000 | AM197: 2.430449039e+10 | AN197: 3.828099191 | AP197: Essential
A198: CLM-1 | D198: 7.30 | E198: 60.00 | F198: 27.00 | I198: 8.22 | J198: 3.70 | M198: PK7 | N198: A novel pyrazolopyridine with in vivo activity in Plasmodium berghei-and Plasmodium falciparum-infected mouse models from structure–activity relationship studies around the core of recently identified antimalarial imidazopyridazines Le Manach 2015 | U198: PF3D7_0213400 | W198: 0.31 | X198: 0.27 | Y198: -0.31 | AB198: 0.2246523051 | AC198: 0 | AD198: 0.1364636664 | AE198: not determined | AG198: 1.1 | AH198: 0 | AJ198: Not detected | AP198: Not essential | AQ198: A D
A199: MMV652103 | D199: 7.25 | E199: 59.60 | F199: 5.00 | G199: 133.30 | I199: 8.22 | J199: 0.69 | K199: =G199/D199 -> 18.39 | M199: CDPK1 | N199: Imidazopyridazines as potent inhibitors of Plasmodium falciparum calcium-dependent protein kinase 1 (PfCDPK1): preparation and evaluation of pyrazole … JM Large | O199: Substituted imidazopyridazines are potent and selective inhibitors of Plasmodium falciparum calcium-dependent protein kinase 1 (PfCDPK1) TM Chapman | P199: New Amidated 3,6-Diphenylated Imidazopyridazines with Potent Antiplasmodium Activity Are Dual Inhibitors of Plasmodium Phosphatidylinositol-4-kinase and cGMP … PM Cheuka | Q199: Exploring the transmission-blocking activity of antiplasmodial 3, 6-diarylated imidazopyridazines D Coertzen | U199: PF3D7_0217500 | W199: 0.54 | X199: -0.07 | Y199: 0.86 | AB199: 1.827664212 | AC199: 0.8228906159 | AD199: 5.078323128 | AE199: shared 3 stages | AG199: 2.221029353 | AH199: 0.4502416858 | AJ199: Detected | AK199: 1326801430 | AL199: 360430000 | AM199: 3411452183 | AN199: 0.1056529538 | AP199: Essential | AQ199: I S | AR199: A
A200: MMV652103 | D200: 7.25 | E200: 59.60 | F200: 5.00 | G200: 133.30 | I200: =E200/D200 -> 8.22 | J200: 0.69 | K200: 18.39 | M200: CDPK4 | N200: Imidazopyridazines as potent inhibitors of Plasmodium falciparum calcium-dependent protein kinase 1 (PfCDPK1): preparation and evaluation of pyrazole … JM Large | O200: Substituted imidazopyridazines are potent and selective inhibitors of Plasmodium falciparum calcium-dependent protein kinase 1 (PfCDPK1) TM Chapman | P200: New Amidated 3,6-Diphenylated Imidazopyridazines with Potent Antiplasmodium Activity Are Dual Inhibitors of Plasmodium Phosphatidylinositol-4-kinase and cGMP … PM Cheuka | Q200: Exploring the transmission-blocking activity of antiplasmodial 3, 6-diarylated imidazopyridazines D Coertzen | U200: PF3D7_0717500 | W200: 0.32 | X200: 0.52 | Y200: 0.27 | AB200: 0 | AC200: 0.4054116887 | AD200: 56.3615251 | AE200: gct V enriched | AG200: 0.4 | AJ200: Detected | AK200: 1686711047 | AL200: 891260000 | AM200: 1.124765802e+10 | AN200: 0.07923960691 | AP200: Not essential | AQ200: U
... 215 more rows

Sheet ABS mGc targets Supp FigS5
A1: Compound identifier | B1: Trivial name | D1: Final ABS IC50 (nM) | E1: Final iGc IC50 (nM) | F1: Final LGc IC50 (nM) | G1: Final mGc IC50 (nM) | I1: FC iGC-ABS | J1: FC LGc-ABS | K1: FC mGc-ABS | M1: Target (implied/confirmed) | N1: References | U1: GeneID | W1: transcript expression (microarray) (Bozdech 2003, van Biljon 2019) | AB1: Proteome expression (Silvestrini 2010) | AG1: FC proteom (ABS/mGc) | AH1: FC proteome (mGC/ABS) | AJ1: Proteome data (Lasonder 2016) | AL1: Lasonder female | AM1: Lasonder male | AN1: F/M ratio | AP1: Essential (P. falciparum data) | AQ1: A = attenuated, difference in growth, D = different from wild type, U = no difference, I = invasion defect, S = cell cycle defect
W2: ABS | X2: iGc | Y2: mGc | AB2: T | AC2: iGc | AD2: mGc | AE2: classification | AK2: mGc (mixed) | AQ2: ABS | AR2: Gc
A3: GP69 | D3: 5000.00 | G3: 555.35 | K3: =G3/D3 -> 0.1111 | M3: MAPK1 | N3: Gametocyte-specific and all-blood-stage transmission-blocking chemotypes discovered from high throughput screening on Plasmodium falciparum gametocytes Paonessa 2022 | U3: PF3D7_1431500 | W3: 0.39 | X3: 0.68 | Y3: 0.76 | AF3: Not detected | AJ3: Translationally repressed | AP3: Non Essential
A4: GP69 | D4: 5000.00 | G4: 555.35 | K4: 0.1111 | M4: MAPK2 | N4: Gametocyte-specific and all-blood-stage transmission-blocking chemotypes discovered from high throughput screening on Plasmodium falciparum gametocytes Paonessa 2022 | U4: PF3D7_1113900 | W4: 0.53 | X4: 1.03 | Y4: 0.24 | AB4: 0 | AC4: 0 | AD4: 3.893900918 | AE4: gct V enriched | AG4: 0.3 | AJ4: Detected | AK4: 159395278 | AL4: 174890000 | AM4: 1931170748 | AN4: =AL4/AM4 -> 0.09056164515 | AP4: Essential Non/Essential | AQ4: U | AR4: A
A5: MMV1581373 | B5: KAE609 analog | D5: 0.55 | E5: 1.14 | G5: 0.11 | I5: =E5/D5 -> 2.07 | K5: 0.2000 | M5: ATP4 | U5: PF3D7_1211900 | W5: 0.33 | X5: -0.22 | Y5: -0.49 | AB5: 1.773190862 | AC5: 0.4394601472 | AD5: 2.593813664 | AE5: shared 3 stages | AG5: =AB5/AD5 -> 0.683623071 | AH5: =AD5/AB5 -> 1.4627944 | AJ5: Detected | AK5: 636393353.8 | AL5: 392860000 | AM5: 65708369.94 | AN5: 5.978842579 | AP5: Essential
A6: MMV643121 | B6: M5717 (DDD107498) | D6: 1.00 | E6: 3.57 | G6: 0.25 | I6: =E6/D6 -> 3.57 | K6: 0.2500 | M6: eEF2 | N6: Baragaña B, Hallyburton I, Lee MC, Norcross NR, Grimaldi R, Otto TD, Proto WR, Blagborough AM, Meister S, Wirjanata G et al.. (2015) A novel multiple-stage antimalarial agent that inhibits protein synthesis. | U6: PF3D7_1451100 | W6: 0.72 | X6: -0.3 | Y6: -1 | AB6: 36.21509657 | AC6: 20.79857305 | AD6: 60.26804781 | AE6: shared 3 stages | AG6: 0.6009004421 | AH6: 1.664169187 | AJ6: Detected | AK6: 8763016764 | AL6: 19691000000 | AM6: 2265856301 | AN6: 8.690312793 | AP6: Essential (ortholog)
A7: DDD107498 | B7: M5717 | D7: 1.00 | E7: 3.57 | F7: 1.61 | G7: 0.25 | I7: =E7/D7 -> 3.57 | J7: =F7/D7 -> 1.61 | K7: 0.2500 | M7: eEF2 | N7: Baragaña B, Hallyburton I, Lee MC, Norcross NR, Grimaldi R, Otto TD, Proto WR, Blagborough AM, Meister S, Wirjanata G et al.. (2015) A novel multiple-stage antimalarial agent that inhibits protein synthesis. | U7: PF3D7_1451100 | W7: 0.72 | X7: -0.3 | Y7: -1 | AB7: 36.21509657 | AC7: 20.79857305 | AD7: 60.26804781 | AE7: shared 3 stages | AG7: 0.6009004421 | AH7: 1.664169187 | AJ7: Detected | AK7: 8763016764 | AL7: 19691000000 | AM7: 2265856301 | AN7: 8.690312793 | AP7: Essential (ortholog)
A8: MMV560185 | D8: 2000.00 | F8: 710.00 | G8: 510.00 | J8: 0.36 | K8: 0.2550 | M8: apoptosis-related protein | N8: MMV560185 from pathogen box induces extrinsic pathway of apoptosis in Theileria annulata infected bovine leucocytes PB Araveti | U8: PF3D7_0909300 | W8: 1.55 | X8: 0.84 | Y8: -0.19 | AF8: Not detected | AJ8: Detected | AK8: 18141122.65 | AL8: 49108000 | AM8: 20856995.15 | AN8: 2.354509825
A9: MMV560185 | D9: 2000.00 | F9: 710.00 | G9: 510.00 | J9: 0.36 | K9: 0.2550 | M9: apoptosis-inducing factor | N9: MMV560185 from pathogen box induces extrinsic pathway of apoptosis in Theileria annulata infected bovine leucocytes PB Araveti | U9: PF3D7_0720400 | W9: 0.55 | X9: 0.08 | Y9: -0.18 | AB9: 0.2942965475 | AC9: 0.8298062892 | AD9: 3.159562163 | AE9: gct V enriched | AG9: 0.0931447246 | AH9: 10.73598107 | AJ9: Detected | AK9: 321133079.4 | AL9: 1053200000 | AM9: 290281205.8 | AN9: 3.628205957 | AP9: Non Essential
A10: MMV560185 | D10: 2000.00 | F10: 710.00 | G10: 510.00 | J10: 0.36 | K10: 0.2550 | M10: methionine aminopeptidase 1a (METAP1a) | N10: MMV560185 from pathogen box induces extrinsic pathway of apoptosis in Theileria annulata infected bovine leucocytes PB Araveti | U10: PF3D7_0527300 | W10: 0.56 | X10: 0.14 | Y10: -0.3 | AF10: Not detected | AJ10: Not detected | AP10: Non Essential
A11: MMV560185 | D11: 2000.00 | F11: 710.00 | G11: 510.00 | J11: 0.36 | K11: 0.2550 | M11: methionine aminopeptidase 1b (METAP1b) | N11: MMV560185 from pathogen box induces extrinsic pathway of apoptosis in Theileria annulata infected bovine leucocytes PB Araveti | U11: PF3D7_1015300 | W11: 0.62 | X11: -0.49 | Y11: -0.97 | AB11: 0 | AC11: 0 | AD11: 0.07006895569 | AE11: not determined | AG11: 0.9 | AJ11: Not detected | AP11: Non Essential
A12: MMV560185 | D12: 2000.00 | F12: 710.00 | G12: 510.00 | J12: 0.36 | K12: 0.2550 | M12: methionine aminopeptidase 2 (METAP2) | N12: MMV560185 from pathogen box induces extrinsic pathway of apoptosis in Theileria annulata infected bovine leucocytes PB Araveti | U12: PF3D7_1434600 | W12: 0.95 | X12: 0.2 | Y12: -0.17 | AB12: 0.7701110967 | AC12: 0 | AD12: 1.296736176 | AE12: shared 3 stages | AG12: 0.5938841769 | AH12: 1.683830011 | AJ12: Not detected | AP12: Essential
A13: MMV1029203 | D13: 2000.00 | G13: 840.00 | K13: 0.4200 | M13: ferrochelatase | N13: Screening the Pathogen Box for Identification of New Chemical Agents with Anti-Fasciola hepatica Activity C Machicado, | U13: PF3D7_1364900 | W13: 0.43 | X13: 0.21 | Y13: -0.07 | AF13: Not detected | AJ13: Not detected | AP13: Non Essential | AQ13: U | AR13: A
A14: MMV1029203 | D14: 2000.00 | G14: 840.00 | K14: 0.4200 | M14: inosine-5'-monophosphate dehydrogenase | N14: Screening the Pathogen Box for Identification of New Chemical Agents with Anti-Fasciola hepatica Activity C Machicado, | U14: PF3D7_0920800 | W14: 1.1 | X14: 0.69 | Y14: -0.34 | AB14: 4.173193962 | AC14: 1.027881696 | AD14: 4.945570709 | AE14: shared 3 stages | AG14: 0.8438245468 | AH14: 1.185080481 | AJ14: Detected | AK14: 263286422.4 | AL14: 1201100000 | AM14: 555735999 | AN14: 2.161278021 | AP14: Essential
A15: Epoxomycin | B15: Epoxomycin | D15: 8.00 | E15: 12.10 | F15: 0.42 | G15: 3.80 | I15: =E15/D15 -> 1.51 | J15: =F15/D15 -> 0.05 | K15: 0.4750 | M15: Proteosome subunit beta type-5 | N15: rasad R, Atul Kolla VK, Legac J, Singhal N, NavaleR, Rosenthal PJ & Sijwali PS (2013) BlockingPlasmodium falciparumdevelopment via dualinhibition of hemoglobin degradation and theubiquitin proteasome system by MG13 | U15: PF3D7_1011400 | W15: 0.17 | X15: 0.88 | Y15: 0.57 | AB15: 1.39576648 | AC15: 5.489058493 | AD15: 6.356422545 | AE15: gct V enriched | AG15: 0.2195836527 | AH15: 4.554073073 | AJ15: Detected | AK15: 863717094.5 | AL15: 2420200000 | AM15: 905523360 | AN15: 2.672708521 | AP15: Essential (ortholog)
A16: GP39 | D16: 539.97 | G16: 308.40 | K16: 0.5711 | M16: K2 | N16: Gametocyte-specific and all-blood-stage transmission-blocking chemotypes discovered from high throughput screening on Plasmodium falciparum gametocytes Paonessa 2022 | U16: PF3D7_1465500 | W16: 0.21 | X16: 1.36 | Y16: 1.15 | AF16: Not detected | AJ16: Not detected | AP16: Essential/Non Essential
A17: MMV023985 | D17: 695.36 | F17: 5000.00 | G17: 410.00 | J17: =F17/D17 -> 7.19 | K17: 0.5896 | M17: CDPK1 | N17: Screening the Medicines for Malaria Venture Pathogen Box across multiple pathogens reclassifies starting points for open-source drug discovery S Duffy | O17: Targeting Plasmodium PI (4) K to eliminate malaria McNamara 2013 | U17: PF3D7_0217500 | W17: 0.54 | X17: -0.07 | Y17: 0.86 | AB17: 1.827664212 | AC17: 0.8228906159 | AD17: 5.078323128 | AE17: shared 3 stages | AG17: 0.3598952186 | AH17: 2.778586512 | AJ17: Detected | AK17: 1326801430 | AL17: 360430000 | AM17: 3411452183 | AN17: 0.1056529538 | AP17: Essential | AQ17: I S | AR17: A
A18: MMV023985 | D18: 695.36 | F18: 5000.00 | G18: 410.00 | J18: 7.19 | K18: 0.5896 | M18: PI4K | N18: Screening the Medicines for Malaria Venture Pathogen Box across multiple pathogens reclassifies starting points for open-source drug discovery S Duffy | O18: Targeting Plasmodium PI (4) K to eliminate malaria McNamara 2013 | U18: PF3D7_0509800 | W18: 0.29 | X18: -0.01 | Y18: 0.16 | AF18: Not detected | AJ18: Not detected | AP18: Essential
A19: MMV023985 | D19: 695.36 | F19: 5000.00 | G19: 410.00 | J19: 7.19 | K19: 0.5896 | M19: PK7 | N19: Screening the Medicines for Malaria Venture Pathogen Box across multiple pathogens reclassifies starting points for open-source drug discovery S Duffy | O19: Targeting Plasmodium PI (4) K to eliminate malaria McNamara 2013 | U19: PF3D7_0213400 | W19: 0.31 | X19: 0.27 | Y19: -0.31 | AB19: 0.2246523051 | AC19: 0 | AD19: 0.1364636664 | AE19: not determined | AG19: 1.64624263 | AH19: 0.6074438735 | AJ19: Not detected | AP19: Non Essential | AQ19: A D
A20: MMV010576 | D20: 97.13 | F20: 150.00 | G20: 66.00 | J20: 1.54 | K20: 0.6795 | M20: PI4K | N20: Screening the Medicines for Malaria Venture Pathogen Box across multiple pathogens reclassifies starting points for open-source drug discovery S Duffy | O20: Hennessey KM, Rogiers IC, Shih HW, Hulverson MA, Choi R, McCloskey MC, Whitman GR, Barrett LK, Merritt EA, Paredez AR, Ojo KK. 2018. Screening of the Pathogen Box for inhibitors with dual efficacy against Giardia lamblia and Cryptosporidium parvum. | U20: PF3D7_0509800 | W20: 0.29 | X20: -0.01 | Y20: 0.16 | AF20: Not detected | AJ20: Not detected | AP20: Essential
A21: GNF179 | B21: GNF179 | D21: 4.31 | E21: 19.92 | F21: 9.15 | G21: 3.36 | I21: =E21/D21 -> 4.6218 | J21: 2.12 | K21: 0.78 | M21: inhibit protein trafficking, block the establishment of new permeation pathways, and cause ER expansion. - similar to KAF156 | N21: Pan-active imidazolopiperazine antimalarials target the Plasmodium falciparum intracellular secretory pathway GM LaMonte | O21: Plasmodium falciparum Cyclic Amine Resistance Locus (PfCARL), a Resistance Mechanism for Two Distinct Compound Classes Pamela A. Magistrado | P21: UDP-galactose and Acetyl-CoA transporters as Plasmodium multidrug resistance genes Michelle Yi-Xiu Lim | Z21: Not detected | AF21: Not detected | AJ21: Not detected
A22: GNF179 | B22: GNF179 | D22: 4.31 | E22: 19.92 | F22: 9.15 | G22: 3.36 | I22: =E22/D22 -> 4.62 | J22: 2.12 | K22: 0.7798 | M22: CARL | N22: Pan-active imidazolopiperazine antimalarials target the Plasmodium falciparum intracellular secretory pathway GM LaMonte | O22: Plasmodium falciparum Cyclic Amine Resistance Locus (PfCARL), a Resistance Mechanism for Two Distinct Compound Classes Pamela A. Magistrado | P22: UDP-galactose and Acetyl-CoA transporters as Plasmodium multidrug resistance genes Michelle Yi-Xiu Lim | U22: PF3D7_0321900 | W22: 0.31 | X22: -0.21 | Y22: -0.06 | AB22: 0 | AC22: 0 | AD22: 0.05372497274 | AE22: gct V enriched | AG22: 0.8 | AJ22: Not detected | AP22: Essential
A23: GNF179 | B23: GNF179 | D23: 4.31 | E23: 19.92 | F23: 9.15 | G23: 3.36 | I23: =E23/D23 -> 4.62 | J23: 2.12 | K23: 0.7798 | M23: acetyl-CoA transporter 1 | N23: Pan-active imidazolopiperazine antimalarials target the Plasmodium falciparum intracellular secretory pathway GM LaMonte | O23: Plasmodium falciparum Cyclic Amine Resistance Locus (PfCARL), a Resistance Mechanism for Two Distinct Compound Classes Pamela A. Magistrado | P23: UDP-galactose and Acetyl-CoA transporters as Plasmodium multidrug resistance genes Michelle Yi-Xiu Lim | U23: PF3D7_1036800 | W23: 1.52 | X23: 0 | Y23: 0.37 | AB23: 0 | AC23: 0 | AD23: 0.7378008287 | AE23: gct V enriched | AG23: 0.2 | AJ23: Detected | AK23: 15362145.3 | AL23: 3550600 | AM23: 31982949.33 | AN23: 0.1110154027 | AP23: Non Essential | AQ23: A
A24: GNF179 | B24: GNF179 | D24: 4.31 | E24: 19.92 | F24: 9.15 | G24: 3.36 | I24: =E24/D24 -> 4.62 | J24: 2.12 | K24: 0.7798 | M24: UDP-galactose transporter | N24: Pan-active imidazolopiperazine antimalarials target the Plasmodium falciparum intracellular secretory pathway GM LaMonte | O24: Plasmodium falciparum Cyclic Amine Resistance Locus (PfCARL), a Resistance Mechanism for Two Distinct Compound Classes Pamela A. Magistrado | P24: UDP-galactose and Acetyl-CoA transporters as Plasmodium multidrug resistance genes Michelle Yi-Xiu Lim | U24: PF3D7_1113300 | W24: 1.64 | X24: -0.02 | Y24: 0.24 | AB24: 1.281236743 | AC24: 0 | AD24: 1.610157216 | AE24: shared 3 stages | AG24: 0.7957215174 | AH24: 1.256721074 | AJ24: Detected | AK24: 44784143.76 | AL24: 138230000 | AM24: 1149223.592 | AN24: 120.2812063 | AP24: Essential
A25: MMV024443 | D25: 720.99 | F25: 2710.00 | G25: 570.00 | J25: 3.76 | K25: 0.7906 | M25: CDPK1 | N25: Ansell KH, Jones HM, Whalley D, Hearn A, Taylor DL, Patin EC, Chapman TM, Osborne SA, Wallace C, Birchall K, Large J, Bouloc N, Smiljanic-Hurley E, Clough B, Moon RW, Green JL, Holder AA. 2014. Biochemical and antiparasitic properties of inhibitors of the Plasmodium falciparum calcium-dependent protein kinase PfCDPK1 | O25: Bansal A, Singh S, More KR, Hans D, Nangalia K, Yogavel M, Sharma A, Chitnis CE. 2013. Characterization of Plasmodium falciparum calcium-dependent protein kinase 1 (PfCDPK1) and its role in microneme secre-tion during erythrocyte invasion. J | U25: PF3D7_0217500 | W25: 0.54 | X25: -0.07 | Y25: 0.86 | AB25: 1.827664212 | AC25: 0.8228906159 | AD25: 5.078323128 | AE25: shared 3 stages | AG25: 0.3598952186 | AH25: 2.778586512 | AJ25: Detected | AK25: 1326801430 | AL25: 360430000 | AM25: 3411452183 | AN25: 0.1056529538 | AP25: Essential | AQ25: I S | AR25: A
A26: MMV665852 | B26: NSC 35217 | D26: 5171.67 | E26: 3978.00 | G26: 5000.00 | I26: =E26/D26 -> 0.77 | K26: 0.9668 | M26: phospholipid-transporting ATPase 2 (ATP2) | N26: Corey VC, Lukens AK, Istvan ES, et al. A broad analysis of resistance development in the malaria parasite. Nat Commun. 2016;7:11901. | O26: Cowell AN, Istvan ES, Lukens AK, et al. Mapping the malaria parasite druggable genome by using in vitro evolution and chemogenomics. Science. 2018;359(6372):191-199. | P26: Screening for potential prophylactics targeting sporozoite motility through the skin RG Douglas 2018 | U26: PF3D7_1219600 | W26: 0.26 | X26: -0.16 | Y26: -0.4 | AB26: 0 | AC26: 0 | AD26: 0.3379404427 | AE26: gct V enriched | AG26: 0.4 | AJ26: Detected | AK26: 38850536.94 | AL26: 30051000 | AM26: 36855198.63 | AN26: 0.8153802209 | AP26: Essential
A27: MMV665852 | B27: NSC 35217 | D27: 5171.67 | E27: 3978.00 | G27: 5000.00 | I27: 0.77 | K27: 0.9668 | M27: erythrocyte membrane protein 1 (PfEMP1) | N27: Corey VC, Lukens AK, Istvan ES, et al. A broad analysis of resistance development in the malaria parasite. Nat Commun. 2016;7:11901. | O27: Cowell AN, Istvan ES, Lukens AK, et al. Mapping the malaria parasite druggable genome by using in vitro evolution and chemogenomics. Science. 2018;359(6372):191-199. | P27: Screening for potential prophylactics targeting sporozoite motility through the skin RG Douglas 2018 | U27: PF3D7_1219500 | W27: 0.43 | X27: 0.04 | Y27: 0.7 | AF27: Not detected | AJ27: Not detected | AP27: Non Essential
A28: MMV665852 | B28: NSC 35217 | D28: 5171.67 | E28: 3978.00 | G28: 5000.00 | I28: 0.77 | K28: 0.9668 | M28: PKG | N28: Corey VC, Lukens AK, Istvan ES, et al. A broad analysis of resistance development in the malaria parasite. Nat Commun. 2016;7:11901. | O28: Cowell AN, Istvan ES, Lukens AK, et al. Mapping the malaria parasite druggable genome by using in vitro evolution and chemogenomics. Science. 2018;359(6372):191-199. | P28: Screening for potential prophylactics targeting sporozoite motility through the skin RG Douglas 2018 | U28: PF3D7_1436600 | W28: 0.47 | X28: -0.44 | Y28: 0.1 | AB28: 0 | AC28: 0.0682448935 | AD28: 2.025305457 | AE28: gct V enriched | AG28: 0.2 | AJ28: Detected | AK28: 187255751.4 | AL28: 109730000 | AM28: 295371702.9 | AN28: 0.3714980106 | AP28: Essential
A29: MMV667491 | D29: 1230 | E29: 891.5 | F29: 696.4 | G29: 1390.65 | I29: 0.724796748 | J29: 0.5661788618 | K29: 1.130609756 | M29: phosphoethanolamine methyltransferase (PfPMT) | N29: Open source drug discovery with the malaria box compound collection for neglected diseases and beyond Voorhis 2016 | O29: Combining stage specificity and metabolomic profiling to advance antimalarial drug discovery JM Murithi | U29: PF3D7_1343000 | W29: 0.77 | X29: 1.48 | Y29: 0.61 | AB29: 336.4138014 | AC29: 83.25579797 | AD29: 10.54781985 | AE29: enriched troph | AG29: 31.89415503 | AH29: 0.03135370726 | AJ29: Detected | AK29: 114835488.6 | AL29: 1894500000 | AM29: 446647232.4 | AN29: 4.241602461 | AP29: Non/Essential | AQ29: A
A30: MMV019918 | D30: 280 | E30: 824 | F30: 406.9 | G30: 320 | I30: 2.942857143 | J30: 1.453214286 | K30: 1.142857143 | M30: phosphoethanolamine methyltransferase (PfPMT) | N30: … and biological studies of the Malaria Box compound 1-[5-(4-bromo-2-chlorophenyl) furan-2-yl]-N-[(piperidin-4-yl) methyl] methanamine (MMV019918) and … A Vallone | U30: PF3D7_1343000 | W30: 0.77 | X30: 1.48 | Y30: 0.61 | AB30: 336.4138014 | AC30: 83.25579797 | AD30: 10.54781985 | AE30: enriched troph | AG30: 31.89415503 | AH30: 0.03135370726 | AJ30: Detected | AK30: 114835488.6 | AL30: 1894500000 | AM30: 446647232.4 | AN30: 4.241602461 | AP30: Non/Essential | AQ30: A
A31: MMV020081 | D31: 244.5206387 | F31: 680 | G31: 310 | J31: 2.780951349 | K31: 1.267786644 | M31: ATP4 | N31: Spillman NJ, Allen RJ, McNamara CW, Yeung BK, Winzeler EA, Diagana TT, Kirk K. 2013. Na() regulation in the malaria parasite Plasmodium falciparum involves the cation ATPase PfATP4 and is a target of the spiroindolone antimalarials. | U31: PF3D7_1211900 | W31: 0.33 | X31: -0.22 | Y31: -0.49 | AB31: 1.773190862 | AC31: 0.4394601472 | AD31: 2.593813664 | AE31: shared 3 stages | AG31: 0.683623071 | AH31: 1.4627944 | AJ31: Detected | AK31: 636393353.8 | AL31: 392860000 | AM31: 65708369.94 | AN31: 5.978842579 | AP31: Essential
A32: MMV1542945 | B32: ACT-451840 | D32: 8.34 | E32: 9.9 | G32: 11.1 | I32: 1.18705036 | K32: 1.330935252 | M32: MDR1 | N32: CRISPR‐Cas9‐modified pfmdr1 protects Plasmodium falciparum asexual blood stages and gametocytes against a class of piperazine‐containing compounds. CL Ng 2016 | O32: Brunner R, Aissaoui H, Boss C, Bozdech Z, Brun R, Corminboeuf O, Delahaye S, Fischli C, Heidmann B, Kaiser M et al.. (2012) Identification of a new chemical class of antimalarials. | P32: Brunner R, Ng CL, Aissaoui H, Akabas MH, Boss C, Brun R, Callaghan PS, Corminboeuf O, Fidock DA, Frame IJ et al.. (2013) UV-triggered affinity capture identifies interactions between the Plasmodium falciparum multidrug resistance protein 1 (PfMDR1) and antimalarial agents in live parasitized cells | U32: PF3D7_0523000 | W32: 0.55 | X32: -0.14 | Y32: -0.37 | AB32: 4.185382763 | AC32: 2.612005628 | AD32: 5.559963281 | AE32: shared 3 stages | AG32: 0.7527716554 | AH32: 1.328424088 | AJ32: Detected | AK32: 1075298324 | AL32: 2109100000 | AM32: 611327737.5 | AN32: 3.45003158 | AP32: Essential
A33: MMV396749 | D33: 928 | E33: 1384.56 | F33: 5000 | G33: 1354.33 | I33: 1.491982759 | J33: 5.387931034 | K33: 1.459407328 | M33: ATP4 | N33: E.L. Allman, H.J. Painter, J. Samra, M. Carrasquilla, M. Llinas Metabolomic profiling of the malaria box reveals antimalarial target pathways 2016 | O33: Open source drug discovery with the malaria box compound collection for neglected diseases and beyond Voorhis 2016 | P33: Diverse chemotypes disrupt ion homeostasis in the malaria parasite AM Lehane | Q33: Targeted phenotypic screening in Plasmodium falciparum and Toxoplasma gondii reveals novel modes of action of medicines for malaria venture malaria box … G Subramanian | U33: PF3D7_1211900 | W33: 0.33 | X33: -0.22 | Y33: -0.49 | AB33: 1.773190862 | AC33: 0.4394601472 | AD33: 2.593813664 | AE33: shared 3 stages | AG33: 0.683623071 | AH33: 1.4627944 | AJ33: Detected | AK33: 636393353.8 | AL33: 392860000 | AM33: 65708369.94 | AN33: 5.978842579 | AP33: Essential
A34: MMV085499 | D34: 94.99823541 | F34: 550 | G34: 140 | J34: 5.789581224 | K34: 1.473711584 | M34: PI4K | N34: Le Manach C, Identification of a potential anti-malarial drug candidate from a series of 2-aminopyrazines by optimization of aqueous solubility and potency across the parasite life-cycle. | O34: Unpacking the Pathogen Box—an open source tool for fighting neglected tropical disease CGL Veale | U34: PF3D7_0509800 | W34: 0.29 | X34: -0.01 | Y34: 0.16 | AF34: Not detected | AJ34: Not detected | AP34: Essential
A35: GNF-Pf-5386 | D35: 114 | G35: 212.97 | K35: 1.868157895 | M35: ATP4 | N35: High-throughput assay and discovery of small molecules that interrupt malaria transmission DM Plouffe | U35: PF3D7_1211900 | W35: 0.33 | X35: -0.22 | Y35: -0.49 | AB35: 1.773190862 | AC35: 0.4394601472 | AD35: 2.593813664 | AE35: shared 3 stages | AG35: 0.683623071 | AH35: 1.4627944 | AJ35: Detected | AK35: 636393353.8 | AL35: 392860000 | AM35: 65708369.94 | AN35: 5.978842579 | AP35: Essential
A36: MMV019266 | D36: 255 | E36: 596 | F36: 324 | G36: 520 | I36: 2.337254902 | J36: 1.270588235 | K36: 2.039215686 | M36: phosphatidylserine decarboxylase (PSD) | N36: E.L. Allman, H.J. Painter, J. Samra, M. Carrasquilla, M. Llinas Metabolomic profiling of the malaria box reveals antimalarial target pathways 2016 | O36: Open source drug discovery with the malaria box compound collection for neglected diseases and beyond Voorhis 2016 | P36: Characterization of Plasmodium phosphatidylserine decarboxylase expressed in yeast and application for inhibitor screening JY Choi | U36: PF3D7_0927900 | W36: 0.6 | X36: -0.61 | Y36: 0.16 | AB36: 0.9628761075 | AC36: 0 | AD36: 0.5848931925 | AE36: shared 3 stages | AG36: 1.64624263 | AH36: 0.6074438735 | AJ36: Not detected | AP36: Essential
A37: MMV019266 | D37: 255 | E37: 596 | F37: 324 | G37: 520 | I37: 2.337254902 | J37: 1.270588235 | K37: 2.039215686 | M37: PKG | N37: E.L. Allman, H.J. Painter, J. Samra, M. Carrasquilla, M. Llinas Metabolomic profiling of the malaria box reveals antimalarial target pathways 2016 | O37: Open source drug discovery with the malaria box compound collection for neglected diseases and beyond Voorhis 2016 | P37: Characterization of Plasmodium phosphatidylserine decarboxylase expressed in yeast and application for inhibitor screening JY Choi | U37: PF3D7_1436600 | W37: 0.47 | X37: -0.44 | Y37: 0.1 | AB37: 0 | AC37: 0.0682448935 | AD37: 2.025305457 | AE37: gct V enriched | AG37: 0.2 | AJ37: Detected | AK37: 187255751.4 | AL37: 109730000 | AM37: 295371702.9 | AN37: 0.3714980106 | AP37: Essential
A38: MMV010545 | D38: 485.4143376 | F38: 1170 | G38: 1030 | J38: 2.410311994 | K38: 2.121898593 | M38: CDPK1 | N38: Screening the Medicines for Malaria Venture Pathogen Box across multiple pathogens reclassifies starting points for open-source drug discovery S Duffy | O38: … and validation of a bioluminescence assay for high throughput screening of potent and rapidly cytocidal compounds against intraerythrocytic Plasmodium falciparum MT Famodimu | P38: Unpacking the Pathogen Box—an open source tool for fighting neglected tropical disease CGL Veale | U38: PF3D7_0217500 | W38: 0.54 | X38: -0.07 | Y38: 0.86 | AB38: 1.827664212 | AC38: 0.8228906159 | AD38: 5.078323128 | AE38: shared 3 stages | AG38: 0.3598952186 | AH38: 2.778586512 | AJ38: Detected | AK38: 1326801430 | AL38: 360430000 | AM38: 3411452183 | AN38: 0.1056529538 | AP38: Essential | AQ38: I S | AR38: A
A39: MMV010545 | D39: 485.4143376 | F39: 1170 | G39: 1030 | J39: 2.410311994 | K39: 2.121898593 | M39: PI4K | N39: Screening the Medicines for Malaria Venture Pathogen Box across multiple pathogens reclassifies starting points for open-source drug discovery S Duffy | O39: … and validation of a bioluminescence assay for high throughput screening of potent and rapidly cytocidal compounds against intraerythrocytic Plasmodium falciparum MT Famodimu | P39: Unpacking the Pathogen Box—an open source tool for fighting neglected tropical disease CGL Veale | U39: PF3D7_0509800 | W39: 0.29 | X39: -0.01 | Y39: 0.16 | AF39: Not detected | AJ39: Not detected | AP39: Essential
A40: MMV010545 | D40: 485.4143376 | F40: 1170 | G40: 1030 | J40: 2.410311994 | K40: 2.121898593 | M40: PK7 | N40: Screening the Medicines for Malaria Venture Pathogen Box across multiple pathogens reclassifies starting points for open-source drug discovery S Duffy | O40: … and validation of a bioluminescence assay for high throughput screening of potent and rapidly cytocidal compounds against intraerythrocytic Plasmodium falciparum MT Famodimu | P40: Unpacking the Pathogen Box—an open source tool for fighting neglected tropical disease CGL Veale | U40: PF3D7_0213400 | W40: 0.31 | X40: 0.27 | Y40: -0.31 | AB40: 0.2246523051 | AC40: 0 | AD40: 0.1364636664 | AE40: not determined | AG40: 1.64624263 | AH40: 0.6074438735 | AJ40: Not detected | AP40: Non Essential | AQ40: A D
A41: MMV019721 | B41: MMV019721 | D41: 844.3 | E41: 3379 | G41: 1841.33 | I41: 4.002131944 | K41: 2.180895416 | M41: acetyl-CoA synthetase (ACAS) | N41: Chemogenomics identifies acetyl-coenzyme A synthetase as a target for malaria treatment and prevention. RL Summers. 2022 | U41: PF3D7_0627800 | W41: 0.29 | X41: -0.51 | Y41: -0.45 | AB41: 0.5239278103 | AC41: 0.2233156821 | AD41: 0.1481536215 | AE41: enriched troph | AG41: 3.536382068 | AH41: 0.2827748758 | AJ41: Detected | AK41: 7752479.547 | AL41: 5327800 | AM41: 13142844.22 | AN41: 0.4053764856 | AP41: Essential | AQ41: A
A42: MMV019721 | B42: MMV019721 | D42: 844.3 | E42: 3379 | G42: 1841.33 | I42: 4.002131944 | K42: 2.180895416 | M42: acyl-CoA synthetase (ACS11) | N42: Chemogenomics identifies acetyl-coenzyme A synthetase as a target for malaria treatment and prevention. RL Summers. 2022 | U42: PF3D7_1238800 | W42: 0.54 | X42: -0.04 | Y42: -0.19 | AB42: 3.175016901 | AC42: 1.578121624 | AD42: 2.782489906 | AE42: shared 3 stages | AG42: 1.141070411 | AH42: 0.8763701087 | AJ42: Detected | AK42: 370910521.3 | AL42: 1014900000 | AM42: 531968643.8 | AN42: 1.907819214
A43: MMV019721 | B43: MMV019721 | D43: 844.3 | E43: 3379 | G43: 1841.33 | I43: 4.002131944 | K43: 2.180895416 | M43: acyl-CoA synthetase (ACS10) | N43: Chemogenomics identifies acetyl-coenzyme A synthetase as a target for malaria treatment and prevention. RL Summers. 2022 | U43: PF3D7_0525100 | W43: 0.84 | X43: -0.61 | Y43: -0.77 | AB43: 6.499642624 | AC43: 6.443810659 | AD43: 5.390804842 | AE43: shared 3 stages | AG43: 1.205690581 | AH43: 0.8294001922 | AJ43: Detected | AK43: 337785262.2 | AL43: 1807600000 | AM43: 394712460.2 | AN43: 4.5795362
A44: MMV019881 | D44: 646 | E44: 740.91 | F44: 287.6 | G44: 1502 | I44: 1.146919505 | J44: 0.4452012384 | K44: 2.325077399 | M44: Hsp90 | N44: Open source drug discovery with the malaria box compound collection for neglected diseases and beyond Voorhis 2016 | O44: Malaria Box Compounds against Anopheles gambiae (Diptera: Culicidae) Carboxypeptidase B Activity to Block Malaria Transmission Tippawan Pomun | U44: PF3D7_0708400 | W44: 0.47 | X44: 0.14 | Y44: -0.37 | AB44: 391.2443421 | AC44: 487.5030362 | AD44: 2642.761186 | AE44: gct V enriched | AG44: 0.1480437749 | AH44: 6.754758858 | AJ44: Detected | AK44: 2.810226702e+10 | AL44: 93040000000 | AM44: 2.430449039e+10 | AN44: 3.828099191 | AP44: Essential
A45: MMV665953 | D45: 2060 | E45: 1645 | F45: 5000 | G45: 5000 | I45: 0.7985436893 | J45: 2.427184466 | K45: 2.427184466 | M45: calmodulin (CAM) | N45: The Medicines for Malaria Venture Malaria Box contains inhibitors of protein secretion in Plasmodium falciparum blood stage parasites O Looker | O45: Comparison of ligand binding and conformational stability of human calmodulin with its homolog from the malaria parasite Plasmodium falciparum T Juhász, | U45: PF3D7_1434200 | W45: 0.66 | X45: -0.08 | Y45: 0.22 | AF45: Not detected | AJ45: Detected | AK45: 10931146.99 | AL45: 236040000 | AM45: 342385661.2 | AN45: 0.689398029 | AP45: Essential
A46: MMV669810 | D46: 0.45 | E46: 2 | F46: 1.4 | G46: 1.2 | I46: 4.444444444 | J46: 3.111111111 | K46: 2.666666667 | M46: CDPK1 | N46: Potent Plasmodium falciparum gametocytocidal compounds identified by exploring the kinase inhibitor chemical space for dual active antimalarials Mariëtte E van der Watt, | U46: PF3D7_0217500 | W46: 0.54 | X46: -0.07 | Y46: 0.86 | AB46: 1.827664212 | AC46: 0.8228906159 | AD46: 5.078323128 | AE46: shared 3 stages | AG46: 0.3598952186 | AH46: 2.778586512 | AJ46: Detected | AK46: 1326801430 | AL46: 360430000 | AM46: 3411452183 | AN46: 0.1056529538 | AP46: Essential | AQ46: I S | AR46: A
A47: MMV669810 | D47: 0.45 | E47: 2 | F47: 1.4 | G47: 1.2 | I47: 4.444444444 | J47: 3.111111111 | K47: 2.666666667 | M47: PI4K | N47: Potent Plasmodium falciparum gametocytocidal compounds identified by exploring the kinase inhibitor chemical space for dual active antimalarials Mariëtte E van der Watt, | U47: PF3D7_0509800 | W47: 0.29 | X47: -0.01 | Y47: 0.16 | AF47: Not detected | AJ47: Not detected | AP47: Essential
A48: MMV669810 | D48: 0.45 | E48: 2 | F48: 1.4 | G48: 1.2 | I48: 4.444444444 | J48: 3.111111111 | K48: 2.666666667 | M48: PKG | N48: Potent Plasmodium falciparum gametocytocidal compounds identified by exploring the kinase inhibitor chemical space for dual active antimalarials Mariëtte E van der Watt, | U48: PF3D7_1436600 | W48: 0.47 | X48: -0.44 | Y48: 0.1 | AB48: 0 | AC48: 0.0682448935 | AD48: 2.025305457 | AE48: gct V enriched | AG48: 0.2 | AJ48: Detected | AK48: 187255751.4 | AL48: 109730000 | AM48: 295371702.9 | AN48: 0.3714980106 | AP48: Essential
A49: MMV669810 | D49: 0.45 | E49: 2 | F49: 1.4 | G49: 1.2 | I49: 4.444444444 | J49: 3.111111111 | K49: 2.666666667 | M49: PK7 | N49: Potent Plasmodium falciparum gametocytocidal compounds identified by exploring the kinase inhibitor chemical space for dual active antimalarials Mariëtte E van der Watt, | U49: PF3D7_0213400 | W49: 0.31 | X49: 0.27 | Y49: -0.31 | AB49: 0.2246523051 | AC49: 0 | AD49: 0.1364636664 | AE49: not determined | AG49: 1.64624263 | AH49: 0.6074438735 | AJ49: Not detected | AP49: Non Essential | AQ49: A D
A50: MMV670325 | D50: 1365 | E50: 4492 | G50: 3715.67 | I50: 3.290842491 | K50: 2.722102564 | M50: leucine--tRNA ligase (LeuRS) | N50: Provided from MMV | U50: PF3D7_0622800 | W50: 0.36 | X50: -0.2 | Y50: -0.48 | AB50: 1.202079354 | AC50: 1.247612089 | AD50: 2.626801691 | AE50: shared 3 stages | AG50: 0.4576208999 | AH50: 2.18521488 | AJ50: Detected | AK50: 595387412.7 | AL50: 382780000 | AM50: 1257820863 | AN50: 0.3043199643 | AP50: Essential (ortholog)
A51: MMV693183 | B51: MMV183 | D51: 9.4 | E51: 113 | G51: 26.2 | I51: 12.0212766 | K51: 2.787234043 | M51: acetyl-CoA synthetase (ACAS) | N51: Preclinical characterization and target validation of the antimalarial pantothenamide MMV693183. LE de Vries. 2022 | U51: PF3D7_0627800 | W51: 0.29 | X51: -0.51 | Y51: -0.45 | AB51: 0.5239278103 | AC51: 0.2233156821 | AD51: 0.1481536215 | AE51: enriched troph | AG51: 3.536382068 | AH51: 0.2827748758 | AJ51: Detected | AK51: 7752479.547 | AL51: 5327800 | AM51: 13142844.22 | AN51: 0.4053764856 | AP51: Essential | AQ51: A
A52: MMV019662 | D52: 1729 | E52: 4715.5 | G52: 5000 | I52: 2.727299017 | K52: 2.891844997 | M52: Niemann-Pick type C1-related protein (NCR1) | N52: Diverse Chemical Compounds Target Plasmodium falciparum Plasma Membrane Lipid Homeostasis. S Bhatnagar. 2019 | O52: Plasmodium Niemann-Pick type C1-related protein is a druggable target required for parasite membrane homeostasis. ES Istvan. 2019 | P52: Mapping the malaria parasite druggable genome by using in vitro evolution and chemogenomics. Cowell. 2018 | U52: PF3D7_0107500 | W52: 0.44 | X52: -0.6 | Y52: -0.27 | AB52: 0.872067592 | AC52: 0 | AD52: 0.0734188827 | AE52: enriched troph | AG52: 11.87797417 | AH52: 0.08418944056 | AJ52: Not detected | AP52: Essential
A53: MMV016838 | D53: 1718 | E53: 2000 | G53: 5000 | I53: 1.164144354 | K53: 2.910360885 | M53: eEF2 | N53: A novel multiple-stage antimalarial agent that inhibits protein synthesis. Beatriz Baragaña. 2015 | O53: Screening the Medicines for Malaria Venture Pathogen Box for invasion and egress inhibitors of the blood stage of Plasmodium falciparum reveals several inhibitory compounds Author links open overlay panelMadeline G.Dans. 2020 | U53: PF3D7_1451100 | W53: 0.72 | X53: -0.3 | Y53: -1 | AB53: 36.21509657 | AC53: 20.79857305 | AD53: 60.26804781 | AE53: shared 3 stages | AG53: 0.6009004421 | AH53: 1.664169187 | AJ53: Detected | AK53: 8763016764 | AL53: 19691000000 | AM53: 2265856301 | AN53: 8.690312793 | AP53: Essential (ortholog)
A54: MMV665882 | D54: 337 | E54: 252 | F54: 63 | G54: 983.63 | I54: 0.7477744807 | J54: 0.1869436202 | K54: 2.918783383 | M54: AP2 domain transcription factor | N54: Open source drug discovery with the malaria box compound collection for neglected diseases and beyond Voorhis 2016 | O54: Mapping the malaria parasite druggable genome by using in vitro evolution and chemogenomics | U54: PF3D7_0613800 | W54: 0.3 | X54: 0.16 | Y54: 0.69 | AB54: 0.03482332458 | AC54: 0 | AD54: 0 | AE54: enriched troph | AH54: 0 | AJ54: Not detected | AP54: Essential (ortholog)
A55: MMV665882 | D55: 337 | E55: 252 | F55: 63 | G55: 983.63 | I55: 0.7477744807 | J55: 0.1869436202 | K55: 2.918783383 | M55: Hsp90 | N55: Open source drug discovery with the malaria box compound collection for neglected diseases and beyond Voorhis 2016 | O55: Mapping the malaria parasite druggable genome by using in vitro evolution and chemogenomics | U55: PF3D7_0708400 | W55: 0.47 | X55: 0.14 | Y55: -0.37 | AB55: 391.2443421 | AC55: 487.5030362 | AD55: 2642.761186 | AE55: gct V enriched | AG55: 0.1480437749 | AH55: 6.754758858 | AJ55: Detected | AK55: 2.810226702e+10 | AL55: 93040000000 | AM55: 2.430449039e+10 | AN55: 3.828099191 | AP55: Essential
A56: MMV665943 | D56: 190 | E56: 2000 | F56: 1099 | G56: 570 | I56: 10.52631579 | J56: 5.784210526 | K56: 3 | M56: Cysteine protease | N56: Open source drug discovery with the malaria box compound collection for neglected diseases and beyond Voorhis 2016 | W56: 0.8683333333 | X56: 0.2925 | Y56: 0.5025 | Z56: Average | AB56: 0.7986412561 | AC56: 0.1943386009 | AD56: 0.3185628225 | AE56: enriched troph | AF56: Average | AG56: 2.507013373 | AH56: 0.3988809995 | AJ56: Detected | AK56: 57370296.82 | AL56: 79529333.33 | AM56: 145189284.4 | AN56: 0.5477631055 | AP56: Essential/Non Essential | AQ56: S U
A57: MMV396797 | D57: 477 | E57: 3934.38 | F57: 1768.9 | G57: 1431.09 | I57: 8.248176101 | J57: 3.708385744 | K57: 3.000188679 | M57: Thioredoxin Reductase (PfTrxR) | N57: E.L. Allman, H.J. Painter, J. Samra, M. Carrasquilla, M. Llinas Metabolomic profiling of the malaria box reveals antimalarial target pathways 2016 | O57: Preliminary LC-MS Based Screening for Inhibitors of Plasmodium falciparum Thioredoxin Reductase (PfTrxR) among a Set of Antimalarials from the Malaria Box NK Tiwari | P57: The Medicines for Malaria Venture Malaria Box contains inhibitors of protein secretion in Plasmodium falciparum blood stage parasites O Looker | U57: PF3D7_0923800 | W57: 0.25 | X57: 0.12 | Y57: 0.31 | AB57: 0.2942965475 | AC57: 0.2694624621 | AD57: 3.770582696 | AE57: gct V enriched | AG57: 0.07805068109 | AH57: 12.81218801 | AJ57: Not detected | AP57: Essential/Non Essential
A58: MMV1578884 | B58: CRS-3123 | D58: 1643.33 | E58: 3776 | G58: 5000 | I58: 2.297773423 | K58: 3.04260252 | M58: methionine--tRNA ligase (cyto) | N58: Inhibition of protein synthesis and malaria parasite development by drug targeting of methionyl-tRNA synthetases T Hussain 2015 | U58: PF3D7_1034900 | W58: 0.43 | X58: 0.01 | Y58: 0.05 | AB58: 2.488931895 | AC58: 5.890704032 | AD58: 15.5265354 | AE58: gct V enriched | AG58: 0.1603018208 | AH58: 6.238232323 | AJ58: Detected | AK58: 3091188099 | AL58: 3090600000 | AM58: 2027422100 | AN58: 1.52439889 | AP58: Essential
A59: MMV1578884 | B59: CRS-3123 | D59: 1643.33 | E59: 3776 | G59: 5000 | I59: 2.297773423 | K59: 3.04260252 | M59: methionine--tRNA ligase (apic) | N59: Inhibition of protein synthesis and malaria parasite development by drug targeting of methionyl-tRNA synthetases T Hussain 2015 | U59: PF3D7_1005000 | W59: 0.42 | X59: 0.36 | Y59: 0.4 | AF59: Not detected | AJ59: Not detected | AP59: Essential
A60: GNF-Pf-5466 | D60: 30.37 | G60: 92.47 | K60: 3.044781034 | M60: CARL | N60: High-throughput luciferase-based assay for the discovery of therapeutics that prevent malaria J Swann, | O60: Meister, S., (2011) Imaging of Plasmodium liver stages to drive next-generation antimalarial drug discovery. | U60: PF3D7_0321900 | W60: 0.31 | X60: -0.21 | Y60: -0.06 | AB60: 0 | AC60: 0 | AD60: 0.05372497274 | AE60: gct V enriched | AG60: 0.8 | AJ60: Not detected | AP60: Essential
A61: MMV665941 | D61: 255 | E61: 769 | F61: 157.9 | G61: 843 | I61: 3.015686275 | J61: 0.6192156863 | K61: 3.305882353 | M61: HT | N61: Open source drug discovery with the malaria box compound collection for neglected diseases and beyond Voorhis 2016 | O61: A novel fluorescence resonance energy transfer-based screen in high-throughput format to identify inhibitors of malarial and human glucose transporters TE Kraft | U61: PF3D7_0204700 | W61: 0.53 | X61: 1.08 | Y61: -0.46 | AB61: 3.042315429 | AC61: 4.369138307 | AD61: 2.898603703 | AE61: shared 3 stages | AG61: 1.049579639 | AH61: 0.9527623846 | AJ61: Detected | AK61: 552024808.2 | AL61: 783670000 | AM61: 843559723.5 | AN61: 0.9290035764 | AP61: Essential
A62: MMV666597 | D62: 551 | E62: 819 | F62: 465 | G62: 1927 | I62: 1.486388385 | J62: 0.8439201452 | K62: 3.497277677 | M62: Saglin (thrombospondin-related anonymous protein?) | N62: Transcriptome Analysis of Uninfected and Plasmodium vivax-infected Anopheles dirus at Ookinete and Oocyst Stages and Targeting Anopheles Carboxypeptidase B … T Boonkaew | U62: PF3D7_1335900 | W62: 0.82 | X62: 0.91 | Y62: 0.81 | AF62: Not detected | AJ62: Translationally repressed | AP62: Non Essential
A63: GNF-Pf-3600 | D63: 24.42 | G63: 95.39 | K63: 3.906224406 | M63: Thioredoxin Reductase (PfTrxR) | N63: PfMFR3: A Multidrug-Resistant Modulator in Plasmodium falciparum Frances Rocamora | U63: PF3D7_0923800 | W63: 0.25 | X63: 0.12 | Y63: 0.31 | AB63: 0.2942965475 | AC63: 0.2694624621 | AD63: 3.770582696 | AE63: gct V enriched | AG63: 0.07805068109 | AH63: 12.81218801 | AJ63: Not detected | AP63: Essential/Non Essential
A64: GNF-Pf-3600 | D64: 24.42 | G64: 95.39 | K64: 3.906224406 | M64: multidrug-resistant modulator MFR3 | N64: PfMFR3: A Multidrug-Resistant Modulator in Plasmodium falciparum Frances Rocamora | U64: PF3D7_0312500 | W64: 0.89 | X64: 0.25 | Y64: -0.19 | AF64: Not detected | AJ64: Not detected | AP64: Non Essential | AQ64: U | AR64: U
A65: GNF-Pf-3600 | D65: 24.42 | G65: 95.39 | K65: 3.906224406 | M65: glutathione reductase (GR) | N65: PfMFR3: A Multidrug-Resistant Modulator in Plasmodium falciparum Frances Rocamora | U65: PF3D7_1419800 | W65: 0.71 | X65: 0.64 | Y65: -0.14 | AB65: 1.15443469 | AC65: 1.057018224 | AD65: 9 | AE65: gct V enriched | AG65: 0.1282705211 | AH65: 7.796023524 | AJ65: Not detected | AP65: Essential
A66: MMV007273 | D66: 1278 | E66: 1361 | F66: 5000 | G66: 5000 | I66: 1.064945227 | J66: 3.912363067 | K66: 3.912363067 | M66: 6-phosphogluconate dehydrogenase | N66: Identification of β-hematin inhibitors in the MMV Malaria Box KY Fong | O66: Characterization of Plasmodium falciparum 6-phosphogluconate dehydrogenase as an antimalarial drug target K Haeussler | U66: PF3D7_1454700 | W66: 0.29 | X66: 0.18 | Y66: -0.08 | AB66: 1.717623246 | AC66: 5.869374848 | AD66: 16.43328822 | AE66: gct V enriched | AG66: 0.1045209713 | AH66: 9.567457974 | AJ66: Detected | AK66: 1936470222 | AL66: 2758600000 | AM66: 3486288340 | AN66: 0.7912713266 | AP66: Essential
A67: MMV000011 | B67: Doxycycline hydrochloride | D67: 1258.925412 | E67: 5000 | F67: 5000 | G67: 5000 | I67: 3.971641174 | J67: 3.971641174 | K67: 3.971641174 | M67: targets ribosomes | N67: Multiple antibiotics exert delayed effects against the Plasmodium falciparum apicoplast Erica L Dahl 2007 | W67: 0.8017096774 | X67: 0.4807870968 | Y67: 0.1553258065 | Z67: Average | AB67: 24.7129777 | AC67: 85.40557604 | AD67: 1459.533101 | AE67: gct V enriched | AF67: Average | AG67: 0.01693211184 | AH67: 59.05937839 | AJ67: Detected | AK67: 1539680719 | AL67: 1132392260 | AM67: 592017901 | AN67: 1.912766925 | AP67: Essential/Non Essential
A68: MMV000028 | B68: Trimethoprim | D68: 1258.925412 | E68: 5000 | F68: 5000 | G68: 5000 | I68: 3.971641174 | J68: 3.971641174 | K68: 3.971641174 | M68: DHFR-TS | N68: Antibacterial Agents That Interfere With Folate Synthesis. (2020). In Rang and Dale's Pharmacology (9th ed.). Edinburgh: Elsevier. | U68: PF3D7_0417200 | W68: 0.11 | X68: 0.52 | Y68: 0.13 | AB68: 1.15443469 | AC68: 0.6407679531 | AD68: 10.93776642 | AE68: gct V enriched | AG68: 0.1055457436 | AH68: 9.47456492 | AJ68: Detected | AK68: 3107354810 | AL68: 901370000 | AM68: 1885999901 | AN68: =AL68/AM68 -> 0.4779268545 | AP68: Essential | AQ68: A
A69: MMV643110 | D69: 23.24 | E69: 122.1 | F69: 71.51 | G69: 92.7 | I69: 5.253872633 | J69: 3.077022375 | K69: 3.988812392 | M69: PI4K | N69: Potent Plasmodium falciparum gametocytocidal compounds identified by exploring the kinase inhibitor chemical space for dual active antimalarials Mariëtte E van der Watt, | U69: PF3D7_0509800 | W69: 0.29 | X69: -0.01 | Y69: 0.16 | AF69: Not detected | AJ69: Not detected | AP69: Essential
A70: MMV666125 | D70: 120 | E70: 720.32 | F70: 745 | G70: 480 | I70: 6.002666667 | J70: 6.208333333 | K70: 4 | M70: Hsp90 | N70: Sun W, Tanaka TQ, Magle CT, Huang W, Southall N, Huang R, Dehdashti SJ, McKew JC et al (2014) Chemical signatures and new drug targets for gametocytocidal drug development. | O70: Characterization of Plasmodium falciparum 6-phosphogluconate dehydrogenase as an antimalarial drug target K Haeussler | U70: PF3D7_0708400 | W70: 0.47 | X70: 0.14 | Y70: -0.37 | AB70: 391.2443421 | AC70: 487.5030362 | AD70: 2642.761186 | AE70: gct V enriched | AG70: =AB70/AD70 -> 0.1480437749 | AH70: =AD70/AB70 -> 6.754758858 | AJ70: Detected | AK70: 2.810226702e+10 | AL70: 93040000000 | AM70: 2.430449039e+10 | AN70: 3.828099191 | AP70: Essential
A71: MMV666125 | D71: 120 | E71: 720.32 | F71: 745 | G71: 480 | I71: 6.002666667 | J71: 6.208333333 | K71: 4 | M71: 6-phosphogluconate dehydrogenase | N71: Sun W, Tanaka TQ, Magle CT, Huang W, Southall N, Huang R, Dehdashti SJ, McKew JC et al (2014) Chemical signatures and new drug targets for gametocytocidal drug development. | O71: Characterization of Plasmodium falciparum 6-phosphogluconate dehydrogenase as an antimalarial drug target K Haeussler | U71: PF3D7_1454700 | W71: 0.29 | X71: 0.18 | Y71: -0.08 | AB71: 1.717623246 | AC71: 5.869374848 | AD71: 16.43328822 | AE71: gct V enriched | AG71: 0.1045209713 | AH71: 9.567457974 | AJ71: Detected | AK71: 1936470222 | AL71: 2758600000 | AM71: 3486288340 | AN71: 0.7912713266 | AP71: Essential
A72: MMV023367 | D72: 1192.27 | E72: 2718 | G72: 5000 | I72: 2.279684971 | K72: 4.193680962 | M72: ABCI3 | N72: Mapping the malaria parasite druggable genome by using in vitro evolution and chemogenomics. Cowell. 2018 | U72: PF3D7_0319700 | W72: 0.37 | X72: -0.27 | Y72: -0.58 | AF72: Not detected | AJ72: Detected | AK72: 2589313.086 | AL72: 1486100 | AM72: 10695894.95 | AN72: 0.1389411552 | AP72: Essential (ortholog)
A73: MMV023367 | D73: 1192.27 | E73: 2718 | G73: 5000 | I73: 2.279684971 | K73: 4.193680962 | M73: AP2 domain transcription factor | N73: Mapping the malaria parasite druggable genome by using in vitro evolution and chemogenomics. Cowell. 2018 | U73: PF3D7_0613800 | W73: 0.3 | X73: 0.16 | Y73: 0.69 | AB73: 0.03482332458 | AC73: 0 | AD73: 0 | AE73: enriched troph | AG73: 1.1 | AH73: 0 | AJ73: Not detected | AP73: Essential (ortholog)
A74: MMV023367 | D74: 1192.27 | E74: 2718 | G74: 5000 | I74: 2.279684971 | K74: 4.193680962 | M74: amino acid transporter AAT1 | N74: Mapping the malaria parasite druggable genome by using in vitro evolution and chemogenomics. Cowell. 2018 | U74: PF3D7_0629500 | W74: 0.31 | X74: -0.31 | Y74: -0.59 | AF74: Not detected | AJ74: Detected | AK74: 3042923.635 | AL74: 6972800 | AM74: 6511740.419 | AN74: 1.070804355 | AP74: Essential
A75: MMV023367 | D75: 1192.27 | E75: 2718 | G75: 5000 | I75: 2.279684971 | K75: 4.193680962 | M75: amino acid transporter A | N75: Mapping the malaria parasite druggable genome by using in vitro evolution and chemogenomics. Cowell. 2018 | U75: PF3D7_1132500 | W75: 0.34 | X75: 0.73 | Y75: 0.67 | AF75: Not detected | AJ75: Not detected | AP75: Non Essential
A76: MMV023367 | D76: 1192.27 | E76: 2718 | G76: 5000 | I76: 2.279684971 | K76: 4.193680962 | M76: amino acid transporter B | N76: Mapping the malaria parasite druggable genome by using in vitro evolution and chemogenomics. Cowell. 2018 | U76: PF3D7_1208400 | W76: 0.32 | X76: 0.7 | Y76: 0.71 | AF76: Not detected | AJ76: Not detected | AP76: Non Essential
A77: MMV390048 | B77: MMV0048 | D77: 24 | E77: 171 | G77: 101.4 | I77: 7.125 | K77: 4.225 | M77: PI4K | N77: Potent Plasmodium falciparum gametocytocidal compounds identified by exploring the kinase inhibitor chemical space for dual active antimalarials Mariëtte E van der Watt, | O77: Younis Y, Douelle F, Feng TS, Gonzalez Cabrera D, Le Manach C, Nchinda AT, Duffy S, White KL, Shackleford DM, Morizzi J, Mannila J, Katneni K, Bhamidipati R, Zabiulla KM, Joseph JT, Bashyam S, Waterson D, Witty MJ, Hardick D, Wittlin S, Avery V, Charman SA, Chibale K. 2012. 3,5-Diaryl-2-aminopyridines as a novel class of orally active antimalarials demonstrating single dose cure in mice and clinical candidate potential. J Med Chem 55:3479–3487. | P77: Paquet T, Le Manach C, Cabrera DG, Younis Y, Henrich PP, Abraham TS, Lee MCS, Basak R, Ghidelli-Disse S, Lafuente-Monasterio MJ et al.. (2017) Antimalarial efficacy of MMV390048, an inhibitor of Plasmodium phosphatidylinositol 4-kinase. | U77: PF3D7_0509800 | W77: 0.29 | X77: -0.01 | Y77: 0.16 | AF77: Not detected | AJ77: Not detected | AP77: Essential
